Body Name,Body,Service Label,Service Code,Service Division ,Service Division Code,Organisational Unit,Expenditure Category - SeRCOP,Expenditure Code - SeRCOP,Expenditure Category - ProClass,Expenditure Code - ProClass,SeRCOP Detailed Expenditure Type,SeRCOP Detailed Expenditure Code,Date,Transaction Number,Amount,Capital and Revenue,Supplier Name,Supplier ID
Fareham Borough Council,http://statistics.data.gov.uk/id/local-authority/24UE,OTHER REVENUE ACCOUNTS,RV,NON WORK GROUP HOLDING ACCOUNT,RV18,STREETSCENE,SUPPLIES & SERVICES,4,Vehicle Management,38,MATERIALS (OPERATIONAL),4007,07/02/2020,665157,1456.00 ,Revenue,UK TELEMATICS LIMITED,04203244
Fareham Borough Council,http://statistics.data.gov.uk/id/local-authority/24UE,CAPITAL PROGRAMME - OTHER SERVICES,CP,CAPITAL PROPERTY SERVICES,CP23,CAPITAL - FINANCE & RESOURCES CAPITAL,SUPPLIES & SERVICES,4,Consultancy,15,CONSULTANTS FEES,4401,07/02/2020,666042,2000.00 ,Capital,LEWIS & HICKEY LTD,2007297
Fareham Borough Council,http://statistics.data.gov.uk/id/local-authority/24UE,CULTURAL AND RELATED SERVICES,BV09,RECREATION AND SPORT,BV09B,STREETSCENE,PREMISES RELATED EXPENDITURE,2,Utilities,37,SEWERAGE & ENV. CHARGES (SWS),2410,13/02/2020,667315,-564.06 ,Revenue,SCOTTISH WATER BUSINESS STREAM LIMITED,SC294924
Fareham Borough Council,http://statistics.data.gov.uk/id/local-authority/24UE,CAPITAL PROGRAMME - OTHER SERVICES,CP,CAPITAL ICT SCHEMES,CP23,CAPITAL - FINANCE & RESOURCES CAPITAL,SUPPLIES & SERVICES,4,Information Communication Technology,27,CONSULTANTS FEES,4401,13/02/2020,667359,914.00 ,Capital,BYTES SOFTWARE SERVICES LTD,1616977
Fareham Borough Council,http://statistics.data.gov.uk/id/local-authority/24UE,ENVIRONMENT AND REGULATORY SER,BV03,WASTE COLLECTION,BV03G,STREETSCENE,TRANSPORT RELATED EXPENDITURE,3,Vehicle Management,38,ROUTINE REPAIRS VEHICLES/PLANT,3010,07/02/2020,667367,644.11 ,Revenue,DENNIS EAGLE LIMITED,03794455
Fareham Borough Council,http://statistics.data.gov.uk/id/local-authority/24UE,HOUSING REVENUE ACCOUNT,BV06,SHELTERED HOUSING SERVICE,5031,DEPT OF DEPUTY CHIEF EXECUTIVE,PREMISES RELATED EXPENDITURE,2,Healthcare,31,RENTS - CHICHESTER RENTALS,2210,07/02/2020,667477,5089.72 ,Revenue,PPP TAKING CARE LTD,01488490
Fareham Borough Council,http://statistics.data.gov.uk/id/local-authority/24UE,GENERAL FUND HOUSING,BV05,WELFARE SERVICES,BV05L,DEPT OF DEPUTY CHIEF EXECUTIVE,PREMISES RELATED EXPENDITURE,2,Healthcare,31,RENTS - CHICHESTER RENTALS,2210,07/02/2020,667478,1511.45 ,Revenue,PPP TAKING CARE LTD,01488490
Fareham Borough Council,http://statistics.data.gov.uk/id/local-authority/24UE,CAPITAL PROGRAMME - HOUSING SERVICES,CP,RENOVATION OF L.A. DWELLINGS,CP10,CAPITAL - FAREHAM HOUSING CAPITAL,PREMISES RELATED EXPENDITURE,2,Information Communication Technology,27,R & M ALARM SPEECH SYSTEMS,2027,13/02/2020,667479,1391.71 ,Capital,TUNSTALL HEALTHCARE (UK) LTD,01332249
Fareham Borough Council,http://statistics.data.gov.uk/id/local-authority/24UE,CAPITAL PROGRAMME - HOUSING SERVICES,CP,RENOVATION OF L.A. DWELLINGS,CP10,CAPITAL - FAREHAM HOUSING CAPITAL,PREMISES RELATED EXPENDITURE,2,Information Communication Technology,27,R & M ALARM SPEECH SYSTEMS,2027,13/02/2020,667480,1391.71 ,Capital,TUNSTALL HEALTHCARE (UK) LTD,01332249
Fareham Borough Council,http://statistics.data.gov.uk/id/local-authority/24UE,ENVIRONMENT AND REGULATORY SER,BV03,WASTE COLLECTION,BV03G,STREETSCENE,EMPLOYEES RELATED EXPENDITURE,1,Human Resources,26,AGENCY WORKERS,1050,07/02/2020,667497,381.44 ,Revenue,THE BEST CONNECTION GROUP LTD,2600534
Fareham Borough Council,http://statistics.data.gov.uk/id/local-authority/24UE,ENVIRONMENT AND REGULATORY SER,BV03,WASTE COLLECTION,BV03G,STREETSCENE,EMPLOYEES RELATED EXPENDITURE,1,Human Resources,26,AGENCY WORKERS,1050,07/02/2020,667497,193.95 ,Revenue,THE BEST CONNECTION GROUP LTD,2600534
Fareham Borough Council,http://statistics.data.gov.uk/id/local-authority/24UE,ENVIRONMENT AND REGULATORY SER,BV03,CEMETERIES CREM & MORTUARY,BV03A,STREETSCENE,PREMISES RELATED EXPENDITURE,2,Horticultural,24,R&M OF TREE PRESERVATION,2063,07/02/2020,667503,1030.00 ,Revenue,BRIAN CULL,
Fareham Borough Council,http://statistics.data.gov.uk/id/local-authority/24UE,CULTURAL AND RELATED SERVICES,BV09,RECREATION AND SPORT,BV09B,STREETSCENE,PREMISES RELATED EXPENDITURE,2,Horticultural,24,R&M OF TREE PRESERVATION,2063,07/02/2020,667505,885.00 ,Revenue,BRIAN CULL,
Fareham Borough Council,http://statistics.data.gov.uk/id/local-authority/24UE,OTHER REVENUE ACCOUNTS,RV,CONTRACT SERVICES D.S.O.,RV14,DEPT of STRATEGIC PLANNING and ENVIRONMENT,SUPPLIES & SERVICES,4,Financial Services,20,ICT SOFTWARE LICENCES,4530,07/02/2020,667928,2480.00 ,Revenue,RESOLUTION DATA MANAGMENT LTD,01910045
Fareham Borough Council,http://statistics.data.gov.uk/id/local-authority/24UE,OTHER REVENUE ACCOUNTS,RV,NON WORK GROUP HOLDING ACCOUNT,RV18,STREETSCENE,TRANSPORT RELATED EXPENDITURE,3,Vehicle Management,38,HIRE OF VEHICLES,3210,21/02/2020,667941,-782.27 ,Revenue,TOYOTA MATERIAL HANDLING UK,06265172
Fareham Borough Council,http://statistics.data.gov.uk/id/local-authority/24UE,CENTRAL SERVICES,BV07,CENTRAL SERVICES TO THE PUBLIC,BV07B,DEPT OF SUPPORT SERVICES,SUPPLIES & SERVICES,4,Mail Services�,30,POSTAGES,4500,13/02/2020,667942,845.60 ,Revenue,ROYAL MAIL,04138203
Fareham Borough Council,http://statistics.data.gov.uk/id/local-authority/24UE,ENVIRONMENT AND REGULATORY SER,BV03,WASTE COLLECTION,BV03G,STREETSCENE,EMPLOYEES RELATED EXPENDITURE,1,Human Resources,26,AGENCY WORKERS,1050,13/02/2020,667946,769.33 ,Revenue,THE BEST CONNECTION GROUP LTD,2600534
Fareham Borough Council,http://statistics.data.gov.uk/id/local-authority/24UE,ENVIRONMENT AND REGULATORY SER,BV03,WASTE COLLECTION,BV03G,STREETSCENE,EMPLOYEES RELATED EXPENDITURE,1,Human Resources,26,AGENCY WORKERS,1050,13/02/2020,667946,96.98 ,Revenue,THE BEST CONNECTION GROUP LTD,2600534
Fareham Borough Council,http://statistics.data.gov.uk/id/local-authority/24UE,GENERAL FUND HOUSING,BV05,HOUSING BENEFIT ADMINISTRATION,BV05H,DEPT OF DEPUTY CHIEF EXECUTIVE,SUPPLIES & SERVICES,4,Information Communication Technology,27,ICT SOFTWARE LICENCES,4530,21/02/2020,667949,1500.00 ,Revenue,redacted personal data,968498
Fareham Borough Council,http://statistics.data.gov.uk/id/local-authority/24UE,OTHER REVENUE ACCOUNTS,RV,NON WORK GROUP HOLDING ACCOUNT,RV18,DEPT OF SUPPORT SERVICES,SUPPLIES & SERVICES,4,Information Communication Technology,27,ICT HARDWARE,4532,07/02/2020,667986,568.91 ,Revenue,MEMTEK UK LTD,6327376
Fareham Borough Council,http://statistics.data.gov.uk/id/local-authority/24UE,HOUSING REVENUE ACCOUNT,BV06,RESPONSIVE & VOID MAINTENANCE,5901,DEPT OF DEPUTY CHIEF EXECUTIVE,PREMISES RELATED EXPENDITURE,2,"Works - Construction, Repair & Maintenance",39,VOID COSTS - NOT RECHARGEABLE,2011,07/02/2020,668081,792.73 ,Revenue,MOUNTJOY LTD,06009150
Fareham Borough Council,http://statistics.data.gov.uk/id/local-authority/24UE,HOUSING REVENUE ACCOUNT,BV06,RESPONSIVE & VOID MAINTENANCE,5901,DEPT OF DEPUTY CHIEF EXECUTIVE,PREMISES RELATED EXPENDITURE,2,Environmental Services,18,GENERAL REPAIRS,2018,07/02/2020,668091,720.00 ,Revenue,R H INSULATION SERVICES LIMITED,02062526
Fareham Borough Council,http://statistics.data.gov.uk/id/local-authority/24UE,HOUSING REVENUE ACCOUNT,BV06,RESPONSIVE & VOID MAINTENANCE,5901,DEPT OF DEPUTY CHIEF EXECUTIVE,PREMISES RELATED EXPENDITURE,2,Environmental Services,18,GENERAL REPAIRS,2018,07/02/2020,668092,730.00 ,Revenue,R H INSULATION SERVICES LIMITED,02062526
Fareham Borough Council,http://statistics.data.gov.uk/id/local-authority/24UE,CORPORATE & DEMOCRATIC CORE,BV07A,CORPORATE MANAGEMENT,BV07AB,DEPT OF DEPUTY CHIEF EXECUTIVE,SUPPLIES & SERVICES,4,Financial Services,20,EXTERNAL AUDIT FEES,4419,21/02/2020,668110,9284.00 ,Revenue,ERNST & YOUNG LLP,OC300001
Fareham Borough Council,http://statistics.data.gov.uk/id/local-authority/24UE,HOUSING REVENUE ACCOUNT,BV06,RESPONSIVE & VOID MAINTENANCE,5901,DEPT OF DEPUTY CHIEF EXECUTIVE,PREMISES RELATED EXPENDITURE,2,Information Communication Technology,27,GENERAL REPAIRS,2018,07/02/2020,668115,650.71 ,Revenue,TUNSTALL HEALTHCARE (UK) LTD,01332249
Fareham Borough Council,http://statistics.data.gov.uk/id/local-authority/24UE,BALANCE SHEET,BS,BAL. SHEET - D.S.O.,BS1,BAL. SHEET - D.S.O.,TOTAL ASSETS LESS LIABILITIES,BS100,Vehicle Management,38,MATERIALS SUSPENSE ACCOUNT (VE,A016,13/02/2020,668126,14641.29 ,Balance Sheet,WESSEX PETROLEUM LTD,01024472
Fareham Borough Council,http://statistics.data.gov.uk/id/local-authority/24UE,ENVIRONMENT AND REGULATORY SER,BV03,WASTE COLLECTION,BV03G,STREETSCENE,SUPPLIES & SERVICES,4,Healthcare,31,FURNITURE & EQUIPT. PURCHASES,4000,13/02/2020,668161,0.35 ,Revenue,MAUSER UK LTD T/A DANIELS HEALTHCARE,05798825
Fareham Borough Council,http://statistics.data.gov.uk/id/local-authority/24UE,ENVIRONMENT AND REGULATORY SER,BV03,WASTE COLLECTION,BV03G,STREETSCENE,SUPPLIES & SERVICES,4,Healthcare,31,FURNITURE & EQUIPT. PURCHASES,4000,13/02/2020,668161,1904.35 ,Revenue,MAUSER UK LTD T/A DANIELS HEALTHCARE,05798825
Fareham Borough Council,http://statistics.data.gov.uk/id/local-authority/24UE,GENERAL FUND HOUSING,BV05,HOUSING ADVICE,BV05C,DEPT OF DEPUTY CHIEF EXECUTIVE,SUPPLIES & SERVICES,4,Information Communication Technology,27,MOBILE TELEPHONES,4514,13/02/2020,668165,12.39 ,Revenue,VODAFONE LIMITED,01471587
Fareham Borough Council,http://statistics.data.gov.uk/id/local-authority/24UE,OTHER REVENUE ACCOUNTS,RV,NON WORK GROUP HOLDING ACCOUNT,RV18,DEPT OF SUPPORT SERVICES,SUPPLIES & SERVICES,4,Information Communication Technology,27,MOBILE TELEPHONES,4514,13/02/2020,668165,2636.13 ,Revenue,VODAFONE LIMITED,01471587
Fareham Borough Council,http://statistics.data.gov.uk/id/local-authority/24UE,OTHER REVENUE ACCOUNTS,RV,NON WORK GROUP HOLDING ACCOUNT,RV18,DEPT OF SUPPORT SERVICES,SUPPLIES & SERVICES,4,Information Communication Technology,27,MOBILE TELEPHONES,4514,13/02/2020,668165,20.91 ,Revenue,VODAFONE LIMITED,01471587
Fareham Borough Council,http://statistics.data.gov.uk/id/local-authority/24UE,CAPITAL PROGRAMME - HOUSING SERVICES,CP,NEW HOUSE BUILDING,CP10,CAPITAL - FAREHAM HOUSING CAPITAL,PREMISES RELATED EXPENDITURE,2,Utilities,37,ELECTRICITY,2120,21/02/2020,668189,1547.26 ,Capital,SOUTHERN ELECTRIC POWER DISTRIBUTION PLC,04094290
Fareham Borough Council,http://statistics.data.gov.uk/id/local-authority/24UE,ENVIRONMENT AND REGULATORY SER,BV03,CEMETERIES CREM & MORTUARY,BV03A,STREETSCENE,PREMISES RELATED EXPENDITURE,2,Utilities,37,R & M OF BUILDINGS,2000,13/02/2020,668192,19.08 ,Revenue,LIBERTY GAS GROUP LTD,04242416
Fareham Borough Council,http://statistics.data.gov.uk/id/local-authority/24UE,FINANCING & INVESTMENT I&E,BVB02,INVESTMENT PROPERTIES,BVB170,DEPT of STRATEGIC PLANNING and ENVIRONMENT,PREMISES RELATED EXPENDITURE,2,Utilities,37,R & M OF BUILDINGS,2000,13/02/2020,668192,432.09 ,Revenue,LIBERTY GAS GROUP LTD,04242416
Fareham Borough Council,http://statistics.data.gov.uk/id/local-authority/24UE,CULTURAL AND RELATED SERVICES,BV09,RECREATION AND SPORT,BV09B,STREETSCENE,PREMISES RELATED EXPENDITURE,2,Utilities,37,R & M OF BUILDINGS,2000,13/02/2020,668192,133.58 ,Revenue,LIBERTY GAS GROUP LTD,04242416
Fareham Borough Council,http://statistics.data.gov.uk/id/local-authority/24UE,CULTURAL AND RELATED SERVICES,BV09,CULTURE AND HERITAGE,BV09A,DEPT OF LEISURE & COMMUNITY,PREMISES RELATED EXPENDITURE,2,Utilities,37,R & M OF BUILDINGS,2000,13/02/2020,668192,65.42 ,Revenue,LIBERTY GAS GROUP LTD,04242416
Fareham Borough Council,http://statistics.data.gov.uk/id/local-authority/24UE,CULTURAL AND RELATED SERVICES,BV09,RECREATION AND SPORT,BV09B,DEPT OF LEISURE & COMMUNITY,PREMISES RELATED EXPENDITURE,2,Utilities,37,R & M OF BUILDINGS,2000,13/02/2020,668192,459.17 ,Revenue,LIBERTY GAS GROUP LTD,04242416
Fareham Borough Council,http://statistics.data.gov.uk/id/local-authority/24UE,FINANCING & INVESTMENT I&E,BVB02,INVESTMENT PROPERTIES,BVB170,DEPT OF LEISURE & COMMUNITY,PREMISES RELATED EXPENDITURE,2,Utilities,37,R & M OF BUILDINGS,2000,13/02/2020,668192,128.17 ,Revenue,LIBERTY GAS GROUP LTD,04242416
Fareham Borough Council,http://statistics.data.gov.uk/id/local-authority/24UE,CAPITAL PROGRAMME - HOUSING SERVICES,CP,RENOVATION OF L.A. DWELLINGS,CP10,CAPITAL - FAREHAM HOUSING CAPITAL,PREMISES RELATED EXPENDITURE,2,Utilities,37,R & M OF BUILDINGS,2000,13/02/2020,668192,7796.08 ,Capital,LIBERTY GAS GROUP LTD,04242416
Fareham Borough Council,http://statistics.data.gov.uk/id/local-authority/24UE,HOUSING REVENUE ACCOUNT,BV06,RESPONSIVE & VOID MAINTENANCE,5901,DEPT OF DEPUTY CHIEF EXECUTIVE,PREMISES RELATED EXPENDITURE,2,Utilities,37,GAS SERVICING & ASSOC REPAIRS,2029,13/02/2020,668192,24196.79 ,Revenue,LIBERTY GAS GROUP LTD,04242416
Fareham Borough Council,http://statistics.data.gov.uk/id/local-authority/24UE,OTHER REVENUE ACCOUNTS,RV,NON WORK GROUP HOLDING ACCOUNT,RV18,DEPT of STRATEGIC PLANNING and ENVIRONMENT,PREMISES RELATED EXPENDITURE,2,Utilities,37,R & M OF FIXED PLANT,2040,13/02/2020,668192,155.42 ,Revenue,LIBERTY GAS GROUP LTD,04242416
Fareham Borough Council,http://statistics.data.gov.uk/id/local-authority/24UE,OTHER REVENUE ACCOUNTS,RV,NON WORK GROUP HOLDING ACCOUNT,RV18,DEPT of STRATEGIC PLANNING and ENVIRONMENT,PREMISES RELATED EXPENDITURE,2,Utilities,37,R & M OF FIXED PLANT,2040,13/02/2020,668192,65.42 ,Revenue,LIBERTY GAS GROUP LTD,04242416
Fareham Borough Council,http://statistics.data.gov.uk/id/local-authority/24UE,OTHER REVENUE ACCOUNTS,RV,CONTRACT SERVICES D.S.O.,RV14,DEPT of STRATEGIC PLANNING and ENVIRONMENT,EMPLOYEES RELATED EXPENDITURE,1,Human Resources,26,AGENCY WORKERS,1050,21/02/2020,668195,1237.50 ,Revenue,G2 RECRUITMENT SOLUTIONS (G2V),08067630
Fareham Borough Council,http://statistics.data.gov.uk/id/local-authority/24UE,OTHER REVENUE ACCOUNTS,RV,CONTRACT SERVICES D.S.O.,RV14,DEPT of STRATEGIC PLANNING and ENVIRONMENT,EMPLOYEES RELATED EXPENDITURE,1,Human Resources,26,AGENCY WORKERS,1050,13/02/2020,668196,1237.50 ,Revenue,G2 RECRUITMENT SOLUTIONS (G2V),08067630
Fareham Borough Council,http://statistics.data.gov.uk/id/local-authority/24UE,OTHER REVENUE ACCOUNTS,RV,NON WORK GROUP HOLDING ACCOUNT,RV18,DEPT OF LEISURE & COMMUNITY,SUPPLIES & SERVICES,4,Mail Services�,30,POSTAGES,4500,13/02/2020,668201,2284.34 ,Revenue,ROYAL MAIL,04138203
Fareham Borough Council,http://statistics.data.gov.uk/id/local-authority/24UE,GENERAL FUND HOUSING,BV05,HOMELESSNESS,BV05F,DEPT OF DEPUTY CHIEF EXECUTIVE,SUPPLIES & SERVICES,4,Social Community Care Supplies & Services,32,BED & BREAKFAST EXPENSES,4943,07/02/2020,668491,630.00 ,Revenue,WESTCOTE BED AND BREAKFAST,
Fareham Borough Council,http://statistics.data.gov.uk/id/local-authority/24UE,CULTURAL AND RELATED SERVICES,BV09,CULTURE AND HERITAGE,BV09A,DEPT OF LEISURE & COMMUNITY,SUPPLIES & SERVICES,4,Legal Services,28,LEGAL FEES,4400,07/02/2020,668495,1800.00 ,Revenue,SHARPE PRITCHARD,
Fareham Borough Council,http://statistics.data.gov.uk/id/local-authority/24UE,ENVIRONMENT AND REGULATORY SER,BV03,COAST PROTECTION,BV03B,DEPT of STRATEGIC PLANNING and ENVIRONMENT,SUPPLIES & SERVICES,4,Local/Central Government,98,CONSULTANTS FEES,4401,07/02/2020,668498,20064.18 ,Revenue,HAVANT BOROUGH COUNCIL,
Fareham Borough Council,http://statistics.data.gov.uk/id/local-authority/24UE,OTHER REVENUE ACCOUNTS,RV,G.F. EXPENDITURE ON SERVICES,RV10,STREETSCENE,TRANSPORT RELATED EXPENDITURE,3,Unclassified,,VEHICLE LICENCES,3023,07/02/2020,668505,165.00 ,Revenue,DVLA SWANSEA,
Fareham Borough Council,http://statistics.data.gov.uk/id/local-authority/24UE,OTHER REVENUE ACCOUNTS,RV,G.F. EXPENDITURE ON SERVICES,RV10,STREETSCENE,TRANSPORT RELATED EXPENDITURE,3,Unclassified,,VEHICLE LICENCES,3023,07/02/2020,668505,260.00 ,Revenue,DVLA SWANSEA,
Fareham Borough Council,http://statistics.data.gov.uk/id/local-authority/24UE,OTHER REVENUE ACCOUNTS,RV,G.F. EXPENDITURE ON SERVICES,RV10,STREETSCENE,TRANSPORT RELATED EXPENDITURE,3,Unclassified,,VEHICLE LICENCES,3023,07/02/2020,668505,260.00 ,Revenue,DVLA SWANSEA,
Fareham Borough Council,http://statistics.data.gov.uk/id/local-authority/24UE,PLANNING SERVICES,BV13,PLANNING POLICY,BV13C,DEPT of STRATEGIC PLANNING and ENVIRONMENT,SUPPLIES & SERVICES,4,Local/Central Government,98,CONSULTANTS FEES,4401,13/02/2020,668515,13.50 ,Revenue,HAMPSHIRE COUNTY COUNCIL,
Fareham Borough Council,http://statistics.data.gov.uk/id/local-authority/24UE,PLANNING SERVICES,BV13,PLANNING POLICY,BV13C,DEPT of STRATEGIC PLANNING and ENVIRONMENT,SUPPLIES & SERVICES,4,Local/Central Government,98,CONSULTANTS FEES,4401,13/02/2020,668515,5000.00 ,Revenue,HAMPSHIRE COUNTY COUNCIL,
Fareham Borough Council,http://statistics.data.gov.uk/id/local-authority/24UE,ENVIRONMENT AND REGULATORY SER,BV03,CEMETERIES CREM & MORTUARY,BV03A,STREETSCENE,PREMISES RELATED EXPENDITURE,2,Horticultural,24,R&M OF TREE PRESERVATION,2063,07/02/2020,668516,316.20 ,Revenue,CLIMBERS WAY TREE CARE LTD,09154379
Fareham Borough Council,http://statistics.data.gov.uk/id/local-authority/24UE,CULTURAL AND RELATED SERVICES,BV09,RECREATION AND SPORT,BV09B,STREETSCENE,PREMISES RELATED EXPENDITURE,2,Horticultural,24,R&M OF TREE PRESERVATION,2063,07/02/2020,668516,298.27 ,Revenue,CLIMBERS WAY TREE CARE LTD,09154379
Fareham Borough Council,http://statistics.data.gov.uk/id/local-authority/24UE,CULTURAL AND RELATED SERVICES,BV09,RECREATION AND SPORT,BV09B,STREETSCENE,PREMISES RELATED EXPENDITURE,2,Horticultural,24,R&M OF TREE PRESERVATION,2063,07/02/2020,668516,328.13 ,Revenue,CLIMBERS WAY TREE CARE LTD,09154379
Fareham Borough Council,http://statistics.data.gov.uk/id/local-authority/24UE,CULTURAL AND RELATED SERVICES,BV09,RECREATION AND SPORT,BV09B,STREETSCENE,PREMISES RELATED EXPENDITURE,2,Horticultural,24,R&M OF TREE PRESERVATION,2063,07/02/2020,668516,65.62 ,Revenue,CLIMBERS WAY TREE CARE LTD,09154379
Fareham Borough Council,http://statistics.data.gov.uk/id/local-authority/24UE,CULTURAL AND RELATED SERVICES,BV09,RECREATION AND SPORT,BV09B,STREETSCENE,PREMISES RELATED EXPENDITURE,2,Horticultural,24,R&M OF TREE PRESERVATION,2063,07/02/2020,668516,2849.12 ,Revenue,CLIMBERS WAY TREE CARE LTD,09154379
Fareham Borough Council,http://statistics.data.gov.uk/id/local-authority/24UE,CULTURAL AND RELATED SERVICES,BV09,RECREATION AND SPORT,BV09B,STREETSCENE,PREMISES RELATED EXPENDITURE,2,Horticultural,24,R&M OF TREE PRESERVATION,2063,07/02/2020,668517,455.49 ,Revenue,CLIMBERS WAY TREE CARE LTD,09154379
Fareham Borough Council,http://statistics.data.gov.uk/id/local-authority/24UE,CULTURAL AND RELATED SERVICES,BV09,RECREATION AND SPORT,BV09B,STREETSCENE,PREMISES RELATED EXPENDITURE,2,Horticultural,24,R&M OF TREE PRESERVATION,2063,07/02/2020,668517,935.36 ,Revenue,CLIMBERS WAY TREE CARE LTD,09154379
Fareham Borough Council,http://statistics.data.gov.uk/id/local-authority/24UE,CULTURAL AND RELATED SERVICES,BV09,RECREATION AND SPORT,BV09B,STREETSCENE,PREMISES RELATED EXPENDITURE,2,Horticultural,24,R&M OF TREE PRESERVATION,2063,07/02/2020,668517,238.18 ,Revenue,CLIMBERS WAY TREE CARE LTD,09154379
Fareham Borough Council,http://statistics.data.gov.uk/id/local-authority/24UE,CULTURAL AND RELATED SERVICES,BV09,RECREATION AND SPORT,BV09B,STREETSCENE,PREMISES RELATED EXPENDITURE,2,Horticultural,24,R&M OF TREE PRESERVATION,2063,07/02/2020,668518,286.38 ,Revenue,CLIMBERS WAY TREE CARE LTD,09154379
Fareham Borough Council,http://statistics.data.gov.uk/id/local-authority/24UE,CULTURAL AND RELATED SERVICES,BV09,RECREATION AND SPORT,BV09B,STREETSCENE,PREMISES RELATED EXPENDITURE,2,Horticultural,24,R&M OF TREE PRESERVATION,2063,07/02/2020,668518,240.00 ,Revenue,CLIMBERS WAY TREE CARE LTD,09154379
Fareham Borough Council,http://statistics.data.gov.uk/id/local-authority/24UE,CULTURAL AND RELATED SERVICES,BV09,RECREATION AND SPORT,BV09B,STREETSCENE,PREMISES RELATED EXPENDITURE,2,Horticultural,24,R&M OF TREE PRESERVATION,2063,07/02/2020,668518,268.47 ,Revenue,CLIMBERS WAY TREE CARE LTD,09154379
Fareham Borough Council,http://statistics.data.gov.uk/id/local-authority/24UE,CULTURAL AND RELATED SERVICES,BV09,RECREATION AND SPORT,BV09B,STREETSCENE,PREMISES RELATED EXPENDITURE,2,Horticultural,24,R&M OF TREE PRESERVATION,2063,07/02/2020,668518,97.53 ,Revenue,CLIMBERS WAY TREE CARE LTD,09154379
Fareham Borough Council,http://statistics.data.gov.uk/id/local-authority/24UE,CULTURAL AND RELATED SERVICES,BV09,RECREATION AND SPORT,BV09B,STREETSCENE,PREMISES RELATED EXPENDITURE,2,Horticultural,24,R&M OF TREE PRESERVATION,2063,07/02/2020,668518,240.00 ,Revenue,CLIMBERS WAY TREE CARE LTD,09154379
Fareham Borough Council,http://statistics.data.gov.uk/id/local-authority/24UE,CULTURAL AND RELATED SERVICES,BV09,RECREATION AND SPORT,BV09B,STREETSCENE,PREMISES RELATED EXPENDITURE,2,Horticultural,24,R&M OF TREE PRESERVATION,2063,07/02/2020,668518,300.38 ,Revenue,CLIMBERS WAY TREE CARE LTD,09154379
Fareham Borough Council,http://statistics.data.gov.uk/id/local-authority/24UE,CULTURAL AND RELATED SERVICES,BV09,RECREATION AND SPORT,BV09B,STREETSCENE,PREMISES RELATED EXPENDITURE,2,Horticultural,24,R&M OF TREE PRESERVATION,2063,07/02/2020,668518,240.00 ,Revenue,CLIMBERS WAY TREE CARE LTD,09154379
Fareham Borough Council,http://statistics.data.gov.uk/id/local-authority/24UE,CULTURAL AND RELATED SERVICES,BV09,RECREATION AND SPORT,BV09B,STREETSCENE,PREMISES RELATED EXPENDITURE,2,Horticultural,24,R&M OF TREE PRESERVATION,2063,07/02/2020,668518,83.52 ,Revenue,CLIMBERS WAY TREE CARE LTD,09154379
Fareham Borough Council,http://statistics.data.gov.uk/id/local-authority/24UE,CULTURAL AND RELATED SERVICES,BV09,RECREATION AND SPORT,BV09B,STREETSCENE,PREMISES RELATED EXPENDITURE,2,Horticultural,24,R&M OF TREE PRESERVATION,2063,07/02/2020,668518,304.26 ,Revenue,CLIMBERS WAY TREE CARE LTD,09154379
Fareham Borough Council,http://statistics.data.gov.uk/id/local-authority/24UE,CULTURAL AND RELATED SERVICES,BV09,RECREATION AND SPORT,BV09B,STREETSCENE,PREMISES RELATED EXPENDITURE,2,Horticultural,24,R&M OF TREE PRESERVATION,2063,07/02/2020,668518,1202.50 ,Revenue,CLIMBERS WAY TREE CARE LTD,09154379
Fareham Borough Council,http://statistics.data.gov.uk/id/local-authority/24UE,HOUSING REVENUE ACCOUNT,BV06,MAINT OF LAWNS VERGES ETC,5030,DEPT OF DEPUTY CHIEF EXECUTIVE,PREMISES RELATED EXPENDITURE,2,Horticultural,24,R&M OF TREE PRESERVATION,2063,07/02/2020,668518,47.73 ,Revenue,CLIMBERS WAY TREE CARE LTD,09154379
Fareham Borough Council,http://statistics.data.gov.uk/id/local-authority/24UE,HOUSING REVENUE ACCOUNT,BV06,MAINT OF LAWNS VERGES ETC,5030,DEPT OF DEPUTY CHIEF EXECUTIVE,PREMISES RELATED EXPENDITURE,2,Horticultural,24,R&M OF TREE PRESERVATION,2063,07/02/2020,668518,204.15 ,Revenue,CLIMBERS WAY TREE CARE LTD,09154379
Fareham Borough Council,http://statistics.data.gov.uk/id/local-authority/24UE,CULTURAL AND RELATED SERVICES,BV09,RECREATION AND SPORT,BV09B,STREETSCENE,PREMISES RELATED EXPENDITURE,2,Horticultural,24,R&M OF TREE PRESERVATION,2063,21/02/2020,668519,765.00 ,Revenue,GRISTWOOD AND TOMS LIMITED,2665293
Fareham Borough Council,http://statistics.data.gov.uk/id/local-authority/24UE,CULTURAL AND RELATED SERVICES,BV09,RECREATION AND SPORT,BV09B,STREETSCENE,PREMISES RELATED EXPENDITURE,2,Horticultural,24,R&M OF TREE PRESERVATION,2063,21/02/2020,668519,413.00 ,Revenue,GRISTWOOD AND TOMS LIMITED,2665293
Fareham Borough Council,http://statistics.data.gov.uk/id/local-authority/24UE,CULTURAL AND RELATED SERVICES,BV09,RECREATION AND SPORT,BV09B,STREETSCENE,PREMISES RELATED EXPENDITURE,2,Horticultural,24,R&M OF TREE PRESERVATION,2063,21/02/2020,668519,355.00 ,Revenue,GRISTWOOD AND TOMS LIMITED,2665293
Fareham Borough Council,http://statistics.data.gov.uk/id/local-authority/24UE,CULTURAL AND RELATED SERVICES,BV09,RECREATION AND SPORT,BV09B,STREETSCENE,PREMISES RELATED EXPENDITURE,2,Horticultural,24,R&M OF TREE PRESERVATION,2063,21/02/2020,668519,260.00 ,Revenue,GRISTWOOD AND TOMS LIMITED,2665293
Fareham Borough Council,http://statistics.data.gov.uk/id/local-authority/24UE,CULTURAL AND RELATED SERVICES,BV09,RECREATION AND SPORT,BV09B,STREETSCENE,PREMISES RELATED EXPENDITURE,2,Horticultural,24,R&M OF TREE PRESERVATION,2063,21/02/2020,668519,1991.00 ,Revenue,GRISTWOOD AND TOMS LIMITED,2665293
Fareham Borough Council,http://statistics.data.gov.uk/id/local-authority/24UE,ENVIRONMENT AND REGULATORY SER,BV03,CEMETERIES CREM & MORTUARY,BV03A,STREETSCENE,PREMISES RELATED EXPENDITURE,2,Horticultural,24,R&M OF TREE PRESERVATION,2063,07/02/2020,668520,6350.00 ,Revenue,CEDAR TREE SURGEONS,
Fareham Borough Council,http://statistics.data.gov.uk/id/local-authority/24UE,PLANNING SERVICES,BV13,DEVELOPMENT CONTROL,BV13B,DEPT of STRATEGIC PLANNING and ENVIRONMENT,SUPPLIES & SERVICES,4,Consultancy,15,CONSULTANTS FEES,4401,07/02/2020,668521,1300.00 ,Revenue,redacted personal data,
Fareham Borough Council,http://statistics.data.gov.uk/id/local-authority/24UE,CULTURAL AND RELATED SERVICES,BV09,RECREATION AND SPORT,BV09B,STREETSCENE,SUPPLIES & SERVICES,4,"Works - Construction, Repair & Maintenance",39,FURNITURE & EQUIPT. PURCHASES,4000,07/02/2020,668524,48.00 ,Revenue,EARTH ANCHORS LTD,00842961
Fareham Borough Council,http://statistics.data.gov.uk/id/local-authority/24UE,CULTURAL AND RELATED SERVICES,BV09,RECREATION AND SPORT,BV09B,STREETSCENE,SUPPLIES & SERVICES,4,"Works - Construction, Repair & Maintenance",39,FURNITURE & EQUIPT. PURCHASES,4000,07/02/2020,668524,669.00 ,Revenue,EARTH ANCHORS LTD,00842961
Fareham Borough Council,http://statistics.data.gov.uk/id/local-authority/24UE,OTHER REVENUE ACCOUNTS,RV,G.F. EXPENDITURE ON SERVICES,RV10,STREETSCENE,EMPLOYEES RELATED EXPENDITURE,1,Sports & Playground Equipment & Maintenance,33,TRAINING EXPENSES (P.E.Q.),1901,07/02/2020,668531,300.00 ,Revenue,THE PLAY INSPECTION COMPANY LTD,5216477
Fareham Borough Council,http://statistics.data.gov.uk/id/local-authority/24UE,OTHER REVENUE ACCOUNTS,RV,G.F. EXPENDITURE ON SERVICES,RV10,STREETSCENE,EMPLOYEES RELATED EXPENDITURE,1,Sports & Playground Equipment & Maintenance,33,TRAINING EXPENSES (P.E.Q.),1901,07/02/2020,668531,300.00 ,Revenue,THE PLAY INSPECTION COMPANY LTD,5216477
Fareham Borough Council,http://statistics.data.gov.uk/id/local-authority/24UE,OTHER REVENUE ACCOUNTS,RV,G.F. EXPENDITURE ON SERVICES,RV10,STREETSCENE,TRANSPORT RELATED EXPENDITURE,3,Horticultural,24,ROUTINE REPAIRS VEHICLES/PLANT,3010,07/02/2020,668550,594.90 ,Revenue,KINGSWORTHY GARDEN MACHINERY LTD,5321124
Fareham Borough Council,http://statistics.data.gov.uk/id/local-authority/24UE,OTHER REVENUE ACCOUNTS,RV,G.F. EXPENDITURE ON SERVICES,RV10,STREETSCENE,TRANSPORT RELATED EXPENDITURE,3,Horticultural,24,ROUTINE REPAIRS VEHICLES/PLANT,3010,07/02/2020,668551,868.92 ,Revenue,KINGSWORTHY GARDEN MACHINERY LTD,5321124
Fareham Borough Council,http://statistics.data.gov.uk/id/local-authority/24UE,CULTURAL AND RELATED SERVICES,BV09,RECREATION AND SPORT,BV09B,STREETSCENE,SUPPLIES & SERVICES,4,"Works - Construction, Repair & Maintenance",39,SUB-CONTRACTORS CHARGES,4432,07/02/2020,668552,954.00 ,Revenue,IGS FENCING LTD,6438562
Fareham Borough Council,http://statistics.data.gov.uk/id/local-authority/24UE,ENVIRONMENT AND REGULATORY SER,BV03,CEMETERIES CREM & MORTUARY,BV03A,STREETSCENE,PREMISES RELATED EXPENDITURE,2,Utilities,37,ELECTRICITY,2120,07/02/2020,668567,21.13 ,Revenue,BRITISH GAS BUSINESS,03078711
Fareham Borough Council,http://statistics.data.gov.uk/id/local-authority/24UE,FINANCING & INVESTMENT I&E,BVB02,INVESTMENT PROPERTIES,BVB170,DEPT of STRATEGIC PLANNING and ENVIRONMENT,PREMISES RELATED EXPENDITURE,2,Utilities,37,ELECTRICITY,2120,07/02/2020,668567,478.51 ,Revenue,BRITISH GAS BUSINESS,03078711
Fareham Borough Council,http://statistics.data.gov.uk/id/local-authority/24UE,CULTURAL AND RELATED SERVICES,BV09,RECREATION AND SPORT,BV09B,STREETSCENE,PREMISES RELATED EXPENDITURE,2,Utilities,37,ELECTRICITY,2120,07/02/2020,668567,1033.02 ,Revenue,BRITISH GAS BUSINESS,03078711
Fareham Borough Council,http://statistics.data.gov.uk/id/local-authority/24UE,CULTURAL AND RELATED SERVICES,BV09,RECREATION AND SPORT,BV09B,STREETSCENE,PREMISES RELATED EXPENDITURE,2,Utilities,37,ELECTRICITY,2120,07/02/2020,668567,62.18 ,Revenue,BRITISH GAS BUSINESS,03078711
Fareham Borough Council,http://statistics.data.gov.uk/id/local-authority/24UE,CULTURAL AND RELATED SERVICES,BV09,RECREATION AND SPORT,BV09B,DEPT OF LEISURE & COMMUNITY,PREMISES RELATED EXPENDITURE,2,Utilities,37,ELECTRICITY,2120,07/02/2020,668567,178.45 ,Revenue,BRITISH GAS BUSINESS,03078711
Fareham Borough Council,http://statistics.data.gov.uk/id/local-authority/24UE,HIGHWAYS ROADS AND TRANSPORT,BV12,PARKING SERVICES,BV12D,DEPT OF LEISURE & COMMUNITY,PREMISES RELATED EXPENDITURE,2,Utilities,37,ELECTRICITY,2120,07/02/2020,668567,5681.21 ,Revenue,BRITISH GAS BUSINESS,03078711
Fareham Borough Council,http://statistics.data.gov.uk/id/local-authority/24UE,ENVIRONMENT AND REGULATORY SER,BV03,ENVIRONMENTAL HEALTH,BV03C,STREETSCENE,PREMISES RELATED EXPENDITURE,2,Utilities,37,ELECTRICITY,2120,07/02/2020,668567,236.23 ,Revenue,BRITISH GAS BUSINESS,03078711
Fareham Borough Council,http://statistics.data.gov.uk/id/local-authority/24UE,HOUSING REVENUE ACCOUNT,BV06,COMMUNAL HEATING SERVICES,5025,DEPT OF DEPUTY CHIEF EXECUTIVE,PREMISES RELATED EXPENDITURE,2,Utilities,37,ELECTRICITY,2120,07/02/2020,668567,6687.19 ,Revenue,BRITISH GAS BUSINESS,03078711
Fareham Borough Council,http://statistics.data.gov.uk/id/local-authority/24UE,HOUSING REVENUE ACCOUNT,BV06,COMMUNAL HEATING SERVICES,5025,DEPT OF DEPUTY CHIEF EXECUTIVE,PREMISES RELATED EXPENDITURE,2,Utilities,37,ELECTRICITY,2120,07/02/2020,668567,7.86 ,Revenue,BRITISH GAS BUSINESS,03078711
Fareham Borough Council,http://statistics.data.gov.uk/id/local-authority/24UE,HOUSING REVENUE ACCOUNT,BV06,COMMUNAL LIGHTING,5026,DEPT OF DEPUTY CHIEF EXECUTIVE,PREMISES RELATED EXPENDITURE,2,Utilities,37,ELECTRICITY,2120,07/02/2020,668567,3037.95 ,Revenue,BRITISH GAS BUSINESS,03078711
Fareham Borough Council,http://statistics.data.gov.uk/id/local-authority/24UE,HOUSING REVENUE ACCOUNT,BV06,COMMUNAL LIGHTING,5026,DEPT OF DEPUTY CHIEF EXECUTIVE,PREMISES RELATED EXPENDITURE,2,Utilities,37,ELECTRICITY,2120,07/02/2020,668567,593.24 ,Revenue,BRITISH GAS BUSINESS,03078711
Fareham Borough Council,http://statistics.data.gov.uk/id/local-authority/24UE,HOUSING REVENUE ACCOUNT,BV06,OTHER COMMUNAL SERVICES,5034,DEPT OF DEPUTY CHIEF EXECUTIVE,PREMISES RELATED EXPENDITURE,2,Utilities,37,AERIALS & TV OUTLETS,2540,07/02/2020,668567,25.90 ,Revenue,BRITISH GAS BUSINESS,03078711
Fareham Borough Council,http://statistics.data.gov.uk/id/local-authority/24UE,OTHER REVENUE ACCOUNTS,RV,NON WORK GROUP HOLDING ACCOUNT,RV18,DEPT of STRATEGIC PLANNING and ENVIRONMENT,PREMISES RELATED EXPENDITURE,2,Utilities,37,ELECTRICITY,2120,07/02/2020,668567,1599.31 ,Revenue,BRITISH GAS BUSINESS,03078711
Fareham Borough Council,http://statistics.data.gov.uk/id/local-authority/24UE,OTHER REVENUE ACCOUNTS,RV,NON WORK GROUP HOLDING ACCOUNT,RV18,DEPT OF SUPPORT SERVICES,SUPPLIES & SERVICES,4,Human Resources,26,TRAINING (FBC FUNDED),4612,07/02/2020,668569,1300.00 ,Revenue,THE PEOPLE ACADEMY LTD,9213953
Fareham Borough Council,http://statistics.data.gov.uk/id/local-authority/24UE,FINANCING & INVESTMENT I&E,BVB02,INVESTMENT PROPERTIES,BVB170,DEPT of STRATEGIC PLANNING and ENVIRONMENT,PREMISES RELATED EXPENDITURE,2,Facilities & Management Services,19,R & M OF BUILDINGS,2000,07/02/2020,668573,65.00 ,Revenue,TEMPLE LIFTS LTD,2388497
Fareham Borough Council,http://statistics.data.gov.uk/id/local-authority/24UE,FINANCING & INVESTMENT I&E,BVB02,INVESTMENT PROPERTIES,BVB170,DEPT OF LEISURE & COMMUNITY,PREMISES RELATED EXPENDITURE,2,Facilities & Management Services,19,R & M OF LIFTS,2050,07/02/2020,668573,50.00 ,Revenue,TEMPLE LIFTS LTD,2388497
Fareham Borough Council,http://statistics.data.gov.uk/id/local-authority/24UE,HIGHWAYS ROADS AND TRANSPORT,BV12,PARKING SERVICES,BV12D,DEPT OF LEISURE & COMMUNITY,PREMISES RELATED EXPENDITURE,2,Facilities & Management Services,19,R & M OF LIFTS,2050,07/02/2020,668573,355.00 ,Revenue,TEMPLE LIFTS LTD,2388497
Fareham Borough Council,http://statistics.data.gov.uk/id/local-authority/24UE,HOUSING REVENUE ACCOUNT,BV06,RESPONSIVE & VOID MAINTENANCE,5901,DEPT OF DEPUTY CHIEF EXECUTIVE,PREMISES RELATED EXPENDITURE,2,Facilities & Management Services,19,SERVICING,2083,07/02/2020,668573,775.00 ,Revenue,TEMPLE LIFTS LTD,2388497
Fareham Borough Council,http://statistics.data.gov.uk/id/local-authority/24UE,OTHER REVENUE ACCOUNTS,RV,NON WORK GROUP HOLDING ACCOUNT,RV18,DEPT of STRATEGIC PLANNING and ENVIRONMENT,PREMISES RELATED EXPENDITURE,2,Facilities & Management Services,19,R & M OF LIFTS,2050,07/02/2020,668573,275.01 ,Revenue,TEMPLE LIFTS LTD,2388497
Fareham Borough Council,http://statistics.data.gov.uk/id/local-authority/24UE,OTHER REVENUE ACCOUNTS,RV,NON WORK GROUP HOLDING ACCOUNT,RV18,DEPT of STRATEGIC PLANNING and ENVIRONMENT,PREMISES RELATED EXPENDITURE,2,Facilities & Management Services,19,R & M OF LIFTS,2050,07/02/2020,668573,65.00 ,Revenue,TEMPLE LIFTS LTD,2388497
Fareham Borough Council,http://statistics.data.gov.uk/id/local-authority/24UE,HIGHWAYS ROADS AND TRANSPORT,BV12,PARKING SERVICES,BV12D,DEPT OF LEISURE & COMMUNITY,SUPPLIES & SERVICES,4,Street & Traffic Management,35,RECOV.COSTS OF STANDARD CHARGE,4440,28/02/2020,668578,506.40 ,Revenue,PATROL,
Fareham Borough Council,http://statistics.data.gov.uk/id/local-authority/24UE,HOUSING REVENUE ACCOUNT,BV06,RESPONSIVE & VOID MAINTENANCE,5901,DEPT OF DEPUTY CHIEF EXECUTIVE,PREMISES RELATED EXPENDITURE,2,"Works - Construction, Repair & Maintenance",39,GENERAL REPAIRS,2018,07/02/2020,668668,1597.79 ,Revenue,MOUNTJOY LTD,06009150
Fareham Borough Council,http://statistics.data.gov.uk/id/local-authority/24UE,GENERAL FUND HOUSING,BV05,HOUSING BENEFIT ADMINISTRATION,BV05H,DEPT OF DEPUTY CHIEF EXECUTIVE,SUPPLIES & SERVICES,4,Education,17,ICT SOFTWARE LICENCES,4530,07/02/2020,668673,1069.00 ,Revenue,LA DIRECTORIES LTD,04795818
Fareham Borough Council,http://statistics.data.gov.uk/id/local-authority/24UE,CENTRAL SERVICES,BV07,CENTRAL SERVICES TO THE PUBLIC,BV07B,DEPT OF DEPUTY CHIEF EXECUTIVE,SUPPLIES & SERVICES,4,Education,17,ICT SOFTWARE LICENCES,4530,07/02/2020,668673,551.00 ,Revenue,LA DIRECTORIES LTD,04795818
Fareham Borough Council,http://statistics.data.gov.uk/id/local-authority/24UE,HOUSING REVENUE ACCOUNT,BV06,GENERAL ADMINISTRATION EXPENSE,5021,DEPT OF DEPUTY CHIEF EXECUTIVE,SUPPLIES & SERVICES,4,Financial Services,20,PAYMENT CARD CHARGES,4411,07/02/2020,668675,1036.91 ,Revenue,ALLPAY LIMITED ** DIRECT DEBIT **,02933191
Fareham Borough Council,http://statistics.data.gov.uk/id/local-authority/24UE,CAPITAL PROGRAMME - HOUSING SERVICES,CP,NEW HOUSE BUILDING,CP10,CAPITAL - FAREHAM HOUSING CAPITAL,PREMISES RELATED EXPENDITURE,2,"Works - Construction, Repair & Maintenance",39,BUILDING CONSTRUCTION,2602,07/02/2020,668676,71555.90 ,Capital,ASCIA CONSTRUCTION LIMITED,09965592
Fareham Borough Council,http://statistics.data.gov.uk/id/local-authority/24UE,ENVIRONMENT AND REGULATORY SER,BV03,CEMETERIES CREM & MORTUARY,BV03A,STREETSCENE,SUPPLIES & SERVICES,4,Human Resources,26,TRAINING (FBC FUNDED),4612,07/02/2020,668678,93.00 ,Revenue,INSTITUTE OF CEMETERY & CREMATORIUM MGMT,610299
Fareham Borough Council,http://statistics.data.gov.uk/id/local-authority/24UE,ENVIRONMENT AND REGULATORY SER,BV03,CEMETERIES CREM & MORTUARY,BV03A,STREETSCENE,SUPPLIES & SERVICES,4,Human Resources,26,TRAINING (FBC FUNDED),4612,07/02/2020,668678,502.00 ,Revenue,INSTITUTE OF CEMETERY & CREMATORIUM MGMT,610299
Fareham Borough Council,http://statistics.data.gov.uk/id/local-authority/24UE,ENVIRONMENT AND REGULATORY SER,BV03,CEMETERIES CREM & MORTUARY,BV03A,STREETSCENE,SUPPLIES & SERVICES,4,Human Resources,26,TRAINING (FBC FUNDED),4612,07/02/2020,668678,180.00 ,Revenue,INSTITUTE OF CEMETERY & CREMATORIUM MGMT,610299
Fareham Borough Council,http://statistics.data.gov.uk/id/local-authority/24UE,OTHER REVENUE ACCOUNTS,RV,NON WORK GROUP HOLDING ACCOUNT,RV18,STREETSCENE,TRANSPORT RELATED EXPENDITURE,3,Vehicle Management,38,HIRE OF VEHICLES,3210,21/02/2020,668684,1114.74 ,Revenue,TOYOTA MATERIAL HANDLING UK,06265172
Fareham Borough Council,http://statistics.data.gov.uk/id/local-authority/24UE,GENERAL FUND HOUSING,BV05,HOUSING ADVICE,BV05C,DEPT OF DEPUTY CHIEF EXECUTIVE,SUPPLIES & SERVICES,4,Information Communication Technology,27,ICT COMPUTER SOFTWARE,4531,07/02/2020,668687,2000.00 ,Revenue,LOCATA HOUSING SERVICES LIMITED,04419315
Fareham Borough Council,http://statistics.data.gov.uk/id/local-authority/24UE,HOUSING REVENUE ACCOUNT,BV06,RESPONSIVE & VOID MAINTENANCE,5901,DEPT OF DEPUTY CHIEF EXECUTIVE,PREMISES RELATED EXPENDITURE,2,Building Construction Materials,10,VOID COSTS - NOT RECHARGEABLE,2011,21/02/2020,668688,656.07 ,Revenue,AKZONOBEL,02881641
Fareham Borough Council,http://statistics.data.gov.uk/id/local-authority/24UE,CAPITAL PROGRAMME - HOUSING SERVICES,CP,NEW HOUSE BUILDING,CP10,CAPITAL - FAREHAM HOUSING CAPITAL,SUPPLIES & SERVICES,4,"Works - Construction, Repair & Maintenance",39,EMPLOYEES AGENTS FEES,4452,07/02/2020,668694,3376.80 ,Capital,BOULTER MOSSMAN CHARTERED SURVEYORS,06951592
Fareham Borough Council,http://statistics.data.gov.uk/id/local-authority/24UE,OTHER REVENUE ACCOUNTS,RV,CONTRACT SERVICES D.S.O.,RV14,DEPT of STRATEGIC PLANNING and ENVIRONMENT,EMPLOYEES RELATED EXPENDITURE,1,Human Resources,26,AGENCY WORKERS,1050,21/02/2020,668695,953.36 ,Revenue,HAYS SPECIALIST RECRUITMENT LTD,975677
Fareham Borough Council,http://statistics.data.gov.uk/id/local-authority/24UE,OTHER REVENUE ACCOUNTS,RV,NON WORK GROUP HOLDING ACCOUNT,RV18,DEPT OF SUPPORT SERVICES,SUPPLIES & SERVICES,4,Information Communication Technology,27,ICT OPERATING LEASES,4533,21/02/2020,668700,565.01 ,Revenue,ANNODATA LTD,2246366
Fareham Borough Council,http://statistics.data.gov.uk/id/local-authority/24UE,PLANNING SERVICES,BV13,DEVELOPMENT CONTROL,BV13B,DEPT of STRATEGIC PLANNING and ENVIRONMENT,SUPPLIES & SERVICES,4,Consultancy,15,CONSULTANTS FEES,4401,21/02/2020,668701,1500.00 ,Revenue,KR ASSOCIATES (UK) LTD,04813349
Fareham Borough Council,http://statistics.data.gov.uk/id/local-authority/24UE,PLANNING SERVICES,BV13,DEVELOPMENT CONTROL,BV13B,DEPT of STRATEGIC PLANNING and ENVIRONMENT,SUPPLIES & SERVICES,4,Consultancy,15,CONSULTANTS FEES,4401,21/02/2020,668701,1050.00 ,Revenue,KR ASSOCIATES (UK) LTD,04813349
Fareham Borough Council,http://statistics.data.gov.uk/id/local-authority/24UE,PLANNING SERVICES,BV13,DEVELOPMENT CONTROL,BV13B,DEPT of STRATEGIC PLANNING and ENVIRONMENT,SUPPLIES & SERVICES,4,Consultancy,15,CONSULTANTS FEES,4401,21/02/2020,668701,1400.00 ,Revenue,KR ASSOCIATES (UK) LTD,04813349
Fareham Borough Council,http://statistics.data.gov.uk/id/local-authority/24UE,PLANNING SERVICES,BV13,DEVELOPMENT CONTROL,BV13B,DEPT of STRATEGIC PLANNING and ENVIRONMENT,SUPPLIES & SERVICES,4,Consultancy,15,CONSULTANTS FEES,4401,21/02/2020,668701,1800.00 ,Revenue,KR ASSOCIATES (UK) LTD,04813349
Fareham Borough Council,http://statistics.data.gov.uk/id/local-authority/24UE,GENERAL FUND HOUSING,BV05,HOMELESSNESS,BV05F,DEPT OF DEPUTY CHIEF EXECUTIVE,SUPPLIES & SERVICES,4,Street & Traffic Management,35,GRAPHIC DESIGN SERVICE,4445,07/02/2020,668705,950.40 ,Revenue,BEMROSEBOOTH PARAGAN LTD,03978232
Fareham Borough Council,http://statistics.data.gov.uk/id/local-authority/24UE,CENTRAL SERVICES,BV07,CENTRAL SERVICES TO THE PUBLIC,BV07B,DEPT OF DEPUTY CHIEF EXECUTIVE,SUPPLIES & SERVICES,4,Information Communication Technology,27,ICT SOFTWARE LICENCES,4530,13/02/2020,668708,1250.00 ,Revenue,OCELLA,02837294
Fareham Borough Council,http://statistics.data.gov.uk/id/local-authority/24UE,GENERAL FUND HOUSING,BV05,HOUSING BENEFIT ADMINISTRATION,BV05H,DEPT OF DEPUTY CHIEF EXECUTIVE,SUPPLIES & SERVICES,4,Local/Central Government,98,ICT SOFTWARE LICENCES,4530,07/02/2020,668709,1.70 ,Revenue,TAMESIDE METROPOLITAN BOROUGH,
Fareham Borough Council,http://statistics.data.gov.uk/id/local-authority/24UE,GENERAL FUND HOUSING,BV05,HOUSING BENEFIT ADMINISTRATION,BV05H,DEPT OF DEPUTY CHIEF EXECUTIVE,SUPPLIES & SERVICES,4,Local/Central Government,98,ICT SOFTWARE LICENCES,4530,07/02/2020,668709,14.00 ,Revenue,TAMESIDE METROPOLITAN BOROUGH,
Fareham Borough Council,http://statistics.data.gov.uk/id/local-authority/24UE,GENERAL FUND HOUSING,BV05,HOUSING BENEFIT ADMINISTRATION,BV05H,DEPT OF DEPUTY CHIEF EXECUTIVE,SUPPLIES & SERVICES,4,Local/Central Government,98,ICT SOFTWARE LICENCES,4530,07/02/2020,668709,871.40 ,Revenue,TAMESIDE METROPOLITAN BOROUGH,
Fareham Borough Council,http://statistics.data.gov.uk/id/local-authority/24UE,OTHER REVENUE ACCOUNTS,RV,NON WORK GROUP HOLDING ACCOUNT,RV18,DEPT OF DEPUTY CHIEF EXECUTIVE,SUPPLIES & SERVICES,4,Local/Central Government,98,OTHER DEBT COLLECTION COSTS,4404,07/02/2020,668709,6.44 ,Revenue,TAMESIDE METROPOLITAN BOROUGH,
Fareham Borough Council,http://statistics.data.gov.uk/id/local-authority/24UE,OTHER REVENUE ACCOUNTS,RV,NON WORK GROUP HOLDING ACCOUNT,RV18,DEPT OF SUPPORT SERVICES,SUPPLIES & SERVICES,4,Information Communication Technology,27,ICT SOFTWARE LICENCES,4530,07/02/2020,668710,5927.47 ,Revenue,ADVANCED BUSINESS SOLUTIONS,03214465
Fareham Borough Council,http://statistics.data.gov.uk/id/local-authority/24UE,CAPITAL PROGRAMME - HOUSING SERVICES,CP,RENOVATION OF L.A. DWELLINGS,CP10,CAPITAL - FAREHAM HOUSING CAPITAL,PREMISES RELATED EXPENDITURE,2,"Works - Construction, Repair & Maintenance",39,VOID COSTS - NOT RECHARGEABLE,2011,07/02/2020,668714,37248.05 ,Capital,MOUNTJOY LTD,06009150
Fareham Borough Council,http://statistics.data.gov.uk/id/local-authority/24UE,CAPITAL PROGRAMME - HOUSING SERVICES,CP,RENOVATION OF L.A. DWELLINGS,CP10,CAPITAL - FAREHAM HOUSING CAPITAL,PREMISES RELATED EXPENDITURE,2,"Works - Construction, Repair & Maintenance",39,VOID COSTS - NOT RECHARGEABLE,2011,07/02/2020,668714,3147.25 ,Capital,MOUNTJOY LTD,06009150
Fareham Borough Council,http://statistics.data.gov.uk/id/local-authority/24UE,CAPITAL PROGRAMME - HOUSING SERVICES,CP,RENOVATION OF L.A. DWELLINGS,CP10,CAPITAL - FAREHAM HOUSING CAPITAL,PREMISES RELATED EXPENDITURE,2,"Works - Construction, Repair & Maintenance",39,VOID COSTS - NOT RECHARGEABLE,2011,07/02/2020,668714,2081.00 ,Capital,MOUNTJOY LTD,06009150
Fareham Borough Council,http://statistics.data.gov.uk/id/local-authority/24UE,HOUSING REVENUE ACCOUNT,BV06,RESPONSIVE & VOID MAINTENANCE,5901,DEPT OF DEPUTY CHIEF EXECUTIVE,PREMISES RELATED EXPENDITURE,2,"Works - Construction, Repair & Maintenance",39,VOID COSTS - NOT RECHARGEABLE,2011,07/02/2020,668714,11056.38 ,Revenue,MOUNTJOY LTD,06009150
Fareham Borough Council,http://statistics.data.gov.uk/id/local-authority/24UE,ENVIRONMENT AND REGULATORY SER,BV03,WASTE COLLECTION,BV03G,STREETSCENE,SUPPLIES & SERVICES,4,Environmental Services,18,FURNITURE & EQUIPT. PURCHASES,4000,13/02/2020,668715,2096.00 ,Revenue,ENVIRONMENTAL SOLUTIONS EUROPE (ESE),02327763
Fareham Borough Council,http://statistics.data.gov.uk/id/local-authority/24UE,OTHER REVENUE ACCOUNTS,RV,NON WORK GROUP HOLDING ACCOUNT,RV18,DEPT OF SUPPORT SERVICES,SUPPLIES & SERVICES,4,Consultancy,15,ICT CLOUD,4536,07/02/2020,668719,824.52 ,Revenue,BOTTOMLINE TECHNOLOGIES LTD,03693514
Fareham Borough Council,http://statistics.data.gov.uk/id/local-authority/24UE,CAPITAL PROGRAMME - HOUSING SERVICES,CP,NEW HOUSE BUILDING,CP10,CAPITAL - FAREHAM HOUSING CAPITAL,SUPPLIES & SERVICES,4,"Works - Construction, Repair & Maintenance",39,SURVEYORS FEES,4416,07/02/2020,668720,1080.00 ,Capital,MCANDREW MARTIN LTD,06844071
Fareham Borough Council,http://statistics.data.gov.uk/id/local-authority/24UE,OTHER REVENUE ACCOUNTS,RV,CONTRACT SERVICES D.S.O.,RV14,DEPT of STRATEGIC PLANNING and ENVIRONMENT,SUPPLIES & SERVICES,4,Local/Central Government,98,SUB-CONTRACTORS CHARGES,4432,07/02/2020,668722,857.00 ,Revenue,TEST VALLEY BOROUGH COUNCIL,
Fareham Borough Council,http://statistics.data.gov.uk/id/local-authority/24UE,CORPORATE & DEMOCRATIC CORE,BV07A,CORPORATE MANAGEMENT,BV07AB,DEPT OF DEPUTY CHIEF EXECUTIVE,SUPPLIES & SERVICES,4,Consultancy,15,EXTERNAL AUDIT FEES,4419,07/02/2020,668723,15320.00 ,Revenue,KPMG LLP,OC301540
Fareham Borough Council,http://statistics.data.gov.uk/id/local-authority/24UE,ENVIRONMENT AND REGULATORY SER,BV03,WASTE COLLECTION,BV03G,STREETSCENE,TRANSPORT RELATED EXPENDITURE,3,Vehicle Management,38,HIRE OF VEHICLES,3210,07/02/2020,668781,3420.00 ,Revenue,REFUSE VEHICLE SOLUTIONS LTD,07306136
Fareham Borough Council,http://statistics.data.gov.uk/id/local-authority/24UE,OTHER REVENUE ACCOUNTS,RV,NON WORK GROUP HOLDING ACCOUNT,RV18,DEPT OF SUPPORT SERVICES,SUPPLIES & SERVICES,4,Human Resources,26,GRANTS AND SUBSCRIPTIONS,4700,21/02/2020,668786,2820.00 ,Revenue,THOMAS INTERNATIONAL UK LTD,2518079
Fareham Borough Council,http://statistics.data.gov.uk/id/local-authority/24UE,OTHER REVENUE ACCOUNTS,RV,NON WORK GROUP HOLDING ACCOUNT,RV18,DEPT OF SUPPORT SERVICES,SUPPLIES & SERVICES,4,Information Communication Technology,27,ICT HARDWARE,4532,07/02/2020,668789,364.00 ,Revenue,ASPIRE TECHNOLOGY SOLUTIONS LTD,06031628
Fareham Borough Council,http://statistics.data.gov.uk/id/local-authority/24UE,OTHER REVENUE ACCOUNTS,RV,NON WORK GROUP HOLDING ACCOUNT,RV18,DEPT OF SUPPORT SERVICES,SUPPLIES & SERVICES,4,Information Communication Technology,27,ICT HARDWARE,4532,07/02/2020,668789,508.00 ,Revenue,ASPIRE TECHNOLOGY SOLUTIONS LTD,06031628
Fareham Borough Council,http://statistics.data.gov.uk/id/local-authority/24UE,OTHER REVENUE ACCOUNTS,RV,NON WORK GROUP HOLDING ACCOUNT,RV18,DEPT OF SUPPORT SERVICES,SUPPLIES & SERVICES,4,Information Communication Technology,27,ICT HARDWARE,4532,07/02/2020,668789,508.00 ,Revenue,ASPIRE TECHNOLOGY SOLUTIONS LTD,06031628
Fareham Borough Council,http://statistics.data.gov.uk/id/local-authority/24UE,OTHER REVENUE ACCOUNTS,RV,NON WORK GROUP HOLDING ACCOUNT,RV18,DEPT OF SUPPORT SERVICES,SUPPLIES & SERVICES,4,Information Communication Technology,27,ICT HARDWARE,4532,07/02/2020,668789,300.00 ,Revenue,ASPIRE TECHNOLOGY SOLUTIONS LTD,06031628
Fareham Borough Council,http://statistics.data.gov.uk/id/local-authority/24UE,OTHER REVENUE ACCOUNTS,RV,NON WORK GROUP HOLDING ACCOUNT,RV18,DEPT OF SUPPORT SERVICES,SUPPLIES & SERVICES,4,Information Communication Technology,27,ICT DATA LINES,4535,07/02/2020,668789,368.00 ,Revenue,ASPIRE TECHNOLOGY SOLUTIONS LTD,06031628
Fareham Borough Council,http://statistics.data.gov.uk/id/local-authority/24UE,OTHER REVENUE ACCOUNTS,RV,NON WORK GROUP HOLDING ACCOUNT,RV18,DEPT OF SUPPORT SERVICES,SUPPLIES & SERVICES,4,Information Communication Technology,27,ICT DATA LINES,4535,07/02/2020,668789,319.00 ,Revenue,ASPIRE TECHNOLOGY SOLUTIONS LTD,06031628
Fareham Borough Council,http://statistics.data.gov.uk/id/local-authority/24UE,HIGHWAYS ROADS AND TRANSPORT,BV12,PARKING SERVICES,BV12D,DEPT OF LEISURE & COMMUNITY,SUPPLIES & SERVICES,4,Information Communication Technology,27,MOBILE TELEPHONES,4514,21/02/2020,668791,768.00 ,Revenue,VODAFONE LIMITED,01471587
Fareham Borough Council,http://statistics.data.gov.uk/id/local-authority/24UE,CULTURAL AND RELATED SERVICES,BV09,RECREATION AND SPORT,BV09B,STREETSCENE,PREMISES RELATED EXPENDITURE,2,Environmental Services,18,R & M OF BUILDINGS,2000,07/02/2020,668793,323.48 ,Revenue,CLEARWATER TECHNOLOGY LTD,03659610
Fareham Borough Council,http://statistics.data.gov.uk/id/local-authority/24UE,CULTURAL AND RELATED SERVICES,BV09,CULTURE AND HERITAGE,BV09A,DEPT OF LEISURE & COMMUNITY,PREMISES RELATED EXPENDITURE,2,Environmental Services,18,R & M OF BUILDINGS,2000,07/02/2020,668793,48.54 ,Revenue,CLEARWATER TECHNOLOGY LTD,03659610
Fareham Borough Council,http://statistics.data.gov.uk/id/local-authority/24UE,CULTURAL AND RELATED SERVICES,BV09,RECREATION AND SPORT,BV09B,DEPT OF LEISURE & COMMUNITY,PREMISES RELATED EXPENDITURE,2,Environmental Services,18,R & M OF BUILDINGS,2000,07/02/2020,668793,97.04 ,Revenue,CLEARWATER TECHNOLOGY LTD,03659610
Fareham Borough Council,http://statistics.data.gov.uk/id/local-authority/24UE,ENVIRONMENT AND REGULATORY SER,BV03,ENVIRONMENTAL HEALTH,BV03C,STREETSCENE,PREMISES RELATED EXPENDITURE,2,Environmental Services,18,R & M OF BUILDINGS,2000,07/02/2020,668793,48.52 ,Revenue,CLEARWATER TECHNOLOGY LTD,03659610
Fareham Borough Council,http://statistics.data.gov.uk/id/local-authority/24UE,HOUSING REVENUE ACCOUNT,BV06,RESPONSIVE & VOID MAINTENANCE,5901,DEPT OF DEPUTY CHIEF EXECUTIVE,PREMISES RELATED EXPENDITURE,2,Environmental Services,18,R & M OF BUILDINGS,2000,07/02/2020,668793,161.74 ,Revenue,CLEARWATER TECHNOLOGY LTD,03659610
Fareham Borough Council,http://statistics.data.gov.uk/id/local-authority/24UE,OTHER REVENUE ACCOUNTS,RV,NON WORK GROUP HOLDING ACCOUNT,RV18,DEPT of STRATEGIC PLANNING and ENVIRONMENT,PREMISES RELATED EXPENDITURE,2,Environmental Services,18,R & M OF BUILDINGS,2000,07/02/2020,668793,857.23 ,Revenue,CLEARWATER TECHNOLOGY LTD,03659610
Fareham Borough Council,http://statistics.data.gov.uk/id/local-authority/24UE,OTHER REVENUE ACCOUNTS,RV,NON WORK GROUP HOLDING ACCOUNT,RV18,DEPT of STRATEGIC PLANNING and ENVIRONMENT,PREMISES RELATED EXPENDITURE,2,Environmental Services,18,R & M OF BUILDINGS,2000,07/02/2020,668793,32.35 ,Revenue,CLEARWATER TECHNOLOGY LTD,03659610
Fareham Borough Council,http://statistics.data.gov.uk/id/local-authority/24UE,OTHER REVENUE ACCOUNTS,RV,NON WORK GROUP HOLDING ACCOUNT,RV18,DEPT OF LEISURE & COMMUNITY,SUPPLIES & SERVICES,4,Mail Services�,30,POSTAGES,4500,07/02/2020,668794,3000.00 ,Revenue,NEOPOST LIMITED,02658324
Fareham Borough Council,http://statistics.data.gov.uk/id/local-authority/24UE,OTHER REVENUE ACCOUNTS,RV,NON WORK GROUP HOLDING ACCOUNT,RV18,DEPT OF SUPPORT SERVICES,SUPPLIES & SERVICES,4,Information Communication Technology,27,ICT SOFTWARE LICENCES,4530,07/02/2020,668795,2754.73 ,Revenue,TIMICO LTD,04841830
Fareham Borough Council,http://statistics.data.gov.uk/id/local-authority/24UE,OTHER REVENUE ACCOUNTS,RV,NON WORK GROUP HOLDING ACCOUNT,RV18,DEPT OF SUPPORT SERVICES,EMPLOYEES RELATED EXPENDITURE,1,Healthcare,31,MEDICAL EXPENSES,1907,07/02/2020,668801,505.00 ,Revenue,CHARTERHOUSE COUNSELLING,
Fareham Borough Council,http://statistics.data.gov.uk/id/local-authority/24UE,CULTURAL AND RELATED SERVICES,BV09,RECREATION AND SPORT,BV09B,STREETSCENE,PREMISES RELATED EXPENDITURE,2,Horticultural,24,R&M OF TREE PRESERVATION,2063,13/02/2020,668802,2498.00 ,Revenue,CLIMBERS WAY TREE CARE LTD,09154379
Fareham Borough Council,http://statistics.data.gov.uk/id/local-authority/24UE,CULTURAL AND RELATED SERVICES,BV09,RECREATION AND SPORT,BV09B,STREETSCENE,PREMISES RELATED EXPENDITURE,2,Horticultural,24,R&M OF TREE PRESERVATION,2063,13/02/2020,668803,6245.15 ,Revenue,CLIMBERS WAY TREE CARE LTD,09154379
Fareham Borough Council,http://statistics.data.gov.uk/id/local-authority/24UE,CORPORATE & DEMOCRATIC CORE,BV07A,CORPORATE MANAGEMENT,BV07AB,DEPT OF DEPUTY CHIEF EXECUTIVE,SUPPLIES & SERVICES,4,Human Resources,26,GRANTS AND SUBSCRIPTIONS,4700,13/02/2020,669018,155.00 ,Revenue,INSTITUTE OF PUBLIC FINANCE LTD,02376684
Fareham Borough Council,http://statistics.data.gov.uk/id/local-authority/24UE,CENTRAL SERVICES,BV07,CENTRAL SERVICES TO THE PUBLIC,BV07B,DEPT OF DEPUTY CHIEF EXECUTIVE,SUPPLIES & SERVICES,4,Human Resources,26,GRANTS AND SUBSCRIPTIONS,4700,13/02/2020,669018,155.00 ,Revenue,INSTITUTE OF PUBLIC FINANCE LTD,02376684
Fareham Borough Council,http://statistics.data.gov.uk/id/local-authority/24UE,OTHER REVENUE ACCOUNTS,RV,NON WORK GROUP HOLDING ACCOUNT,RV18,DEPT OF DEPUTY CHIEF EXECUTIVE,SUPPLIES & SERVICES,4,Human Resources,26,GRANTS AND SUBSCRIPTIONS,4700,13/02/2020,669018,1080.00 ,Revenue,INSTITUTE OF PUBLIC FINANCE LTD,02376684
Fareham Borough Council,http://statistics.data.gov.uk/id/local-authority/24UE,OTHER REVENUE ACCOUNTS,RV,NON WORK GROUP HOLDING ACCOUNT,RV18,DEPT OF DEPUTY CHIEF EXECUTIVE,SUPPLIES & SERVICES,4,Human Resources,26,GRANTS AND SUBSCRIPTIONS,4700,13/02/2020,669018,460.00 ,Revenue,INSTITUTE OF PUBLIC FINANCE LTD,02376684
Fareham Borough Council,http://statistics.data.gov.uk/id/local-authority/24UE,BALANCE SHEET,BS,BAL. SHEET - GENERAL FUND,BS1,BAL. SHEET - GENERAL FUND,PERSONAL ACCOUNTS,BS210,Vehicle Management,38,CAR LEASING ACCOUNT,P253,28/02/2020,669026,652.56 ,Balance Sheet,HITACHI CAPITAL VEHICLE SOLUTIONS,1630491
Fareham Borough Council,http://statistics.data.gov.uk/id/local-authority/24UE,BALANCE SHEET,BS,BAL. SHEET - GENERAL FUND,BS1,BAL. SHEET - GENERAL FUND,PERSONAL ACCOUNTS,BS210,Vehicle Management,38,CAR LEASING ACCOUNT,P253,28/02/2020,669026,1187.90 ,Balance Sheet,HITACHI CAPITAL VEHICLE SOLUTIONS,1630491
Fareham Borough Council,http://statistics.data.gov.uk/id/local-authority/24UE,BALANCE SHEET,BS,FMS BAL.SHEET & CONTROL ACCT.,BS1,FMS BAL.SHEET & CONTROL ACCT.,CONTROL ACCOUNTS,C001,Financial Services,20,GOVT PROCURE CARD-CASH CONTROL,C114,13/02/2020,669039,9533.88 ,Balance Sheet,NATWEST COMMERCIAL CARDS,929027
Fareham Borough Council,http://statistics.data.gov.uk/id/local-authority/24UE,BALANCE SHEET,BS,FMS BAL.SHEET & CONTROL ACCT.,BS1,FMS BAL.SHEET & CONTROL ACCT.,CONTROL ACCOUNTS,C001,Financial Services,20,GOVT PROCURE CARD-CASH CONTROL,C114,13/02/2020,669040,2136.18 ,Balance Sheet,NATWEST COMMERCIAL CARDS,929027
Fareham Borough Council,http://statistics.data.gov.uk/id/local-authority/24UE,GENERAL FUND HOUSING,BV05,HOUSING ADVICE,BV05C,DEPT OF DEPUTY CHIEF EXECUTIVE,SUPPLIES & SERVICES,4,Facilities & Management Services,19,LOCAL ASSISTANCE PAYMENT,4727,13/02/2020,669041,1702.00 ,Revenue,redacted personal data,
Fareham Borough Council,http://statistics.data.gov.uk/id/local-authority/24UE,CENTRAL SERVICES,BV07,CENTRAL SERVICES TO THE PUBLIC,BV07B,DEPT OF DEPUTY CHIEF EXECUTIVE,SUPPLIES & SERVICES,4,Financial Services,20,SPECIAL EXPENDITURE,4999,13/02/2020,669046,412.87 ,Revenue,ALLPAY LIMITED ** DIRECT DEBIT **,02933191
Fareham Borough Council,http://statistics.data.gov.uk/id/local-authority/24UE,CENTRAL SERVICES,BV07,CENTRAL SERVICES TO THE PUBLIC,BV07B,DEPT OF DEPUTY CHIEF EXECUTIVE,SUPPLIES & SERVICES,4,Financial Services,20,BANK CHARGES,4954,13/02/2020,669046,677.17 ,Revenue,ALLPAY LIMITED ** DIRECT DEBIT **,02933191
Fareham Borough Council,http://statistics.data.gov.uk/id/local-authority/24UE,CULTURAL AND RELATED SERVICES,BV09,CULTURE AND HERITAGE,BV09A,STREETSCENE,PREMISES RELATED EXPENDITURE,2,Utilities,37,ELECTRICITY,2120,13/02/2020,669050,48.51 ,Revenue,EDF ENERGY,02366852
Fareham Borough Council,http://statistics.data.gov.uk/id/local-authority/24UE,ENVIRONMENT AND REGULATORY SER,BV03,ENVIRONMENTAL HEALTH,BV03C,DEPT OF SUPPORT SERVICES,PREMISES RELATED EXPENDITURE,2,Utilities,37,ELECTRICITY,2120,13/02/2020,669050,211.71 ,Revenue,EDF ENERGY,02366852
Fareham Borough Council,http://statistics.data.gov.uk/id/local-authority/24UE,HIGHWAYS ROADS AND TRANSPORT,BV12,PARKING SERVICES,BV12D,DEPT OF LEISURE & COMMUNITY,PREMISES RELATED EXPENDITURE,2,Utilities,37,ELECTRICITY,2120,13/02/2020,669050,77.05 ,Revenue,EDF ENERGY,02366852
Fareham Borough Council,http://statistics.data.gov.uk/id/local-authority/24UE,HOUSING REVENUE ACCOUNT,BV06,COMMUNAL LIGHTING,5026,DEPT OF DEPUTY CHIEF EXECUTIVE,PREMISES RELATED EXPENDITURE,2,Utilities,37,ELECTRICITY,2120,13/02/2020,669050,587.16 ,Revenue,EDF ENERGY,02366852
Fareham Borough Council,http://statistics.data.gov.uk/id/local-authority/24UE,GENERAL FUND HOUSING,BV05,HOUSING ADVICE,BV05C,DEPT OF DEPUTY CHIEF EXECUTIVE,SUPPLIES & SERVICES,4,Unclassified,,LOCAL ASSISTANCE PAYMENT,4727,13/02/2020,669051,1335.00 ,Revenue,redacted personal data,
Fareham Borough Council,http://statistics.data.gov.uk/id/local-authority/24UE,CORPORATE & DEMOCRATIC CORE,BV07A,CORPORATE MANAGEMENT,BV07AB,DEPT OF SUPPORT SERVICES,EMPLOYEES RELATED EXPENDITURE,1,Financial Services,20,APPRENTICESHIP LEVY,1912,13/02/2020,669056,4102.00 ,Revenue,INLAND REVENUE,
Fareham Borough Council,http://statistics.data.gov.uk/id/local-authority/24UE,BALANCE SHEET,BS,BAL. SHEET - COLLECTION FUND,BS1,BAL. SHEET - COLLECTION FUND,PERSONAL ACCOUNTS,BS210,Local/Central Government,98,HAMPSHIRE C.C. PRECEPT ACCOUNT,P157,13/02/2020,669058,4696674.00 ,Balance Sheet,HAMPSHIRE COUNTY COUNCIL,
Fareham Borough Council,http://statistics.data.gov.uk/id/local-authority/24UE,BALANCE SHEET,BS,BAL. SHEET - COLLECTION FUND,BS1,BAL. SHEET - COLLECTION FUND,PERSONAL ACCOUNTS,BS210,Local/Central Government,,HAMPSHIRE FIRE/RESCUE PRECEPT,P161,13/02/2020,669059,276409.00 ,Balance Sheet,HAMPSHIRE FIRE & RESCUE AUTHORITY,
Fareham Borough Council,http://statistics.data.gov.uk/id/local-authority/24UE,BALANCE SHEET,BS,BAL. SHEET - COLLECTION FUND,BS1,BAL. SHEET - COLLECTION FUND,PERSONAL ACCOUNTS,BS210,Local/Central Government,,HAMPSHIRE POLICE PRECEPT,P159,13/02/2020,669060,710257.00 ,Balance Sheet,POLICE & CRIME COMMISSIONER HAMPSHIRE,
Fareham Borough Council,http://statistics.data.gov.uk/id/local-authority/24UE,HIGHWAYS ROADS AND TRANSPORT,BV12,PUBLIC TRANSPORT,BV12E,STREETSCENE,PREMISES RELATED EXPENDITURE,2,Highway Equipment & Materials�,23,R & M OF BUILDINGS,2000,13/02/2020,669068,3900.00 ,Revenue,G W SHELTER SOLUTIONS LTD,11996824
Fareham Borough Council,http://statistics.data.gov.uk/id/local-authority/24UE,ENVIRONMENT AND REGULATORY SER,BV03,STREET CLEANSING,BV03F,STREETSCENE,EMPLOYEES RELATED EXPENDITURE,1,Human Resources,26,AGENCY WORKERS,1050,13/02/2020,669070,1823.90 ,Revenue,BUZZ PEOPLE RECRUITMENT LTD,07908887
Fareham Borough Council,http://statistics.data.gov.uk/id/local-authority/24UE,BALANCE SHEET,BS,BAL. SHEET - D.S.O.,BS1,BAL. SHEET - D.S.O.,TOTAL ASSETS LESS LIABILITIES,BS100,Vehicle Management,38,MATERIALS SUSPENSE ACCOUNT (VE,A016,28/02/2020,669071,15730.16 ,Balance Sheet,WESSEX PETROLEUM LTD,01024472
Fareham Borough Council,http://statistics.data.gov.uk/id/local-authority/24UE,CORPORATE & DEMOCRATIC CORE,BV07A,CORPORATE MANAGEMENT,BV07AB,DEPT OF DEPUTY CHIEF EXECUTIVE,SUPPLIES & SERVICES,4,Facilities & Management Services,19,EXTERNAL PRINTING,4310,13/02/2020,669077,647.00 ,Revenue,HOLBROOKS PRINTERS LTD,02826031
Fareham Borough Council,http://statistics.data.gov.uk/id/local-authority/24UE,ENVIRONMENT AND REGULATORY SER,BV03,STREET CLEANSING,BV03F,STREETSCENE,TRANSPORT RELATED EXPENDITURE,3,Environmental Services,18,ROUTINE REPAIRS VEHICLES/PLANT,3010,13/02/2020,669079,806.42 ,Revenue,AEBI SCHMIDT UK LTD,557725
Fareham Borough Council,http://statistics.data.gov.uk/id/local-authority/24UE,ENVIRONMENT AND REGULATORY SER,BV03,STREET CLEANSING,BV03F,STREETSCENE,TRANSPORT RELATED EXPENDITURE,3,Environmental Services,18,ROUTINE REPAIRS VEHICLES/PLANT,3010,13/02/2020,669080,753.82 ,Revenue,AEBI SCHMIDT UK LTD,557725
Fareham Borough Council,http://statistics.data.gov.uk/id/local-authority/24UE,ENVIRONMENT AND REGULATORY SER,BV03,WASTE COLLECTION,BV03G,STREETSCENE,TRANSPORT RELATED EXPENDITURE,3,Vehicle Management,38,ROUTINE REPAIRS VEHICLES/PLANT,3010,21/02/2020,669083,2027.81 ,Revenue,DENNIS EAGLE LIMITED,03794455
Fareham Borough Council,http://statistics.data.gov.uk/id/local-authority/24UE,HOUSING REVENUE ACCOUNT,BV06,RESPONSIVE & VOID MAINTENANCE,5901,DEPT OF DEPUTY CHIEF EXECUTIVE,PREMISES RELATED EXPENDITURE,2,Environmental Services,18,SPECIAL REFUSE COLLECTIONS,2750,13/02/2020,669105,2834.60 ,Revenue,VEOLIA ES HAMPSHIRE LIMITED,02817856
Fareham Borough Council,http://statistics.data.gov.uk/id/local-authority/24UE,OTHER REVENUE ACCOUNTS,RV,NON WORK GROUP HOLDING ACCOUNT,RV18,DEPT of STRATEGIC PLANNING and ENVIRONMENT,PREMISES RELATED EXPENDITURE,2,"Works - Construction, Repair & Maintenance",39,R & M OF FIXED PLANT,2040,13/02/2020,669108,1903.16 ,Revenue,ACE FILTRATION LTD,1734727
Fareham Borough Council,http://statistics.data.gov.uk/id/local-authority/24UE,CAPITAL PROGRAMME - OTHER SERVICES,CP,CAPITAL PROPERTY SERVICES,CP23,CAPITAL - FINANCE & RESOURCES CAPITAL,PREMISES RELATED EXPENDITURE,2,"Works - Construction, Repair & Maintenance",39,R & M OF BUILDINGS,2000,13/02/2020,669112,8184.55 ,Capital,BCG ELECTRICAL SERVICES LIMITED,5097428
Fareham Borough Council,http://statistics.data.gov.uk/id/local-authority/24UE,HIGHWAYS ROADS AND TRANSPORT,BV12,PARKING SERVICES,BV12D,DEPT OF LEISURE & COMMUNITY,SUPPLIES & SERVICES,4,Consultancy,15,CONSULTANTS FEES,4401,13/02/2020,669119,3200.00 ,Revenue,CONCRETE & CORROSION CONSULTANCY PRACTICE,3590312
Fareham Borough Council,http://statistics.data.gov.uk/id/local-authority/24UE,CAPITAL PROGRAMME - HOUSING SERVICES,CP,NEW HOUSE BUILDING,CP10,CAPITAL - FAREHAM HOUSING CAPITAL,SUPPLIES & SERVICES,4,Environmental Services,18,CONSULTANTS FEES,4401,13/02/2020,669120,645.00 ,Capital,ECOLOGICAL SURVEY & ASSESMENT (ECOSA) LTD,6129868
Fareham Borough Council,http://statistics.data.gov.uk/id/local-authority/24UE,CULTURAL AND RELATED SERVICES,BV09,CULTURE AND HERITAGE,BV09A,DEPT OF LEISURE & COMMUNITY,PREMISES RELATED EXPENDITURE,2,Building Construction Materials,10,R & M OF FIXED PLANT,2040,13/02/2020,669121,1774.50 ,Revenue,HSS HIRE SERVICE GROUP PLC,00644490
Fareham Borough Council,http://statistics.data.gov.uk/id/local-authority/24UE,CAPITAL PROGRAMME - HOUSING SERVICES,CP,NEW HOUSE BUILDING,CP10,CAPITAL - FAREHAM HOUSING CAPITAL,SUPPLIES & SERVICES,4,"Works - Construction, Repair & Maintenance",39,CONSULTANTS FEES,4401,13/02/2020,669122,7050.00 ,Capital,MH ARCHITECTS,1994233
Fareham Borough Council,http://statistics.data.gov.uk/id/local-authority/24UE,CAPITAL PROGRAMME - HOUSING SERVICES,CP,NEW HOUSE BUILDING,CP10,CAPITAL - FAREHAM HOUSING CAPITAL,SUPPLIES & SERVICES,4,"Works - Construction, Repair & Maintenance",39,CONSULTANTS FEES,4401,13/02/2020,669123,2730.00 ,Capital,MH ARCHITECTS,1994233
Fareham Borough Council,http://statistics.data.gov.uk/id/local-authority/24UE,OTHER REVENUE ACCOUNTS,RV,NON WORK GROUP HOLDING ACCOUNT,RV18,DEPT of STRATEGIC PLANNING and ENVIRONMENT,PREMISES RELATED EXPENDITURE,2,Building Construction Materials,10,R & M OF FIXED PLANT,2040,21/02/2020,669124,1202.94 ,Revenue,NOVAR SYSTEMS LTD,264047
Fareham Borough Council,http://statistics.data.gov.uk/id/local-authority/24UE,OTHER REVENUE ACCOUNTS,RV,NON WORK GROUP HOLDING ACCOUNT,RV18,DEPT of STRATEGIC PLANNING and ENVIRONMENT,PREMISES RELATED EXPENDITURE,2,Building Construction Materials,10,R & M OF FIXED PLANT,2040,21/02/2020,669125,1202.94 ,Revenue,NOVAR SYSTEMS LTD,264047
Fareham Borough Council,http://statistics.data.gov.uk/id/local-authority/24UE,FINANCING & INVESTMENT I&E,BVB02,INVESTMENT PROPERTIES,BVB170,DEPT of STRATEGIC PLANNING and ENVIRONMENT,PREMISES RELATED EXPENDITURE,2,"Works - Construction, Repair & Maintenance",39,R & M OF BUILDINGS,2000,13/02/2020,669127,817.76 ,Revenue,REDS BUILDERS LIMITED,4387646
Fareham Borough Council,http://statistics.data.gov.uk/id/local-authority/24UE,FINANCING & INVESTMENT I&E,BVB02,INVESTMENT PROPERTIES,BVB170,DEPT of STRATEGIC PLANNING and ENVIRONMENT,PREMISES RELATED EXPENDITURE,2,"Works - Construction, Repair & Maintenance",39,R & M OF BUILDINGS,2000,13/02/2020,669129,12850.00 ,Revenue,REDS BUILDERS LIMITED,4387646
Fareham Borough Council,http://statistics.data.gov.uk/id/local-authority/24UE,CULTURAL AND RELATED SERVICES,BV09,RECREATION AND SPORT,BV09B,DEPT OF LEISURE & COMMUNITY,PREMISES RELATED EXPENDITURE,2,"Works - Construction, Repair & Maintenance",39,R & M OF BUILDINGS,2000,13/02/2020,669130,12410.00 ,Revenue,REDS BUILDERS LIMITED,4387646
Fareham Borough Council,http://statistics.data.gov.uk/id/local-authority/24UE,CAPITAL PROGRAMME - OTHER SERVICES,CP,CAPITAL PROPERTY SERVICES,CP23,CAPITAL - FINANCE & RESOURCES CAPITAL,PREMISES RELATED EXPENDITURE,2,"Works - Construction, Repair & Maintenance",39,R & M OF BUILDINGS,2000,13/02/2020,669131,5460.00 ,Capital,REDS BUILDERS LIMITED,4387646
Fareham Borough Council,http://statistics.data.gov.uk/id/local-authority/24UE,FINANCING & INVESTMENT I&E,BVB02,INVESTMENT PROPERTIES,BVB170,DEPT of STRATEGIC PLANNING and ENVIRONMENT,SUPPLIES & SERVICES,4,"Works - Construction, Repair & Maintenance",39,CONSULTANTS FEES,4401,13/02/2020,669133,500.00 ,Revenue,WESSEX DEMOLITION & SALVAGE LTD,2949629
Fareham Borough Council,http://statistics.data.gov.uk/id/local-authority/24UE,OTHER REVENUE ACCOUNTS,RV,NON WORK GROUP HOLDING ACCOUNT,RV18,DEPT of STRATEGIC PLANNING and ENVIRONMENT,SUPPLIES & SERVICES,4,Environmental Services,18,TIPPING / INCINERATOR FEES,4425,13/02/2020,669134,701.44 ,Revenue,ZEBRA WASTE SKIP HIRE,01506942
Fareham Borough Council,http://statistics.data.gov.uk/id/local-authority/24UE,OTHER REVENUE ACCOUNTS,RV,G.F. EXPENDITURE ON SERVICES,RV10,STREETSCENE,SUPPLIES & SERVICES,4,Environmental Services,18,TIPPING / INCINERATOR FEES,4425,13/02/2020,669135,3481.77 ,Revenue,VEOLIA ES HAMPSHIRE LIMITED,02817856
Fareham Borough Council,http://statistics.data.gov.uk/id/local-authority/24UE,OTHER REVENUE ACCOUNTS,RV,G.F. EXPENDITURE ON SERVICES,RV10,STREETSCENE,TRANSPORT RELATED EXPENDITURE,3,Horticultural,24,ROUTINE REPAIRS VEHICLES/PLANT,3010,13/02/2020,669140,913.00 ,Revenue,KINGSWORTHY GARDEN MACHINERY LTD,5321124
Fareham Borough Council,http://statistics.data.gov.uk/id/local-authority/24UE,CAPITAL PROGRAMME - OTHER SERVICES,CP,CAPITAL VEHICLE & PLANT,CP23,CAPITAL - STREETSCENE CAPITAL,TRANSPORT RELATED EXPENDITURE,3,Horticultural,24,PURCHASE OF VEHICLES,3000,13/02/2020,669142,6600.00 ,Capital,KINGSWORTHY GARDEN MACHINERY LTD,5321124
Fareham Borough Council,http://statistics.data.gov.uk/id/local-authority/24UE,CULTURAL AND RELATED SERVICES,BV09,RECREATION AND SPORT,BV09B,STREETSCENE,PREMISES RELATED EXPENDITURE,2,Utilities,37,SEWERAGE & ENV. CHARGES (SWS),2410,13/02/2020,669143,3296.77 ,Revenue,SCOTTISH WATER BUSINESS STREAM LIMITED,SC294924
Fareham Borough Council,http://statistics.data.gov.uk/id/local-authority/24UE,OTHER REVENUE ACCOUNTS,RV,G.F. EXPENDITURE ON SERVICES,RV10,STREETSCENE,SUPPLIES & SERVICES,4,Sports & Playground Equipment & Maintenance,33,TOOLS & EQUIPMENT,4002,21/02/2020,669146,2250.00 ,Revenue,F KLUCZNIK & SON T/A IAE,1448116
Fareham Borough Council,http://statistics.data.gov.uk/id/local-authority/24UE,ENVIRONMENT AND REGULATORY SER,BV03,WASTE COLLECTION,BV03G,STREETSCENE,EMPLOYEES RELATED EXPENDITURE,1,Human Resources,26,AGENCY WORKERS,1050,21/02/2020,669169,12507.59 ,Revenue,BUZZ PEOPLE RECRUITMENT LTD,07908887
Fareham Borough Council,http://statistics.data.gov.uk/id/local-authority/24UE,ENVIRONMENT AND REGULATORY SER,BV03,WASTE COLLECTION,BV03G,STREETSCENE,EMPLOYEES RELATED EXPENDITURE,1,Human Resources,26,AGENCY WORKERS,1050,21/02/2020,669169,2182.45 ,Revenue,BUZZ PEOPLE RECRUITMENT LTD,07908887
Fareham Borough Council,http://statistics.data.gov.uk/id/local-authority/24UE,ENVIRONMENT AND REGULATORY SER,BV03,WASTE COLLECTION,BV03G,STREETSCENE,EMPLOYEES RELATED EXPENDITURE,1,Human Resources,26,AGENCY WORKERS,1050,21/02/2020,669169,15263.72 ,Revenue,BUZZ PEOPLE RECRUITMENT LTD,07908887
Fareham Borough Council,http://statistics.data.gov.uk/id/local-authority/24UE,ENVIRONMENT AND REGULATORY SER,BV03,WASTE COLLECTION,BV03G,STREETSCENE,EMPLOYEES RELATED EXPENDITURE,1,Human Resources,26,AGENCY WORKERS,1050,21/02/2020,669169,1273.56 ,Revenue,BUZZ PEOPLE RECRUITMENT LTD,07908887
Fareham Borough Council,http://statistics.data.gov.uk/id/local-authority/24UE,HIGHWAYS ROADS AND TRANSPORT,BV12,PARKING SERVICES,BV12D,DEPT OF LEISURE & COMMUNITY,SUPPLIES & SERVICES,4,Street & Traffic Management,35,FURNITURE & EQUIPT. MAINT.,4030,13/02/2020,669171,148.12 ,Revenue,FLOWBIRD SMART CITY UK LTD,4869035
Fareham Borough Council,http://statistics.data.gov.uk/id/local-authority/24UE,HIGHWAYS ROADS AND TRANSPORT,BV12,PARKING SERVICES,BV12D,DEPT OF LEISURE & COMMUNITY,SUPPLIES & SERVICES,4,Street & Traffic Management,35,FURNITURE & EQUIPT. MAINT.,4030,13/02/2020,669171,138.64 ,Revenue,FLOWBIRD SMART CITY UK LTD,4869035
Fareham Borough Council,http://statistics.data.gov.uk/id/local-authority/24UE,HIGHWAYS ROADS AND TRANSPORT,BV12,PARKING SERVICES,BV12D,DEPT OF LEISURE & COMMUNITY,SUPPLIES & SERVICES,4,Street & Traffic Management,35,FURNITURE & EQUIPT. MAINT.,4030,13/02/2020,669171,110.74 ,Revenue,FLOWBIRD SMART CITY UK LTD,4869035
Fareham Borough Council,http://statistics.data.gov.uk/id/local-authority/24UE,HIGHWAYS ROADS AND TRANSPORT,BV12,PARKING SERVICES,BV12D,DEPT OF LEISURE & COMMUNITY,SUPPLIES & SERVICES,4,Street & Traffic Management,35,FURNITURE & EQUIPT. MAINT.,4030,13/02/2020,669171,106.75 ,Revenue,FLOWBIRD SMART CITY UK LTD,4869035
Fareham Borough Council,http://statistics.data.gov.uk/id/local-authority/24UE,HIGHWAYS ROADS AND TRANSPORT,BV12,PARKING SERVICES,BV12D,DEPT OF LEISURE & COMMUNITY,SUPPLIES & SERVICES,4,Information Communication Technology,27,FURNITURE & EQUIPT. PURCHASES,4000,28/02/2020,669173,906.00 ,Revenue,CHIPSIDE LTD,04049461
Fareham Borough Council,http://statistics.data.gov.uk/id/local-authority/24UE,HIGHWAYS ROADS AND TRANSPORT,BV12,PARKING SERVICES,BV12D,DEPT OF LEISURE & COMMUNITY,SUPPLIES & SERVICES,4,Street & Traffic Management,35,FURNITURE & EQUIPT. PURCHASES,4000,21/02/2020,669177,688.00 ,Revenue,DESIGNA UK LTD,03464488
Fareham Borough Council,http://statistics.data.gov.uk/id/local-authority/24UE,HIGHWAYS ROADS AND TRANSPORT,BV12,PARKING SERVICES,BV12D,DEPT OF LEISURE & COMMUNITY,SUPPLIES & SERVICES,4,Street & Traffic Management,35,FURNITURE & EQUIPT. PURCHASES,4000,21/02/2020,669177,480.00 ,Revenue,DESIGNA UK LTD,03464488
Fareham Borough Council,http://statistics.data.gov.uk/id/local-authority/24UE,OTHER REVENUE ACCOUNTS,RV,CONTRACT SERVICES D.S.O.,RV14,DEPT of STRATEGIC PLANNING and ENVIRONMENT,SUPPLIES & SERVICES,4,Consultancy,15,STRUCTURAL ENGINEERS FEES,4405,13/02/2020,669178,3720.95 ,Revenue,RUCK CONSULTANCY LIMITED,9335936
Fareham Borough Council,http://statistics.data.gov.uk/id/local-authority/24UE,CENTRAL SERVICES,BV07,CENTRAL SERVICES TO THE PUBLIC,BV07B,DEPT OF SUPPORT SERVICES,SUPPLIES & SERVICES,4,Local/Central Government,98,TRAINING (FBC FUNDED),4612,13/02/2020,669179,1209.08 ,Revenue,GOSPORT BOROUGH COUNCIL,
Fareham Borough Council,http://statistics.data.gov.uk/id/local-authority/24UE,ENVIRONMENT AND REGULATORY SER,BV03,CEMETERIES CREM & MORTUARY,BV03A,STREETSCENE,PREMISES RELATED EXPENDITURE,2,Horticultural,24,R&M OF TREE PRESERVATION,2063,13/02/2020,669181,4414.50 ,Revenue,CEDAR TREE SURGEONS,
Fareham Borough Council,http://statistics.data.gov.uk/id/local-authority/24UE,CULTURAL AND RELATED SERVICES,BV09,RECREATION AND SPORT,BV09B,STREETSCENE,PREMISES RELATED EXPENDITURE,2,Horticultural,24,R&M OF TREE PRESERVATION,2063,13/02/2020,669183,310.00 ,Revenue,CEDAR TREE SURGEONS,
Fareham Borough Council,http://statistics.data.gov.uk/id/local-authority/24UE,CULTURAL AND RELATED SERVICES,BV09,RECREATION AND SPORT,BV09B,STREETSCENE,PREMISES RELATED EXPENDITURE,2,Horticultural,24,R&M OF TREE PRESERVATION,2063,13/02/2020,669183,928.00 ,Revenue,CEDAR TREE SURGEONS,
Fareham Borough Council,http://statistics.data.gov.uk/id/local-authority/24UE,CULTURAL AND RELATED SERVICES,BV09,RECREATION AND SPORT,BV09B,STREETSCENE,PREMISES RELATED EXPENDITURE,2,Horticultural,24,R&M OF TREE PRESERVATION,2063,13/02/2020,669183,1013.50 ,Revenue,CEDAR TREE SURGEONS,
Fareham Borough Council,http://statistics.data.gov.uk/id/local-authority/24UE,CULTURAL AND RELATED SERVICES,BV09,RECREATION AND SPORT,BV09B,STREETSCENE,PREMISES RELATED EXPENDITURE,2,Horticultural,24,R&M OF TREE PRESERVATION,2063,13/02/2020,669183,166.00 ,Revenue,CEDAR TREE SURGEONS,
Fareham Borough Council,http://statistics.data.gov.uk/id/local-authority/24UE,CULTURAL AND RELATED SERVICES,BV09,RECREATION AND SPORT,BV09B,STREETSCENE,PREMISES RELATED EXPENDITURE,2,Horticultural,24,R&M OF TREE PRESERVATION,2063,13/02/2020,669183,126.00 ,Revenue,CEDAR TREE SURGEONS,
Fareham Borough Council,http://statistics.data.gov.uk/id/local-authority/24UE,HOUSING REVENUE ACCOUNT,BV06,MAINT OF LAWNS VERGES ETC,5030,DEPT OF DEPUTY CHIEF EXECUTIVE,PREMISES RELATED EXPENDITURE,2,Horticultural,24,R&M OF TREE PRESERVATION,2063,13/02/2020,669183,249.00 ,Revenue,CEDAR TREE SURGEONS,
Fareham Borough Council,http://statistics.data.gov.uk/id/local-authority/24UE,OTHER REVENUE ACCOUNTS,RV,NON WORK GROUP HOLDING ACCOUNT,RV18,DEPT OF SUPPORT SERVICES,SUPPLIES & SERVICES,4,Facilities & Management Services,19,EXTERNAL PRINTING,4310,21/02/2020,669188,958.16 ,Revenue,CFH DOCMAIL LIMITED,07168911
Fareham Borough Council,http://statistics.data.gov.uk/id/local-authority/24UE,CAPITAL PROGRAMME - HOUSING SERVICES,CP,RENOVATION OF L.A. DWELLINGS,CP10,CAPITAL - FAREHAM HOUSING CAPITAL,PREMISES RELATED EXPENDITURE,2,Building Construction Materials,10,GENERAL REPAIRS,2018,13/02/2020,669189,725.00 ,Capital,IDEAL WINDOW SOLUTIONS LIMITED,3623785
Fareham Borough Council,http://statistics.data.gov.uk/id/local-authority/24UE,CAPITAL PROGRAMME - HOUSING SERVICES,CP,RENOVATION OF L.A. DWELLINGS,CP10,CAPITAL - FAREHAM HOUSING CAPITAL,PREMISES RELATED EXPENDITURE,2,Building Construction Materials,10,GENERAL REPAIRS,2018,13/02/2020,669190,2040.00 ,Capital,IDEAL WINDOW SOLUTIONS LIMITED,3623785
Fareham Borough Council,http://statistics.data.gov.uk/id/local-authority/24UE,CAPITAL PROGRAMME - HOUSING SERVICES,CP,RENOVATION OF L.A. DWELLINGS,CP10,CAPITAL - FAREHAM HOUSING CAPITAL,PREMISES RELATED EXPENDITURE,2,Building Construction Materials,10,GENERAL REPAIRS,2018,13/02/2020,669191,4757.00 ,Capital,IDEAL WINDOW SOLUTIONS LIMITED,3623785
Fareham Borough Council,http://statistics.data.gov.uk/id/local-authority/24UE,CAPITAL PROGRAMME - HOUSING SERVICES,CP,RENOVATION OF L.A. DWELLINGS,CP10,CAPITAL - FAREHAM HOUSING CAPITAL,PREMISES RELATED EXPENDITURE,2,Building Construction Materials,10,GENERAL REPAIRS,2018,13/02/2020,669194,1185.00 ,Capital,IDEAL WINDOW SOLUTIONS LIMITED,3623785
Fareham Borough Council,http://statistics.data.gov.uk/id/local-authority/24UE,HOUSING REVENUE ACCOUNT,BV06,RESPONSIVE & VOID MAINTENANCE,5901,DEPT OF DEPUTY CHIEF EXECUTIVE,PREMISES RELATED EXPENDITURE,2,"Works - Construction, Repair & Maintenance",39,GENERAL REPAIRS,2018,13/02/2020,669195,759.00 ,Revenue,FREEFLOW DRAINS LTD,6213235
Fareham Borough Council,http://statistics.data.gov.uk/id/local-authority/24UE,HOUSING REVENUE ACCOUNT,BV06,RESPONSIVE & VOID MAINTENANCE,5901,DEPT OF DEPUTY CHIEF EXECUTIVE,PREMISES RELATED EXPENDITURE,2,"Works - Construction, Repair & Maintenance",39,GENERAL REPAIRS,2018,13/02/2020,669197,1141.00 ,Revenue,GABLE PROJECTS LIMITED,5718263
Fareham Borough Council,http://statistics.data.gov.uk/id/local-authority/24UE,CAPITAL PROGRAMME - HOUSING SERVICES,CP,NEW HOUSE BUILDING,CP10,CAPITAL - FAREHAM HOUSING CAPITAL,PREMISES RELATED EXPENDITURE,2,"Works - Construction, Repair & Maintenance",39,BUILDING CONSTRUCTION,2602,13/02/2020,669200,111041.36 ,Capital,F E CHASE & SON LTD,01819097
Fareham Borough Council,http://statistics.data.gov.uk/id/local-authority/24UE,CAPITAL PROGRAMME - HOUSING SERVICES,CP,NEW HOUSE BUILDING,CP10,CAPITAL - FAREHAM HOUSING CAPITAL,SUPPLIES & SERVICES,4,"Works - Construction, Repair & Maintenance",39,EMPLOYEES AGENTS FEES,4452,13/02/2020,669201,1875.00 ,Capital,BOULTER MOSSMAN CHARTERED SURVEYORS,06951592
Fareham Borough Council,http://statistics.data.gov.uk/id/local-authority/24UE,CAPITAL PROGRAMME - HOUSING SERVICES,CP,NEW HOUSE BUILDING,CP10,CAPITAL - FAREHAM HOUSING CAPITAL,SUPPLIES & SERVICES,4,"Works - Construction, Repair & Maintenance",39,EMPLOYEES AGENTS FEES,4452,13/02/2020,669202,6940.00 ,Capital,BOULTER MOSSMAN CHARTERED SURVEYORS,06951592
Fareham Borough Council,http://statistics.data.gov.uk/id/local-authority/24UE,CAPITAL PROGRAMME - HOUSING SERVICES,CP,RENOVATION OF L.A. DWELLINGS,CP10,CAPITAL - FAREHAM HOUSING CAPITAL,PREMISES RELATED EXPENDITURE,2,Health & Safety�,22,FIRE PRECAUTION APPLIANCES,2550,13/02/2020,669209,1175.00 ,Capital,AXIS FIRE & SECURITY SERVICES,03185513
Fareham Borough Council,http://statistics.data.gov.uk/id/local-authority/24UE,HOUSING REVENUE ACCOUNT,BV06,OTHER COMMUNAL SERVICES,5034,DEPT OF DEPUTY CHIEF EXECUTIVE,SUPPLIES & SERVICES,4,Housing Management,25,FURNITURE & EQUIPT.-RENTS/LSES,4040,13/02/2020,669210,962.00 ,Revenue,JLA TOTAL CARE LTD,02951461
Fareham Borough Council,http://statistics.data.gov.uk/id/local-authority/24UE,HOUSING REVENUE ACCOUNT,BV06,RESPONSIVE & VOID MAINTENANCE,5901,DEPT OF DEPUTY CHIEF EXECUTIVE,PREMISES RELATED EXPENDITURE,2,Cleaning & Janitorial,13,SPECIALIST CLEANING & CLEARNCE,2701,13/02/2020,669214,985.00 ,Revenue,SEE BRILLIANCE LIMITED,05807389
Fareham Borough Council,http://statistics.data.gov.uk/id/local-authority/24UE,HOUSING REVENUE ACCOUNT,BV06,RESPONSIVE & VOID MAINTENANCE,5901,DEPT OF DEPUTY CHIEF EXECUTIVE,PREMISES RELATED EXPENDITURE,2,Cleaning & Janitorial,13,SPECIALIST CLEANING & CLEARNCE,2701,13/02/2020,669214,100.00 ,Revenue,SEE BRILLIANCE LIMITED,05807389
Fareham Borough Council,http://statistics.data.gov.uk/id/local-authority/24UE,HOUSING REVENUE ACCOUNT,BV06,RESPONSIVE & VOID MAINTENANCE,5901,DEPT OF DEPUTY CHIEF EXECUTIVE,PREMISES RELATED EXPENDITURE,2,Cleaning & Janitorial,13,SPECIALIST CLEANING & CLEARNCE,2701,13/02/2020,669214,900.00 ,Revenue,SEE BRILLIANCE LIMITED,05807389
Fareham Borough Council,http://statistics.data.gov.uk/id/local-authority/24UE,HOUSING REVENUE ACCOUNT,BV06,RESPONSIVE & VOID MAINTENANCE,5901,DEPT OF DEPUTY CHIEF EXECUTIVE,PREMISES RELATED EXPENDITURE,2,Cleaning & Janitorial,13,SPECIALIST CLEANING & CLEARNCE,2701,13/02/2020,669214,500.00 ,Revenue,SEE BRILLIANCE LIMITED,05807389
Fareham Borough Council,http://statistics.data.gov.uk/id/local-authority/24UE,HOUSING REVENUE ACCOUNT,BV06,RESPONSIVE & VOID MAINTENANCE,5901,DEPT OF DEPUTY CHIEF EXECUTIVE,PREMISES RELATED EXPENDITURE,2,Cleaning & Janitorial,13,SPECIALIST CLEANING & CLEARNCE,2701,13/02/2020,669214,300.00 ,Revenue,SEE BRILLIANCE LIMITED,05807389
Fareham Borough Council,http://statistics.data.gov.uk/id/local-authority/24UE,GENERAL FUND HOUSING,BV05,HOUSING BENEFIT PAYMENTS,BV05G,DEPT OF DEPUTY CHIEF EXECUTIVE,TRANSFER PAYMENTS,6,Unclassified,,RENT ALLOW - WEEKLY SUMMARIES,6010,13/02/2020,669216,925.78 ,Revenue,redacted personal data,
Fareham Borough Council,http://statistics.data.gov.uk/id/local-authority/24UE,ENVIRONMENT AND REGULATORY SER,BV03,ENVIRONMENTAL HEALTH,BV03C,DEPT OF SUPPORT SERVICES,PREMISES RELATED EXPENDITURE,2,Utilities,37,ELECTRICITY,2120,13/02/2020,669223,204.87 ,Revenue,EDF ENERGY,02366852
Fareham Borough Council,http://statistics.data.gov.uk/id/local-authority/24UE,HIGHWAYS ROADS AND TRANSPORT,BV12,PARKING SERVICES,BV12D,DEPT OF LEISURE & COMMUNITY,PREMISES RELATED EXPENDITURE,2,Utilities,37,ELECTRICITY,2120,13/02/2020,669223,74.56 ,Revenue,EDF ENERGY,02366852
Fareham Borough Council,http://statistics.data.gov.uk/id/local-authority/24UE,HOUSING REVENUE ACCOUNT,BV06,COMMUNAL LIGHTING,5026,DEPT OF DEPUTY CHIEF EXECUTIVE,PREMISES RELATED EXPENDITURE,2,Utilities,37,ELECTRICITY,2120,13/02/2020,669223,579.04 ,Revenue,EDF ENERGY,02366852
Fareham Borough Council,http://statistics.data.gov.uk/id/local-authority/24UE,CAPITAL PROGRAMME - HOUSING SERVICES,CP,CAPITAL HOME IMPROVEMENTS,CP11,CAPITAL - PLANNING & REGULATION CAPITAL,SUPPLIES & SERVICES,4,Local/Central Government,98,GRANTS AND SUBSCRIPTIONS,4700,13/02/2020,669224,70369.14 ,Capital,PORTSMOUTH CITY COUNCIL,
Fareham Borough Council,http://statistics.data.gov.uk/id/local-authority/24UE,CULTURAL AND RELATED SERVICES,BV09,RECREATION AND SPORT,BV09B,STREETSCENE,PREMISES RELATED EXPENDITURE,2,"Works - Construction, Repair & Maintenance",39,R & M OF BUILDINGS,2000,13/02/2020,669324,855.13 ,Revenue,BCG ELECTRICAL SERVICES LIMITED,5097428
Fareham Borough Council,http://statistics.data.gov.uk/id/local-authority/24UE,CULTURAL AND RELATED SERVICES,BV09,RECREATION AND SPORT,BV09B,DEPT OF LEISURE & COMMUNITY,PREMISES RELATED EXPENDITURE,2,"Works - Construction, Repair & Maintenance",39,R & M OF BUILDINGS,2000,13/02/2020,669324,134.64 ,Revenue,BCG ELECTRICAL SERVICES LIMITED,5097428
Fareham Borough Council,http://statistics.data.gov.uk/id/local-authority/24UE,FINANCING & INVESTMENT I&E,BVB02,INVESTMENT PROPERTIES,BVB170,DEPT OF LEISURE & COMMUNITY,PREMISES RELATED EXPENDITURE,2,"Works - Construction, Repair & Maintenance",39,R & M OF BUILDINGS,2000,13/02/2020,669324,254.04 ,Revenue,BCG ELECTRICAL SERVICES LIMITED,5097428
Fareham Borough Council,http://statistics.data.gov.uk/id/local-authority/24UE,HIGHWAYS ROADS AND TRANSPORT,BV12,PARKING SERVICES,BV12D,DEPT OF LEISURE & COMMUNITY,PREMISES RELATED EXPENDITURE,2,"Works - Construction, Repair & Maintenance",39,R & M OF BUILDINGS,2000,13/02/2020,669324,3468.43 ,Revenue,BCG ELECTRICAL SERVICES LIMITED,5097428
Fareham Borough Council,http://statistics.data.gov.uk/id/local-authority/24UE,ENVIRONMENT AND REGULATORY SER,BV03,ENVIRONMENTAL HEALTH,BV03C,STREETSCENE,PREMISES RELATED EXPENDITURE,2,"Works - Construction, Repair & Maintenance",39,R & M OF BUILDINGS,2000,13/02/2020,669324,192.41 ,Revenue,BCG ELECTRICAL SERVICES LIMITED,5097428
Fareham Borough Council,http://statistics.data.gov.uk/id/local-authority/24UE,OTHER REVENUE ACCOUNTS,RV,NON WORK GROUP HOLDING ACCOUNT,RV18,DEPT of STRATEGIC PLANNING and ENVIRONMENT,PREMISES RELATED EXPENDITURE,2,"Works - Construction, Repair & Maintenance",39,R & M OF BUILDINGS,2000,13/02/2020,669324,754.39 ,Revenue,BCG ELECTRICAL SERVICES LIMITED,5097428
Fareham Borough Council,http://statistics.data.gov.uk/id/local-authority/24UE,OTHER REVENUE ACCOUNTS,RV,NON WORK GROUP HOLDING ACCOUNT,RV18,DEPT of STRATEGIC PLANNING and ENVIRONMENT,PREMISES RELATED EXPENDITURE,2,"Works - Construction, Repair & Maintenance",39,R & M OF BUILDINGS,2000,13/02/2020,669324,185.28 ,Revenue,BCG ELECTRICAL SERVICES LIMITED,5097428
Fareham Borough Council,http://statistics.data.gov.uk/id/local-authority/24UE,GENERAL FUND HOUSING,BV05,HOUSING ADVICE,BV05C,DEPT OF DEPUTY CHIEF EXECUTIVE,SUPPLIES & SERVICES,4,Unclassified,,LOCAL ASSISTANCE PAYMENT,4727,13/02/2020,669325,1712.00 ,Revenue,redacted personal data,
Fareham Borough Council,http://statistics.data.gov.uk/id/local-authority/24UE,PLANNING SERVICES,BV13,DEVELOPMENT CONTROL,BV13B,DEPT of STRATEGIC PLANNING and ENVIRONMENT,EMPLOYEES RELATED EXPENDITURE,1,Facilities & Management Services,19,STAFF ADVERTISING,1902,13/02/2020,669326,790.00 ,Revenue,REDACTIVE PUBLISHING LTD,3156213
Fareham Borough Council,http://statistics.data.gov.uk/id/local-authority/24UE,CULTURAL AND RELATED SERVICES,BV09,CULTURE AND HERITAGE,BV09A,DEPT OF LEISURE & COMMUNITY,PREMISES RELATED EXPENDITURE,2,Utilities,37,ELECTRICITY,2120,13/02/2020,669334,6932.51 ,Revenue,EDF ENERGY,02366852
Fareham Borough Council,http://statistics.data.gov.uk/id/local-authority/24UE,OTHER REVENUE ACCOUNTS,RV,NON WORK GROUP HOLDING ACCOUNT,RV18,DEPT of STRATEGIC PLANNING and ENVIRONMENT,PREMISES RELATED EXPENDITURE,2,Utilities,37,ELECTRICITY,2120,13/02/2020,669334,5979.79 ,Revenue,EDF ENERGY,02366852
Fareham Borough Council,http://statistics.data.gov.uk/id/local-authority/24UE,ENVIRONMENT AND REGULATORY SER,BV03,WASTE COLLECTION,BV03G,STREETSCENE,SUPPLIES & SERVICES,4,Local/Central Government,98,TIPPING / INCINERATOR FEES,4425,13/02/2020,669337,50000.00 ,Revenue,HAMPSHIRE COUNTY COUNCIL,
Fareham Borough Council,http://statistics.data.gov.uk/id/local-authority/24UE,ENVIRONMENT AND REGULATORY SER,BV03,WASTE COLLECTION,BV03G,STREETSCENE,SUPPLIES & SERVICES,4,Local/Central Government,98,GRANTS AND SUBSCRIPTIONS,4700,13/02/2020,669338,6909.60 ,Revenue,HAMPSHIRE COUNTY COUNCIL,
Fareham Borough Council,http://statistics.data.gov.uk/id/local-authority/24UE,PLANNING SERVICES,BV13,ECONOMIC DEVELOPMENT,BV13E,DEPT OF LEISURE & COMMUNITY,SUPPLIES & SERVICES,4,Environmental Services,18,OTHER SERVICES,4499,13/02/2020,669340,331.00 ,Revenue,RITAGATE LTD,1562914
Fareham Borough Council,http://statistics.data.gov.uk/id/local-authority/24UE,PLANNING SERVICES,BV13,ECONOMIC DEVELOPMENT,BV13E,DEPT OF LEISURE & COMMUNITY,SUPPLIES & SERVICES,4,Environmental Services,18,OTHER SERVICES,4499,13/02/2020,669340,1442.00 ,Revenue,RITAGATE LTD,1562914
Fareham Borough Council,http://statistics.data.gov.uk/id/local-authority/24UE,HOUSING REVENUE ACCOUNT,BV06,RESPONSIVE & VOID MAINTENANCE,5901,DEPT OF DEPUTY CHIEF EXECUTIVE,PREMISES RELATED EXPENDITURE,2,"Works - Construction, Repair & Maintenance",39,GENERAL REPAIRS,2018,13/02/2020,669344,4950.00 ,Revenue,QST CONSTRUCTION SERVICES LIMITED,5270580
Fareham Borough Council,http://statistics.data.gov.uk/id/local-authority/24UE,OTHER REVENUE ACCOUNTS,RV,CONTRACT SERVICES D.S.O.,RV14,DEPT of STRATEGIC PLANNING and ENVIRONMENT,SUPPLIES & SERVICES,4,Information Communication Technology,27,ICT HARDWARE,4532,13/02/2020,669347,125.00 ,Revenue,WICKS AND WILSON LIMITED,01148362
Fareham Borough Council,http://statistics.data.gov.uk/id/local-authority/24UE,OTHER REVENUE ACCOUNTS,RV,CONTRACT SERVICES D.S.O.,RV14,DEPT of STRATEGIC PLANNING and ENVIRONMENT,SUPPLIES & SERVICES,4,Information Communication Technology,27,ICT HARDWARE,4532,13/02/2020,669347,3213.00 ,Revenue,WICKS AND WILSON LIMITED,01148362
Fareham Borough Council,http://statistics.data.gov.uk/id/local-authority/24UE,OTHER REVENUE ACCOUNTS,RV,CONTRACT SERVICES D.S.O.,RV14,DEPT of STRATEGIC PLANNING and ENVIRONMENT,SUPPLIES & SERVICES,4,Building Construction Materials,10,EMERGENCY STANDBY SERVICE,4421,13/02/2020,669348,540.00 ,Revenue,G S BUILDING SERVICES LTD,03859453
Fareham Borough Council,http://statistics.data.gov.uk/id/local-authority/24UE,PLANNING SERVICES,BV13,DEVELOPMENT CONTROL,BV13B,DEPT of STRATEGIC PLANNING and ENVIRONMENT,SUPPLIES & SERVICES,4,Legal Services,28,LEGAL FEES,4400,13/02/2020,669351,1800.00 ,Revenue,CORNERSTONE BARRISTERS,
Fareham Borough Council,http://statistics.data.gov.uk/id/local-authority/24UE,OTHER REVENUE ACCOUNTS,RV,G.F. EXPENDITURE ON SERVICES,RV10,STREETSCENE,SUPPLIES & SERVICES,4,Street & Traffic Management,35,SUB-CONTRACTORS CHARGES,4432,21/02/2020,669353,985.00 ,Revenue,R & W  TRAFFIC MANAGEMENT LTD,09452486
Fareham Borough Council,http://statistics.data.gov.uk/id/local-authority/24UE,ENVIRONMENT AND REGULATORY SER,BV03,CEMETERIES CREM & MORTUARY,BV03A,STREETSCENE,PREMISES RELATED EXPENDITURE,2,Horticultural,24,R&M OF TREE PRESERVATION,2063,21/02/2020,669355,117.63 ,Revenue,GRISTWOOD AND TOMS LIMITED,2665293
Fareham Borough Council,http://statistics.data.gov.uk/id/local-authority/24UE,CULTURAL AND RELATED SERVICES,BV09,RECREATION AND SPORT,BV09B,STREETSCENE,PREMISES RELATED EXPENDITURE,2,Horticultural,24,R&M OF TREE PRESERVATION,2063,21/02/2020,669355,614.29 ,Revenue,GRISTWOOD AND TOMS LIMITED,2665293
Fareham Borough Council,http://statistics.data.gov.uk/id/local-authority/24UE,CULTURAL AND RELATED SERVICES,BV09,RECREATION AND SPORT,BV09B,STREETSCENE,PREMISES RELATED EXPENDITURE,2,Horticultural,24,R&M OF TREE PRESERVATION,2063,21/02/2020,669355,130.70 ,Revenue,GRISTWOOD AND TOMS LIMITED,2665293
Fareham Borough Council,http://statistics.data.gov.uk/id/local-authority/24UE,CULTURAL AND RELATED SERVICES,BV09,RECREATION AND SPORT,BV09B,STREETSCENE,PREMISES RELATED EXPENDITURE,2,Horticultural,24,R&M OF TREE PRESERVATION,2063,21/02/2020,669355,78.42 ,Revenue,GRISTWOOD AND TOMS LIMITED,2665293
Fareham Borough Council,http://statistics.data.gov.uk/id/local-authority/24UE,CULTURAL AND RELATED SERVICES,BV09,RECREATION AND SPORT,BV09B,STREETSCENE,PREMISES RELATED EXPENDITURE,2,Horticultural,24,R&M OF TREE PRESERVATION,2063,21/02/2020,669355,26.14 ,Revenue,GRISTWOOD AND TOMS LIMITED,2665293
Fareham Borough Council,http://statistics.data.gov.uk/id/local-authority/24UE,HIGHWAYS ROADS AND TRANSPORT,BV12,PARKING SERVICES,BV12D,DEPT OF LEISURE & COMMUNITY,PREMISES RELATED EXPENDITURE,2,Horticultural,24,R&M OF TREE PRESERVATION,2063,21/02/2020,669355,13.07 ,Revenue,GRISTWOOD AND TOMS LIMITED,2665293
Fareham Borough Council,http://statistics.data.gov.uk/id/local-authority/24UE,HOUSING REVENUE ACCOUNT,BV06,MAINT OF LAWNS VERGES ETC,5030,DEPT OF DEPUTY CHIEF EXECUTIVE,PREMISES RELATED EXPENDITURE,2,Horticultural,24,R&M OF TREE PRESERVATION,2063,21/02/2020,669355,326.75 ,Revenue,GRISTWOOD AND TOMS LIMITED,2665293
Fareham Borough Council,http://statistics.data.gov.uk/id/local-authority/24UE,PLANNING SERVICES,BV13,PLANNING POLICY,BV13C,DEPT of STRATEGIC PLANNING and ENVIRONMENT,SUPPLIES & SERVICES,4,Local/Central Government,98,CONSULTANTS FEES,4401,21/02/2020,669626,12400.00 ,Revenue,PORTSMOUTH CITY COUNCIL,
Fareham Borough Council,http://statistics.data.gov.uk/id/local-authority/24UE,CENTRAL SERVICES,BV07,CENTRAL SERVICES TO THE PUBLIC,BV07B,DEPT OF SUPPORT SERVICES,SUPPLIES & SERVICES,4,Human Resources,26,TRAINING (FBC FUNDED),4612,21/02/2020,669629,740.00 ,Revenue,ASSOCIATION OF ELECTORAL ADMINISTRATORS LTD,2406897
Fareham Borough Council,http://statistics.data.gov.uk/id/local-authority/24UE,PLANNING SERVICES,BV13,PLANNING POLICY,BV13C,DEPT of STRATEGIC PLANNING and ENVIRONMENT,SUPPLIES & SERVICES,4,Environmental Services,18,CONSULTANTS FEES,4401,21/02/2020,669630,600.00 ,Revenue,RICARDO-ENERGY & ENVIRONMENT,8229264
Fareham Borough Council,http://statistics.data.gov.uk/id/local-authority/24UE,HIGHWAYS ROADS AND TRANSPORT,BV12,PARKING SERVICES,BV12D,DEPT OF LEISURE & COMMUNITY,SUPPLIES & SERVICES,4,Street & Traffic Management,35,LEGAL FEES,4400,21/02/2020,669638,1805.00 ,Revenue,TRAFFIC ENFORCEMENT CENTRE,
Fareham Borough Council,http://statistics.data.gov.uk/id/local-authority/24UE,PLANNING SERVICES,BV13,ECONOMIC DEVELOPMENT,BV13E,DEPT OF LEISURE & COMMUNITY,SUPPLIES & SERVICES,4,Highway Equipment & Materials�,23,FURNITURE & EQUIPT. PURCHASES,4000,21/02/2020,669641,4695.00 ,Revenue,GALA LIGHTS UK,6612708
Fareham Borough Council,http://statistics.data.gov.uk/id/local-authority/24UE,CAPITAL PROGRAMME - OTHER SERVICES,CP,CAPITAL PROPERTY SERVICES,CP23,CAPITAL - FINANCE & RESOURCES CAPITAL,SUPPLIES & SERVICES,4,Consultancy,15,CONSULTANTS FEES,4401,21/02/2020,669657,13700.00 ,Capital,PCS CONSULTING ENGINEERS LTD,05573180
Fareham Borough Council,http://statistics.data.gov.uk/id/local-authority/24UE,HIGHWAYS ROADS AND TRANSPORT,BV12,PARKING SERVICES,BV12D,DEPT OF LEISURE & COMMUNITY,SUPPLIES & SERVICES,4,Facilities & Management Services,19,SECURITY SERVICES,4409,21/02/2020,669661,2604.00 ,Revenue,VENTURE SECURITY MANAGEMENT LTD,06000601
Fareham Borough Council,http://statistics.data.gov.uk/id/local-authority/24UE,CAPITAL PROGRAMME - OTHER SERVICES,CP,CAPITAL PROPERTY SERVICES,CP23,CAPITAL - FINANCE & RESOURCES CAPITAL,SUPPLIES & SERVICES,4,Art & Leisure Services,29,FURNITURE & EQUIPT. PURCHASES,4000,28/02/2020,669662,20000.00 ,Capital,PETER CLUTTERBUCK,
Fareham Borough Council,http://statistics.data.gov.uk/id/local-authority/24UE,ENVIRONMENT AND REGULATORY SER,BV03,WASTE COLLECTION,BV03G,STREETSCENE,SUPPLIES & SERVICES,4,Environmental Services,18,FURNITURE & EQUIPT. PURCHASES,4000,21/02/2020,669664,8428.80 ,Revenue,CRAEMER UK LTD,02574815
Fareham Borough Council,http://statistics.data.gov.uk/id/local-authority/24UE,ENVIRONMENT AND REGULATORY SER,BV03,WASTE COLLECTION,BV03G,STREETSCENE,SUPPLIES & SERVICES,4,Environmental Services,18,FURNITURE & EQUIPT. PURCHASES,4000,21/02/2020,669664,5268.00 ,Revenue,CRAEMER UK LTD,02574815
Fareham Borough Council,http://statistics.data.gov.uk/id/local-authority/24UE,ENVIRONMENT AND REGULATORY SER,BV03,ENVIRONMENTAL HEALTH,BV03C,DEPT OF LEISURE & COMMUNITY,TRANSPORT RELATED EXPENDITURE,3,Unclassified,,TRANSPORT INSURANCE - PREMIUM,3500,21/02/2020,669666,750.00 ,Revenue,redacted personal data,
Fareham Borough Council,http://statistics.data.gov.uk/id/local-authority/24UE,ENVIRONMENT AND REGULATORY SER,BV03,ENVIRONMENTAL HEALTH,BV03C,DEPT OF LEISURE & COMMUNITY,SUPPLIES & SERVICES,4,Facilities & Management Services,19,SECURITY SERVICES,4409,21/02/2020,669668,1306.50 ,Revenue,VENTURE SECURITY MANAGEMENT LTD,06000601
Fareham Borough Council,http://statistics.data.gov.uk/id/local-authority/24UE,ENVIRONMENT AND REGULATORY SER,BV03,WASTE COLLECTION,BV03G,STREETSCENE,EMPLOYEES RELATED EXPENDITURE,1,Human Resources,26,AGENCY WORKERS,1050,28/02/2020,669669,489.27 ,Revenue,BERRY RECRUITMENT LIMITED,07036111
Fareham Borough Council,http://statistics.data.gov.uk/id/local-authority/24UE,ENVIRONMENT AND REGULATORY SER,BV03,WASTE COLLECTION,BV03G,STREETSCENE,EMPLOYEES RELATED EXPENDITURE,1,Human Resources,26,AGENCY WORKERS,1050,28/02/2020,669669,107.93 ,Revenue,BERRY RECRUITMENT LIMITED,07036111
Fareham Borough Council,http://statistics.data.gov.uk/id/local-authority/24UE,ENVIRONMENT AND REGULATORY SER,BV03,WASTE COLLECTION,BV03G,STREETSCENE,EMPLOYEES RELATED EXPENDITURE,1,Human Resources,26,AGENCY WORKERS,1050,28/02/2020,669670,215.85 ,Revenue,BERRY RECRUITMENT LIMITED,07036111
Fareham Borough Council,http://statistics.data.gov.uk/id/local-authority/24UE,ENVIRONMENT AND REGULATORY SER,BV03,WASTE COLLECTION,BV03G,STREETSCENE,EMPLOYEES RELATED EXPENDITURE,1,Human Resources,26,AGENCY WORKERS,1050,28/02/2020,669670,381.35 ,Revenue,BERRY RECRUITMENT LIMITED,07036111
Fareham Borough Council,http://statistics.data.gov.uk/id/local-authority/24UE,ENVIRONMENT AND REGULATORY SER,BV03,WASTE COLLECTION,BV03G,STREETSCENE,EMPLOYEES RELATED EXPENDITURE,1,Human Resources,26,AGENCY WORKERS,1050,28/02/2020,669671,107.92 ,Revenue,BERRY RECRUITMENT LIMITED,07036111
Fareham Borough Council,http://statistics.data.gov.uk/id/local-authority/24UE,ENVIRONMENT AND REGULATORY SER,BV03,WASTE COLLECTION,BV03G,STREETSCENE,EMPLOYEES RELATED EXPENDITURE,1,Human Resources,26,AGENCY WORKERS,1050,28/02/2020,669671,489.28 ,Revenue,BERRY RECRUITMENT LIMITED,07036111
Fareham Borough Council,http://statistics.data.gov.uk/id/local-authority/24UE,ENVIRONMENT AND REGULATORY SER,BV03,WASTE COLLECTION,BV03G,STREETSCENE,EMPLOYEES RELATED EXPENDITURE,1,Human Resources,26,AGENCY WORKERS,1050,28/02/2020,669672,489.28 ,Revenue,BERRY RECRUITMENT LIMITED,07036111
Fareham Borough Council,http://statistics.data.gov.uk/id/local-authority/24UE,ENVIRONMENT AND REGULATORY SER,BV03,WASTE COLLECTION,BV03G,STREETSCENE,EMPLOYEES RELATED EXPENDITURE,1,Human Resources,26,AGENCY WORKERS,1050,28/02/2020,669672,107.92 ,Revenue,BERRY RECRUITMENT LIMITED,07036111
Fareham Borough Council,http://statistics.data.gov.uk/id/local-authority/24UE,ENVIRONMENT AND REGULATORY SER,BV03,WASTE COLLECTION,BV03G,STREETSCENE,EMPLOYEES RELATED EXPENDITURE,1,Human Resources,26,AGENCY WORKERS,1050,28/02/2020,669673,597.20 ,Revenue,BERRY RECRUITMENT LIMITED,07036111
Fareham Borough Council,http://statistics.data.gov.uk/id/local-authority/24UE,ENVIRONMENT AND REGULATORY SER,BV03,WASTE COLLECTION,BV03G,STREETSCENE,EMPLOYEES RELATED EXPENDITURE,1,Human Resources,26,AGENCY WORKERS,1050,28/02/2020,669674,215.85 ,Revenue,BERRY RECRUITMENT LIMITED,07036111
Fareham Borough Council,http://statistics.data.gov.uk/id/local-authority/24UE,ENVIRONMENT AND REGULATORY SER,BV03,WASTE COLLECTION,BV03G,STREETSCENE,EMPLOYEES RELATED EXPENDITURE,1,Human Resources,26,AGENCY WORKERS,1050,28/02/2020,669674,381.35 ,Revenue,BERRY RECRUITMENT LIMITED,07036111
Fareham Borough Council,http://statistics.data.gov.uk/id/local-authority/24UE,ENVIRONMENT AND REGULATORY SER,BV03,WASTE COLLECTION,BV03G,STREETSCENE,EMPLOYEES RELATED EXPENDITURE,1,Human Resources,26,AGENCY WORKERS,1050,28/02/2020,669675,280.62 ,Revenue,BERRY RECRUITMENT LIMITED,07036111
Fareham Borough Council,http://statistics.data.gov.uk/id/local-authority/24UE,ENVIRONMENT AND REGULATORY SER,BV03,WASTE COLLECTION,BV03G,STREETSCENE,EMPLOYEES RELATED EXPENDITURE,1,Human Resources,26,AGENCY WORKERS,1050,28/02/2020,669675,215.85 ,Revenue,BERRY RECRUITMENT LIMITED,07036111
Fareham Borough Council,http://statistics.data.gov.uk/id/local-authority/24UE,ENVIRONMENT AND REGULATORY SER,BV03,WASTE COLLECTION,BV03G,STREETSCENE,EMPLOYEES RELATED EXPENDITURE,1,Human Resources,26,AGENCY WORKERS,1050,28/02/2020,669675,100.73 ,Revenue,BERRY RECRUITMENT LIMITED,07036111
Fareham Borough Council,http://statistics.data.gov.uk/id/local-authority/24UE,ENVIRONMENT AND REGULATORY SER,BV03,WASTE COLLECTION,BV03G,STREETSCENE,EMPLOYEES RELATED EXPENDITURE,1,Human Resources,26,AGENCY WORKERS,1050,28/02/2020,669676,597.20 ,Revenue,BERRY RECRUITMENT LIMITED,07036111
Fareham Borough Council,http://statistics.data.gov.uk/id/local-authority/24UE,HOUSING REVENUE ACCOUNT,BV06,OTHER COMMUNAL SERVICES,5034,DEPT OF DEPUTY CHIEF EXECUTIVE,PREMISES RELATED EXPENDITURE,2,Utilities,37,SEWERAGE & ENV. CHARGES (SWS),2410,21/02/2020,669682,1147.27 ,Revenue,SOUTHERN WATER SERVICES PLC,02366670
Fareham Borough Council,http://statistics.data.gov.uk/id/local-authority/24UE,GENERAL FUND HOUSING,BV05,HOUSING STRATEGY,BV05A,DEPT OF DEPUTY CHIEF EXECUTIVE,SUPPLIES & SERVICES,4,Human Resources,26,GRANTS AND SUBSCRIPTIONS,4700,21/02/2020,669687,1625.40 ,Revenue,INSTITUTE OF PUBLIC FINANCE LTD,02376684
Fareham Borough Council,http://statistics.data.gov.uk/id/local-authority/24UE,CORPORATE & DEMOCRATIC CORE,BV07A,CORPORATE MANAGEMENT,BV07AB,DEPT OF DEPUTY CHIEF EXECUTIVE,SUPPLIES & SERVICES,4,Human Resources,26,GRANTS AND SUBSCRIPTIONS,4700,21/02/2020,669687,1539.84 ,Revenue,INSTITUTE OF PUBLIC FINANCE LTD,02376684
Fareham Borough Council,http://statistics.data.gov.uk/id/local-authority/24UE,CORPORATE & DEMOCRATIC CORE,BV07A,CORPORATE MANAGEMENT,BV07AB,DEPT OF DEPUTY CHIEF EXECUTIVE,SUPPLIES & SERVICES,4,Human Resources,26,GRANTS AND SUBSCRIPTIONS,4700,21/02/2020,669687,1026.56 ,Revenue,INSTITUTE OF PUBLIC FINANCE LTD,02376684
Fareham Borough Council,http://statistics.data.gov.uk/id/local-authority/24UE,CENTRAL SERVICES,BV07,CENTRAL SERVICES TO THE PUBLIC,BV07B,DEPT OF DEPUTY CHIEF EXECUTIVE,SUPPLIES & SERVICES,4,Human Resources,26,GRANTS AND SUBSCRIPTIONS,4700,21/02/2020,669687,81.27 ,Revenue,INSTITUTE OF PUBLIC FINANCE LTD,02376684
Fareham Borough Council,http://statistics.data.gov.uk/id/local-authority/24UE,CENTRAL SERVICES,BV07,CENTRAL SERVICES TO THE PUBLIC,BV07B,DEPT OF DEPUTY CHIEF EXECUTIVE,SUPPLIES & SERVICES,4,Human Resources,26,GRANTS AND SUBSCRIPTIONS,4700,21/02/2020,669687,1544.12 ,Revenue,INSTITUTE OF PUBLIC FINANCE LTD,02376684
Fareham Borough Council,http://statistics.data.gov.uk/id/local-authority/24UE,OTHER REVENUE ACCOUNTS,RV,NON WORK GROUP HOLDING ACCOUNT,RV18,DEPT OF DEPUTY CHIEF EXECUTIVE,SUPPLIES & SERVICES,4,Human Resources,26,GRANTS AND SUBSCRIPTIONS,4700,21/02/2020,669687,4568.20 ,Revenue,INSTITUTE OF PUBLIC FINANCE LTD,02376684
Fareham Borough Council,http://statistics.data.gov.uk/id/local-authority/24UE,OTHER REVENUE ACCOUNTS,RV,NON WORK GROUP HOLDING ACCOUNT,RV18,DEPT OF DEPUTY CHIEF EXECUTIVE,SUPPLIES & SERVICES,4,Human Resources,26,GRANTS AND SUBSCRIPTIONS,4700,21/02/2020,669687,667.27 ,Revenue,INSTITUTE OF PUBLIC FINANCE LTD,02376684
Fareham Borough Council,http://statistics.data.gov.uk/id/local-authority/24UE,OTHER REVENUE ACCOUNTS,RV,NON WORK GROUP HOLDING ACCOUNT,RV18,DEPT OF DEPUTY CHIEF EXECUTIVE,SUPPLIES & SERVICES,4,Human Resources,26,GRANTS AND SUBSCRIPTIONS,4700,21/02/2020,669687,1539.84 ,Revenue,INSTITUTE OF PUBLIC FINANCE LTD,02376684
Fareham Borough Council,http://statistics.data.gov.uk/id/local-authority/24UE,FINANCING & INVESTMENT I&E,BVB02,INVESTMENT PROPERTIES,BVB170,DEPT of STRATEGIC PLANNING and ENVIRONMENT,SUPPLIES & SERVICES,4,Information Communication Technology,27,TELEPHONES,4510,21/02/2020,669688,13.75 ,Revenue,4SIGHT COMMUNICATIONS LTD,8160359
Fareham Borough Council,http://statistics.data.gov.uk/id/local-authority/24UE,CENTRAL SERVICES,BV07,CENTRAL SERVICES TO THE PUBLIC,BV07B,DEPT OF LEISURE & COMMUNITY,SUPPLIES & SERVICES,4,Information Communication Technology,27,TELEPHONES,4510,21/02/2020,669688,43.22 ,Revenue,4SIGHT COMMUNICATIONS LTD,8160359
Fareham Borough Council,http://statistics.data.gov.uk/id/local-authority/24UE,CULTURAL AND RELATED SERVICES,BV09,CULTURE AND HERITAGE,BV09A,DEPT OF LEISURE & COMMUNITY,SUPPLIES & SERVICES,4,Information Communication Technology,27,TELEPHONES,4510,21/02/2020,669688,31.75 ,Revenue,4SIGHT COMMUNICATIONS LTD,8160359
Fareham Borough Council,http://statistics.data.gov.uk/id/local-authority/24UE,CULTURAL AND RELATED SERVICES,BV09,RECREATION AND SPORT,BV09B,STREETSCENE,SUPPLIES & SERVICES,4,Information Communication Technology,27,TELEPHONES,4510,21/02/2020,669688,13.74 ,Revenue,4SIGHT COMMUNICATIONS LTD,8160359
Fareham Borough Council,http://statistics.data.gov.uk/id/local-authority/24UE,HIGHWAYS ROADS AND TRANSPORT,BV12,PARKING SERVICES,BV12D,DEPT OF LEISURE & COMMUNITY,SUPPLIES & SERVICES,4,Information Communication Technology,27,TELEPHONES,4510,21/02/2020,669688,43.78 ,Revenue,4SIGHT COMMUNICATIONS LTD,8160359
Fareham Borough Council,http://statistics.data.gov.uk/id/local-authority/24UE,HOUSING REVENUE ACCOUNT,BV06,SHELTERED HOUSING SERVICE,5031,DEPT OF DEPUTY CHIEF EXECUTIVE,SUPPLIES & SERVICES,4,Information Communication Technology,27,TELEPHONES,4510,21/02/2020,669688,249.88 ,Revenue,4SIGHT COMMUNICATIONS LTD,8160359
Fareham Borough Council,http://statistics.data.gov.uk/id/local-authority/24UE,HOUSING REVENUE ACCOUNT,BV06,SHELTERED HOUSING SERVICE,5031,DEPT OF DEPUTY CHIEF EXECUTIVE,PREMISES RELATED EXPENDITURE,2,Information Communication Technology,27,R & M ALARM SPEECH SYSTEMS,2027,21/02/2020,669688,162.02 ,Revenue,4SIGHT COMMUNICATIONS LTD,8160359
Fareham Borough Council,http://statistics.data.gov.uk/id/local-authority/24UE,HOUSING REVENUE ACCOUNT,BV06,OTHER COMMUNAL SERVICES,5034,DEPT OF DEPUTY CHIEF EXECUTIVE,SUPPLIES & SERVICES,4,Information Communication Technology,27,TELEPHONES,4510,21/02/2020,669688,13.74 ,Revenue,4SIGHT COMMUNICATIONS LTD,8160359
Fareham Borough Council,http://statistics.data.gov.uk/id/local-authority/24UE,OTHER REVENUE ACCOUNTS,RV,NON WORK GROUP HOLDING ACCOUNT,RV18,DEPT OF LEISURE & COMMUNITY,SUPPLIES & SERVICES,4,Information Communication Technology,27,TELEPHONES,4510,21/02/2020,669688,12.25 ,Revenue,4SIGHT COMMUNICATIONS LTD,8160359
Fareham Borough Council,http://statistics.data.gov.uk/id/local-authority/24UE,OTHER REVENUE ACCOUNTS,RV,NON WORK GROUP HOLDING ACCOUNT,RV18,DEPT OF SUPPORT SERVICES,SUPPLIES & SERVICES,4,Information Communication Technology,27,TELEPHONES,4510,21/02/2020,669688,995.00 ,Revenue,4SIGHT COMMUNICATIONS LTD,8160359
Fareham Borough Council,http://statistics.data.gov.uk/id/local-authority/24UE,CORPORATE & DEMOCRATIC CORE,BV07A,CORPORATE MANAGEMENT,BV07AB,DEPT OF DEPUTY CHIEF EXECUTIVE,SUPPLIES & SERVICES,4,Human Resources,26,CONSULTANTS FEES,4401,21/02/2020,669702,4275.00 ,Revenue,CIPFA BUSINESS LTD,2376684
Fareham Borough Council,http://statistics.data.gov.uk/id/local-authority/24UE,CORPORATE & DEMOCRATIC CORE,BV07A,CORPORATE MANAGEMENT,BV07AB,DEPT OF DEPUTY CHIEF EXECUTIVE,SUPPLIES & SERVICES,4,Financial Services,20,BANK CHARGES,4954,21/02/2020,669705,2315.06 ,Revenue,CAPITA BUSINESS SERVICES LTD,02299747
Fareham Borough Council,http://statistics.data.gov.uk/id/local-authority/24UE,CAPITAL PROGRAMME - OTHER SERVICES,CP,CAPITAL PROPERTY SERVICES,CP23,CAPITAL - FINANCE & RESOURCES CAPITAL,SUPPLIES & SERVICES,4,Consultancy,15,CONSULTANTS FEES,4401,21/02/2020,669706,506.25 ,Capital,BERMONT PROJECT MANAGEMENT LTD,06717515
Fareham Borough Council,http://statistics.data.gov.uk/id/local-authority/24UE,CAPITAL PROGRAMME - OTHER SERVICES,CP,CAPITAL PROPERTY SERVICES,CP23,CAPITAL - FINANCE & RESOURCES CAPITAL,SUPPLIES & SERVICES,4,Consultancy,15,CONSULTANTS FEES,4401,21/02/2020,669707,2500.00 ,Capital,BERMONT PROJECT MANAGEMENT LTD,06717515
Fareham Borough Council,http://statistics.data.gov.uk/id/local-authority/24UE,CULTURAL AND RELATED SERVICES,BV09,RECREATION AND SPORT,BV09B,DEPT OF LEISURE & COMMUNITY,PREMISES RELATED EXPENDITURE,2,Building Construction Materials,10,R & M OF BUILDINGS,2000,21/02/2020,669712,1140.00 ,Revenue,JONES BROS (FLAT ROOFING) LTD,02717279
Fareham Borough Council,http://statistics.data.gov.uk/id/local-authority/24UE,CULTURAL AND RELATED SERVICES,BV09,RECREATION AND SPORT,BV09B,DEPT OF LEISURE & COMMUNITY,PREMISES RELATED EXPENDITURE,2,"Works - Construction, Repair & Maintenance",39,R & M OF BUILDINGS,2000,21/02/2020,669715,1468.80 ,Revenue,SOUTHERN FLAT & PITCHED ROOFING LTD,3953671
Fareham Borough Council,http://statistics.data.gov.uk/id/local-authority/24UE,HOUSING REVENUE ACCOUNT,BV06,COMMUNAL HEATING SERVICES,5025,DEPT OF DEPUTY CHIEF EXECUTIVE,PREMISES RELATED EXPENDITURE,2,Utilities,37,GAS,2130,21/02/2020,669717,677.13 ,Revenue,TOTAL GAS & POWER LIMITED,2172239
Fareham Borough Council,http://statistics.data.gov.uk/id/local-authority/24UE,OTHER REVENUE ACCOUNTS,RV,NON WORK GROUP HOLDING ACCOUNT,RV18,DEPT of STRATEGIC PLANNING and ENVIRONMENT,SUPPLIES & SERVICES,4,Environmental Services,18,TIPPING / INCINERATOR FEES,4425,21/02/2020,669719,701.44 ,Revenue,ZEBRA WASTE SKIP HIRE,01506942
Fareham Borough Council,http://statistics.data.gov.uk/id/local-authority/24UE,OTHER REVENUE ACCOUNTS,RV,CONTRACT SERVICES D.S.O.,RV14,DEPT of STRATEGIC PLANNING and ENVIRONMENT,SUPPLIES & SERVICES,4,Local/Central Government,98,SUB-CONTRACTORS CHARGES,4432,21/02/2020,669723,515.03 ,Revenue,TEST VALLEY BOROUGH COUNCIL,
Fareham Borough Council,http://statistics.data.gov.uk/id/local-authority/24UE,HIGHWAYS ROADS AND TRANSPORT,BV12,PARKING SERVICES,BV12D,DEPT OF LEISURE & COMMUNITY,SUPPLIES & SERVICES,4,Street & Traffic Management,35,LEGAL FEES,4400,28/02/2020,669726,2000.00 ,Revenue,TRAFFIC ENFORCEMENT CENTRE,
Fareham Borough Council,http://statistics.data.gov.uk/id/local-authority/24UE,BALANCE SHEET,BS,BAL. SHEET - GENERAL FUND,BS1,BAL. SHEET - GENERAL FUND,TOTAL ASSETS LESS LIABILITIES,BS100,Local/Central Government,98,SRMP RESERVE FUND,L116,21/02/2020,669727,33905.56 ,Balance Sheet,PORTSMOUTH CITY COUNCIL,
Fareham Borough Council,http://statistics.data.gov.uk/id/local-authority/24UE,OTHER REVENUE ACCOUNTS,RV,CONTRACT SERVICES D.S.O.,RV14,DEPT of STRATEGIC PLANNING and ENVIRONMENT,TRANSPORT RELATED EXPENDITURE,3,Local/Central Government,98,PCC - CAR ALLOWANCES,3433,21/02/2020,669728,60.00 ,Revenue,PORTSMOUTH CITY COUNCIL,
Fareham Borough Council,http://statistics.data.gov.uk/id/local-authority/24UE,OTHER REVENUE ACCOUNTS,RV,CONTRACT SERVICES D.S.O.,RV14,DEPT of STRATEGIC PLANNING and ENVIRONMENT,SUPPLIES & SERVICES,4,Local/Central Government,98,MOBILE TELEPHONES,4514,21/02/2020,669728,7.36 ,Revenue,PORTSMOUTH CITY COUNCIL,
Fareham Borough Council,http://statistics.data.gov.uk/id/local-authority/24UE,OTHER REVENUE ACCOUNTS,RV,CONTRACT SERVICES D.S.O.,RV14,DEPT of STRATEGIC PLANNING and ENVIRONMENT,THIRD PARTY PAYMENTS,5,Local/Central Government,98,PCC - B C PARTNERSHIP,5170,21/02/2020,669728,3200.00 ,Revenue,PORTSMOUTH CITY COUNCIL,
Fareham Borough Council,http://statistics.data.gov.uk/id/local-authority/24UE,PLANNING SERVICES,BV13,DEVELOPMENT CONTROL,BV13B,DEPT of STRATEGIC PLANNING and ENVIRONMENT,SUPPLIES & SERVICES,4,Human Resources,26,CONSULTANTS FEES,4401,21/02/2020,669729,496.67 ,Revenue,MONTAGU EVANS LLP,OC312072
Fareham Borough Council,http://statistics.data.gov.uk/id/local-authority/24UE,PLANNING SERVICES,BV13,DEVELOPMENT CONTROL,BV13B,DEPT of STRATEGIC PLANNING and ENVIRONMENT,SUPPLIES & SERVICES,4,Human Resources,26,CONSULTANTS FEES,4401,21/02/2020,669729,3200.00 ,Revenue,MONTAGU EVANS LLP,OC312072
Fareham Borough Council,http://statistics.data.gov.uk/id/local-authority/24UE,PLANNING SERVICES,BV13,DEVELOPMENT CONTROL,BV13B,DEPT of STRATEGIC PLANNING and ENVIRONMENT,SUPPLIES & SERVICES,4,Legal Services,28,LEGAL FEES,4400,21/02/2020,669730,2250.00 ,Revenue,CORNERSTONE BARRISTERS,
Fareham Borough Council,http://statistics.data.gov.uk/id/local-authority/24UE,PLANNING SERVICES,BV13,DEVELOPMENT CONTROL,BV13B,DEPT of STRATEGIC PLANNING and ENVIRONMENT,SUPPLIES & SERVICES,4,Legal Services,28,LEGAL FEES,4400,21/02/2020,669731,5025.00 ,Revenue,CORNERSTONE BARRISTERS,
Fareham Borough Council,http://statistics.data.gov.uk/id/local-authority/24UE,OTHER REVENUE ACCOUNTS,RV,NON WORK GROUP HOLDING ACCOUNT,RV18,DEPT OF SUPPORT SERVICES,SUPPLIES & SERVICES,4,Facilities & Management Services,19,EXTERNAL PRINTING,4310,28/02/2020,669733,946.81 ,Revenue,CFH DOCMAIL LIMITED,07168911
Fareham Borough Council,http://statistics.data.gov.uk/id/local-authority/24UE,HOUSING REVENUE ACCOUNT,BV06,RESPONSIVE & VOID MAINTENANCE,5901,DEPT OF DEPUTY CHIEF EXECUTIVE,PREMISES RELATED EXPENDITURE,2,"Works - Construction, Repair & Maintenance",39,VOID COSTS - NOT RECHARGEABLE,2011,21/02/2020,669802,8388.07 ,Revenue,MOUNTJOY LTD,06009150
Fareham Borough Council,http://statistics.data.gov.uk/id/local-authority/24UE,OTHER REVENUE ACCOUNTS,RV,NON WORK GROUP HOLDING ACCOUNT,RV18,DEPT OF SUPPORT SERVICES,SUPPLIES & SERVICES,4,Information Communication Technology,27,ICT HARDWARE,4532,28/02/2020,669803,900.00 ,Revenue,CRISTIE DATA LTD,03457111
Fareham Borough Council,http://statistics.data.gov.uk/id/local-authority/24UE,OTHER REVENUE ACCOUNTS,RV,NON WORK GROUP HOLDING ACCOUNT,RV18,DEPT OF SUPPORT SERVICES,SUPPLIES & SERVICES,4,Information Communication Technology,27,ICT HARDWARE,4532,28/02/2020,669803,1800.00 ,Revenue,CRISTIE DATA LTD,03457111
Fareham Borough Council,http://statistics.data.gov.uk/id/local-authority/24UE,OTHER REVENUE ACCOUNTS,RV,NON WORK GROUP HOLDING ACCOUNT,RV18,DEPT OF SUPPORT SERVICES,SUPPLIES & SERVICES,4,Information Communication Technology,27,ICT HARDWARE,4532,28/02/2020,669803,1585.00 ,Revenue,CRISTIE DATA LTD,03457111
Fareham Borough Council,http://statistics.data.gov.uk/id/local-authority/24UE,CAPITAL PROGRAMME - OTHER SERVICES,CP,CAPITAL VEHICLE & PLANT,CP23,CAPITAL - STREETSCENE CAPITAL,TRANSPORT RELATED EXPENDITURE,3,Vehicle Management,38,PURCHASE OF VEHICLES,3000,21/02/2020,669804,16000.00 ,Capital,NORTON COMMERCIALS LTD,08516595
Fareham Borough Council,http://statistics.data.gov.uk/id/local-authority/24UE,ENVIRONMENT AND REGULATORY SER,BV03,WASTE COLLECTION,BV03G,STREETSCENE,TRANSPORT RELATED EXPENDITURE,3,Vehicle Management,38,HIRE OF VEHICLES,3210,21/02/2020,669807,4290.00 ,Revenue,RIVERSIDE TRUCK RENTAL LTD,3190863
Fareham Borough Council,http://statistics.data.gov.uk/id/local-authority/24UE,OTHER REVENUE ACCOUNTS,RV,NON WORK GROUP HOLDING ACCOUNT,RV18,STREETSCENE,SUPPLIES & SERVICES,4,Clothing,14,PROTECTIVE CLOTHING & UNIFORMS,4200,21/02/2020,669822,633.52 ,Revenue,JOHNSONS APPARELMASTER,00464645
Fareham Borough Council,http://statistics.data.gov.uk/id/local-authority/24UE,ENVIRONMENT AND REGULATORY SER,BV03,STREET CLEANSING,BV03F,STREETSCENE,SUPPLIES & SERVICES,4,Environmental Services,18,TIPPING / INCINERATOR FEES,4425,21/02/2020,669823,979.18 ,Revenue,ZEBRA WASTE SKIP HIRE,01506942
Fareham Borough Council,http://statistics.data.gov.uk/id/local-authority/24UE,ENVIRONMENT AND REGULATORY SER,BV03,STREET CLEANSING,BV03F,STREETSCENE,SUPPLIES & SERVICES,4,Environmental Services,18,TIPPING / INCINERATOR FEES,4425,21/02/2020,669823,346.00 ,Revenue,ZEBRA WASTE SKIP HIRE,01506942
Fareham Borough Council,http://statistics.data.gov.uk/id/local-authority/24UE,CAPITAL PROGRAMME - OTHER SERVICES,CP,CAPITAL VEHICLE & PLANT,CP23,CAPITAL - STREETSCENE CAPITAL,TRANSPORT RELATED EXPENDITURE,3,Vehicle Management,38,PURCHASE OF VEHICLES,3000,21/02/2020,669839,3165.00 ,Capital,SOUTH COAST TAIL LIFT REPAIRS LTD,04533267
Fareham Borough Council,http://statistics.data.gov.uk/id/local-authority/24UE,OTHER REVENUE ACCOUNTS,RV,NON WORK GROUP HOLDING ACCOUNT,RV18,DEPT of STRATEGIC PLANNING and ENVIRONMENT,PREMISES RELATED EXPENDITURE,2,"Works - Construction, Repair & Maintenance",39,R & M OF BUILDINGS,2000,21/02/2020,669843,5204.91 ,Revenue,BEAVEN LIMITED,11928961
Fareham Borough Council,http://statistics.data.gov.uk/id/local-authority/24UE,OTHER REVENUE ACCOUNTS,RV,NON WORK GROUP HOLDING ACCOUNT,RV18,DEPT of STRATEGIC PLANNING and ENVIRONMENT,PREMISES RELATED EXPENDITURE,2,"Works - Construction, Repair & Maintenance",39,R & M OF BUILDINGS,2000,21/02/2020,669843,7983.42 ,Revenue,BEAVEN LIMITED,11928961
Fareham Borough Council,http://statistics.data.gov.uk/id/local-authority/24UE,OTHER REVENUE ACCOUNTS,RV,NON WORK GROUP HOLDING ACCOUNT,RV18,DEPT of STRATEGIC PLANNING and ENVIRONMENT,PREMISES RELATED EXPENDITURE,2,"Works - Construction, Repair & Maintenance",39,R & M OF BUILDINGS,2000,21/02/2020,669843,-13188.33 ,Revenue,BEAVEN LIMITED,11928961
Fareham Borough Council,http://statistics.data.gov.uk/id/local-authority/24UE,OTHER REVENUE ACCOUNTS,RV,NON WORK GROUP HOLDING ACCOUNT,RV18,DEPT of STRATEGIC PLANNING and ENVIRONMENT,PREMISES RELATED EXPENDITURE,2,"Works - Construction, Repair & Maintenance",39,R & M OF BUILDINGS,2000,21/02/2020,669843,13188.33 ,Revenue,BEAVEN LIMITED,11928961
Fareham Borough Council,http://statistics.data.gov.uk/id/local-authority/24UE,OTHER REVENUE ACCOUNTS,RV,G.F. EXPENDITURE ON SERVICES,RV10,STREETSCENE,SUPPLIES & SERVICES,4,Horticultural,24,MATERIALS (OPERATIONAL),4007,21/02/2020,669844,741.22 ,Revenue,SHALLOWMEAD WHOLESALE & RETAIL NURSERIES LTD,1311474
Fareham Borough Council,http://statistics.data.gov.uk/id/local-authority/24UE,CULTURAL AND RELATED SERVICES,BV09,RECREATION AND SPORT,BV09B,STREETSCENE,SUPPLIES & SERVICES,4,Highway Equipment & Materials�,23,FURNITURE & EQUIPT. PURCHASES,4000,21/02/2020,669845,518.24 ,Revenue,SIGNWAY SUPPLIES,01450039
Fareham Borough Council,http://statistics.data.gov.uk/id/local-authority/24UE,ENVIRONMENT AND REGULATORY SER,BV03,STREET CLEANSING,BV03F,STREETSCENE,SUPPLIES & SERVICES,4,Vehicle Management,38,MATERIALS (OPERATIONAL),4007,21/02/2020,669849,580.00 ,Revenue,SWEEPER HIRE,
Fareham Borough Council,http://statistics.data.gov.uk/id/local-authority/24UE,ENVIRONMENT AND REGULATORY SER,BV03,WASTE COLLECTION,BV03G,STREETSCENE,TRANSPORT RELATED EXPENDITURE,3,Vehicle Management,38,ROUTINE REPAIRS VEHICLES/PLANT,3010,28/02/2020,669854,2131.37 ,Revenue,TRUCK AND TRAILER SPECIALISTS LTD,2367565
Fareham Borough Council,http://statistics.data.gov.uk/id/local-authority/24UE,OTHER REVENUE ACCOUNTS,RV,G.F. EXPENDITURE ON SERVICES,RV10,STREETSCENE,SUPPLIES & SERVICES,4,Art & Leisure Services,29,MATERIALS (OPERATIONAL),4007,21/02/2020,669858,1165.00 ,Revenue,FLEET (LINE MARKERS) LTD,00588668
Fareham Borough Council,http://statistics.data.gov.uk/id/local-authority/24UE,CAPITAL PROGRAMME - HOUSING SERVICES,CP,RENOVATION OF L.A. DWELLINGS,CP10,CAPITAL - FAREHAM HOUSING CAPITAL,PREMISES RELATED EXPENDITURE,2,Information Communication Technology,27,R & M ALARM SPEECH SYSTEMS,2027,21/02/2020,669859,11629.97 ,Capital,TUNSTALL HEALTHCARE (UK) LTD,01332249
Fareham Borough Council,http://statistics.data.gov.uk/id/local-authority/24UE,OTHER REVENUE ACCOUNTS,RV,CONTRACT SERVICES D.S.O.,RV14,DEPT OF DEPUTY CHIEF EXECUTIVE,SUPPLIES & SERVICES,4,Building Construction Materials,10,MATERIALS (OPERATIONAL),4007,28/02/2020,669880,583.66 ,Revenue,CITY ELECTRICAL FACTORS LTD,00336408
Fareham Borough Council,http://statistics.data.gov.uk/id/local-authority/24UE,CORPORATE & DEMOCRATIC CORE,BV07A,DEMOCRATIC REP.& MANAGEMENT,BV07AA,DEPT OF SUPPORT SERVICES,SUPPLIES & SERVICES,4,Information Communication Technology,27,TELEPHONES,4510,28/02/2020,670102,51.50 ,Revenue,BT PLC,1800000
Fareham Borough Council,http://statistics.data.gov.uk/id/local-authority/24UE,CENTRAL SERVICES,BV07,CENTRAL SERVICES TO THE PUBLIC,BV07B,DEPT OF LEISURE & COMMUNITY,SUPPLIES & SERVICES,4,Information Communication Technology,27,TELEPHONES,4510,28/02/2020,670102,41.28 ,Revenue,BT PLC,1800000
Fareham Borough Council,http://statistics.data.gov.uk/id/local-authority/24UE,CULTURAL AND RELATED SERVICES,BV09,RECREATION AND SPORT,BV09B,STREETSCENE,SUPPLIES & SERVICES,4,Information Communication Technology,27,TELEPHONES,4510,28/02/2020,670102,11.98 ,Revenue,BT PLC,1800000
Fareham Borough Council,http://statistics.data.gov.uk/id/local-authority/24UE,HIGHWAYS ROADS AND TRANSPORT,BV12,PARKING SERVICES,BV12D,DEPT OF LEISURE & COMMUNITY,SUPPLIES & SERVICES,4,Information Communication Technology,27,TELEPHONES,4510,28/02/2020,670102,72.62 ,Revenue,BT PLC,1800000
Fareham Borough Council,http://statistics.data.gov.uk/id/local-authority/24UE,HOUSING REVENUE ACCOUNT,BV06,SHELTERED HOUSING SERVICE,5031,DEPT OF DEPUTY CHIEF EXECUTIVE,SUPPLIES & SERVICES,4,Information Communication Technology,27,TELEPHONES,4510,28/02/2020,670102,144.70 ,Revenue,BT PLC,1800000
Fareham Borough Council,http://statistics.data.gov.uk/id/local-authority/24UE,HOUSING REVENUE ACCOUNT,BV06,SHELTERED HOUSING SERVICE,5031,DEPT OF DEPUTY CHIEF EXECUTIVE,PREMISES RELATED EXPENDITURE,2,Information Communication Technology,27,R & M ALARM SPEECH SYSTEMS,2027,28/02/2020,670102,29.30 ,Revenue,BT PLC,1800000
Fareham Borough Council,http://statistics.data.gov.uk/id/local-authority/24UE,HOUSING REVENUE ACCOUNT,BV06,OTHER COMMUNAL SERVICES,5034,DEPT OF DEPUTY CHIEF EXECUTIVE,SUPPLIES & SERVICES,4,Information Communication Technology,27,TELEPHONES,4510,28/02/2020,670102,84.80 ,Revenue,BT PLC,1800000
Fareham Borough Council,http://statistics.data.gov.uk/id/local-authority/24UE,OTHER REVENUE ACCOUNTS,RV,NON WORK GROUP HOLDING ACCOUNT,RV18,DEPT OF SUPPORT SERVICES,SUPPLIES & SERVICES,4,Information Communication Technology,27,TELEPHONES,4510,28/02/2020,670102,339.20 ,Revenue,BT PLC,1800000
Fareham Borough Council,http://statistics.data.gov.uk/id/local-authority/24UE,GENERAL FUND HOUSING,BV05,HOUSING ADVICE,BV05C,DEPT OF DEPUTY CHIEF EXECUTIVE,SUPPLIES & SERVICES,4,Unclassified,99,LOCAL ASSISTANCE PAYMENT,4727,28/02/2020,670106,1615.00 ,Revenue,redacted personal data,
Fareham Borough Council,http://statistics.data.gov.uk/id/local-authority/24UE,GENERAL FUND HOUSING,BV05,HOUSING ADVICE,BV05C,DEPT OF DEPUTY CHIEF EXECUTIVE,SUPPLIES & SERVICES,4,Facilities & Management Services,19,LOCAL ASSISTANCE PAYMENT,4727,28/02/2020,670139,1914.07 ,Revenue,redacted personal data,
Fareham Borough Council,http://statistics.data.gov.uk/id/local-authority/24UE,GENERAL FUND HOUSING,BV05,HOUSING ADVICE,BV05C,DEPT OF DEPUTY CHIEF EXECUTIVE,SUPPLIES & SERVICES,4,Unclassified,,LOCAL ASSISTANCE PAYMENT,4727,28/02/2020,670145,600.00 ,Revenue,redacted personal data,
Fareham Borough Council,http://statistics.data.gov.uk/id/local-authority/24UE,CAPITAL PROGRAMME - HOUSING SERVICES,CP,RENOVATION OF L.A. DWELLINGS,CP10,CAPITAL - FAREHAM HOUSING CAPITAL,PREMISES RELATED EXPENDITURE,2,Information Communication Technology,27,R & M ALARM SPEECH SYSTEMS,2027,28/02/2020,670176,-1293.91 ,Capital,TUNSTALL HEALTHCARE (UK) LTD,01332249
Fareham Borough Council,http://statistics.data.gov.uk/id/local-authority/24UE,CULTURAL AND RELATED SERVICES,BV09,RECREATION AND SPORT,BV09B,DEPT OF LEISURE & COMMUNITY,PREMISES RELATED EXPENDITURE,2,Social Community Care Supplies & Services,32,TOILET REQUISITES,2720,28/02/2020,670193,53.00 ,Revenue,CROFTON COMMUNITY ASSOCIATION,
Fareham Borough Council,http://statistics.data.gov.uk/id/local-authority/24UE,CULTURAL AND RELATED SERVICES,BV09,RECREATION AND SPORT,BV09B,DEPT OF LEISURE & COMMUNITY,PREMISES RELATED EXPENDITURE,2,Social Community Care Supplies & Services,32,GAS,2130,28/02/2020,670193,2560.78 ,Revenue,CROFTON COMMUNITY ASSOCIATION,
Fareham Borough Council,http://statistics.data.gov.uk/id/local-authority/24UE,CULTURAL AND RELATED SERVICES,BV09,RECREATION AND SPORT,BV09B,DEPT OF LEISURE & COMMUNITY,PREMISES RELATED EXPENDITURE,2,Social Community Care Supplies & Services,32,CONTRACT CLEANING - GENERAL,2700,28/02/2020,670193,190.08 ,Revenue,CROFTON COMMUNITY ASSOCIATION,
Fareham Borough Council,http://statistics.data.gov.uk/id/local-authority/24UE,CULTURAL AND RELATED SERVICES,BV09,RECREATION AND SPORT,BV09B,DEPT OF LEISURE & COMMUNITY,PREMISES RELATED EXPENDITURE,2,Social Community Care Supplies & Services,32,CONTRACT CLEANING - GENERAL,2700,28/02/2020,670193,663.00 ,Revenue,CROFTON COMMUNITY ASSOCIATION,
Fareham Borough Council,http://statistics.data.gov.uk/id/local-authority/24UE,CAPITAL PROGRAMME - OTHER SERVICES,CP,CAPITAL PROPERTY SERVICES,CP23,CAPITAL - FINANCE & RESOURCES CAPITAL,SUPPLIES & SERVICES,4,Consultancy,15,CONSULTANTS FEES,4401,28/02/2020,670198,1990.00 ,Capital,BERMONT PROJECT MANAGEMENT LTD,06717515
Fareham Borough Council,http://statistics.data.gov.uk/id/local-authority/24UE,ENVIRONMENT AND REGULATORY SER,BV03,WASTE COLLECTION,BV03G,STREETSCENE,TRANSPORT RELATED EXPENDITURE,3,Vehicle Management,38,ROUTINE REPAIRS VEHICLES/PLANT,3010,28/02/2020,670288,1318.52 ,Revenue,SOLENT TRUCK PARTS LTD,3726877
Fareham Borough Council,http://statistics.data.gov.uk/id/local-authority/24UE,ENVIRONMENT AND REGULATORY SER,BV03,WASTE COLLECTION,BV03G,STREETSCENE,TRANSPORT RELATED EXPENDITURE,3,Vehicle Management,38,HIRE OF VEHICLES,3210,28/02/2020,670301,2790.00 ,Revenue,MUNIHIRE LTD,7199558
Fareham Borough Council,http://statistics.data.gov.uk/id/local-authority/24UE,ENVIRONMENT AND REGULATORY SER,BV03,WASTE COLLECTION,BV03G,STREETSCENE,SUPPLIES & SERVICES,4,Environmental Services,18,FURNITURE & EQUIPT. PURCHASES,4000,28/02/2020,670327,347.10 ,Revenue,ENVIRONMENTAL SOLUTIONS EUROPE (ESE),02327763
Fareham Borough Council,http://statistics.data.gov.uk/id/local-authority/24UE,ENVIRONMENT AND REGULATORY SER,BV03,WASTE COLLECTION,BV03G,STREETSCENE,SUPPLIES & SERVICES,4,Environmental Services,18,FURNITURE & EQUIPT. PURCHASES,4000,28/02/2020,670327,763.62 ,Revenue,ENVIRONMENTAL SOLUTIONS EUROPE (ESE),02327763
Fareham Borough Council,http://statistics.data.gov.uk/id/local-authority/24UE,CORPORATE & DEMOCRATIC CORE,BV07A,CORPORATE MANAGEMENT,BV07AB,DEPT OF DEPUTY CHIEF EXECUTIVE,SUPPLIES & SERVICES,4,Consultancy,15,CONSULTANTS FEES,4401,28/02/2020,670328,2362.50 ,Revenue,INTEGRATED SKILLS LIMITED,2849999
Fareham Borough Council,http://statistics.data.gov.uk/id/local-authority/24UE,CAPITAL PROGRAMME - HOUSING SERVICES,CP,RENOVATION OF L.A. DWELLINGS,CP10,CAPITAL - FAREHAM HOUSING CAPITAL,PREMISES RELATED EXPENDITURE,2,Information Communication Technology,27,R & M ALARM SPEECH SYSTEMS,2027,28/02/2020,670331,618.43 ,Capital,TUNSTALL HEALTHCARE (UK) LTD,01332249
Fareham Borough Council,http://statistics.data.gov.uk/id/local-authority/24UE,CAPITAL PROGRAMME - HOUSING SERVICES,CP,RENOVATION OF L.A. DWELLINGS,CP10,CAPITAL - FAREHAM HOUSING CAPITAL,PREMISES RELATED EXPENDITURE,2,Information Communication Technology,27,R & M ALARM SPEECH SYSTEMS,2027,28/02/2020,670332,6374.63 ,Capital,TUNSTALL HEALTHCARE (UK) LTD,01332249
Fareham Borough Council,http://statistics.data.gov.uk/id/local-authority/24UE,CAPITAL PROGRAMME - HOUSING SERVICES,CP,RENOVATION OF L.A. DWELLINGS,CP10,CAPITAL - FAREHAM HOUSING CAPITAL,PREMISES RELATED EXPENDITURE,2,Information Communication Technology,27,R & M ALARM SPEECH SYSTEMS,2027,28/02/2020,670333,1674.54 ,Capital,TUNSTALL HEALTHCARE (UK) LTD,01332249
Fareham Borough Council,http://statistics.data.gov.uk/id/local-authority/24UE,CAPITAL PROGRAMME - HOUSING SERVICES,CP,RENOVATION OF L.A. DWELLINGS,CP10,CAPITAL - FAREHAM HOUSING CAPITAL,PREMISES RELATED EXPENDITURE,2,Information Communication Technology,27,R & M ALARM SPEECH SYSTEMS,2027,28/02/2020,670334,5490.36 ,Capital,TUNSTALL HEALTHCARE (UK) LTD,01332249
Fareham Borough Council,http://statistics.data.gov.uk/id/local-authority/24UE,ENVIRONMENT AND REGULATORY SER,BV03,WASTE COLLECTION,BV03G,STREETSCENE,TRANSPORT RELATED EXPENDITURE,3,Vehicle Management,38,ROUTINE REPAIRS VEHICLES/PLANT,3010,28/02/2020,670337,529.90 ,Revenue,TERBERG MATEC UK LTD,03404297
Fareham Borough Council,http://statistics.data.gov.uk/id/local-authority/24UE,PLANNING SERVICES,BV13,DEVELOPMENT CONTROL,BV13B,DEPT of STRATEGIC PLANNING and ENVIRONMENT,SUPPLIES & SERVICES,4,Legal Services,28,LEGAL FEES,4400,28/02/2020,670341,11235.00 ,Revenue,CORNERSTONE BARRISTERS,
Fareham Borough Council,http://statistics.data.gov.uk/id/local-authority/24UE,CENTRAL SERVICES,BV07,CENTRAL SERVICES TO THE PUBLIC,BV07B,DEPT OF SUPPORT SERVICES,PREMISES RELATED EXPENDITURE,2,Social Community Care Supplies & Services,32,RENTS - GENERAL PAYABLE,2200,28/02/2020,670343,1177.60 ,Revenue,CROFTON COMMUNITY ASSOCIATION,
Fareham Borough Council,http://statistics.data.gov.uk/id/local-authority/24UE,CENTRAL SERVICES,BV07,CENTRAL SERVICES TO THE PUBLIC,BV07B,DEPT OF SUPPORT SERVICES,PREMISES RELATED EXPENDITURE,2,Art & Leisure Services,29,RENTS - GENERAL PAYABLE,2200,28/02/2020,670344,520.00 ,Revenue,SPORTS & LEISURE MANAGEMENT LTD,02204085
Fareham Borough Council,http://statistics.data.gov.uk/id/local-authority/24UE,CENTRAL SERVICES,BV07,CENTRAL SERVICES TO THE PUBLIC,BV07B,DEPT OF SUPPORT SERVICES,PREMISES RELATED EXPENDITURE,2,Unclassified,,RENTS - GENERAL PAYABLE,2200,28/02/2020,670349,581.70 ,Revenue,PORTCHESTER COMMUNITY CENTRE,8233813
Fareham Borough Council,http://statistics.data.gov.uk/id/local-authority/24UE,CAPITAL PROGRAMME - HOUSING SERVICES,CP,RENOVATION OF L.A. DWELLINGS,CP10,CAPITAL - FAREHAM HOUSING CAPITAL,PREMISES RELATED EXPENDITURE,2,"Works - Construction, Repair & Maintenance",39,R & M OF BUILDINGS,2000,28/02/2020,670357,6370.35 ,Capital,MOUNTJOY LTD,06009150
Fareham Borough Council,http://statistics.data.gov.uk/id/local-authority/24UE,HOUSING REVENUE ACCOUNT,BV06,RESPONSIVE & VOID MAINTENANCE,5901,DEPT OF DEPUTY CHIEF EXECUTIVE,PREMISES RELATED EXPENDITURE,2,"Works - Construction, Repair & Maintenance",39,ELEC SERVICING & ASSOC REPAIRS,2025,28/02/2020,670359,3891.44 ,Revenue,BCG ELECTRICAL SERVICES LIMITED,5097428
Fareham Borough Council,http://statistics.data.gov.uk/id/local-authority/24UE,HOUSING REVENUE ACCOUNT,BV06,CYCLICAL REPAIRS/MAINTENANCE,5903,DEPT OF DEPUTY CHIEF EXECUTIVE,SUPPLIES & SERVICES,4,"Works - Construction, Repair & Maintenance",39,OTHER SERVICES - SURVEYS,4423,28/02/2020,670361,755.00 ,Revenue,CORNERSTONE MANAGEMENT SERVICES LTD,6798354
Fareham Borough Council,http://statistics.data.gov.uk/id/local-authority/24UE,HOUSING REVENUE ACCOUNT,BV06,RESPONSIVE & VOID MAINTENANCE,5901,DEPT OF DEPUTY CHIEF EXECUTIVE,PREMISES RELATED EXPENDITURE,2,"Works - Construction, Repair & Maintenance",39,ELEC SERVICING & ASSOC REPAIRS,2025,28/02/2020,670366,3274.80 ,Revenue,BCG ELECTRICAL SERVICES LIMITED,5097428
Fareham Borough Council,http://statistics.data.gov.uk/id/local-authority/24UE,CAPITAL PROGRAMME - HOUSING SERVICES,CP,RENOVATION OF L.A. DWELLINGS,CP10,CAPITAL - FAREHAM HOUSING CAPITAL,PREMISES RELATED EXPENDITURE,2,Social Community Care Supplies & Services,32,VOID COSTS - NOT RECHARGEABLE,2011,28/02/2020,670368,4200.00 ,Capital,CLOSOMAT LTD,2489536
Fareham Borough Council,http://statistics.data.gov.uk/id/local-authority/24UE,CULTURAL AND RELATED SERVICES,BV09,CULTURE AND HERITAGE,BV09A,DEPT OF LEISURE & COMMUNITY,SUPPLIES & SERVICES,4,Financial Services,20,SECURITY SERVICES,4409,28/02/2020,670375,44.85 ,Revenue,JADE SECURITY SERVICES LTD,3549438
Fareham Borough Council,http://statistics.data.gov.uk/id/local-authority/24UE,HIGHWAYS ROADS AND TRANSPORT,BV12,PARKING SERVICES,BV12D,DEPT OF LEISURE & COMMUNITY,SUPPLIES & SERVICES,4,Financial Services,20,SECURITY SERVICES,4409,28/02/2020,670375,2394.72 ,Revenue,JADE SECURITY SERVICES LTD,3549438
Fareham Borough Council,http://statistics.data.gov.uk/id/local-authority/24UE,OTHER REVENUE ACCOUNTS,RV,NON WORK GROUP HOLDING ACCOUNT,RV18,DEPT OF LEISURE & COMMUNITY,SUPPLIES & SERVICES,4,Financial Services,20,SECURITY SERVICES,4409,28/02/2020,670375,134.55 ,Revenue,JADE SECURITY SERVICES LTD,3549438
Fareham Borough Council,http://statistics.data.gov.uk/id/local-authority/24UE,PLANNING SERVICES,BV13,DEVELOPMENT CONTROL,BV13B,DEPT of STRATEGIC PLANNING and ENVIRONMENT,SUPPLIES & SERVICES,4,Consultancy,15,CONSULTANTS FEES,4401,28/02/2020,670376,1566.00 ,Revenue,LDA DESIGN CONSULTING LTD,OC307725
Fareham Borough Council,http://statistics.data.gov.uk/id/local-authority/24UE,HOUSING REVENUE ACCOUNT,BV06,RESPONSIVE & VOID MAINTENANCE,5901,DEPT OF DEPUTY CHIEF EXECUTIVE,PREMISES RELATED EXPENDITURE,2,"Works - Construction, Repair & Maintenance",39,VOID COSTS - NOT RECHARGEABLE,2011,28/02/2020,670385,9269.61 ,Revenue,MOUNTJOY LTD,06009150
Fareham Borough Council,http://statistics.data.gov.uk/id/local-authority/24UE,HOUSING REVENUE ACCOUNT,BV06,RESPONSIVE & VOID MAINTENANCE,5901,DEPT OF DEPUTY CHIEF EXECUTIVE,PREMISES RELATED EXPENDITURE,2,Building Construction Materials,10,GENERAL REPAIRS,2018,28/02/2020,670416,1983.65 ,Revenue,BALMORAL FLOORING LTD,5196959
Fareham Borough Council,http://statistics.data.gov.uk/id/local-authority/24UE,HOUSING REVENUE ACCOUNT,BV06,RESPONSIVE & VOID MAINTENANCE,5901,DEPT OF DEPUTY CHIEF EXECUTIVE,PREMISES RELATED EXPENDITURE,2,Building Construction Materials,10,GENERAL REPAIRS,2018,28/02/2020,670416,1990.01 ,Revenue,BALMORAL FLOORING LTD,5196959
Fareham Borough Council,http://statistics.data.gov.uk/id/local-authority/24UE,HOUSING REVENUE ACCOUNT,BV06,RESPONSIVE & VOID MAINTENANCE,5901,DEPT OF DEPUTY CHIEF EXECUTIVE,PREMISES RELATED EXPENDITURE,2,Building Construction Materials,10,GENERAL REPAIRS,2018,28/02/2020,670416,-3973.66 ,Revenue,BALMORAL FLOORING LTD,5196959
Fareham Borough Council,http://statistics.data.gov.uk/id/local-authority/24UE,HOUSING REVENUE ACCOUNT,BV06,RESPONSIVE & VOID MAINTENANCE,5901,DEPT OF DEPUTY CHIEF EXECUTIVE,PREMISES RELATED EXPENDITURE,2,Building Construction Materials,10,GENERAL REPAIRS,2018,28/02/2020,670416,3973.66 ,Revenue,BALMORAL FLOORING LTD,5196959
Fareham Borough Council,http://statistics.data.gov.uk/id/local-authority/24UE,ENVIRONMENT AND REGULATORY SER,BV03,ENVIRONMENTAL HEALTH,BV03C,STREETSCENE,PREMISES RELATED EXPENDITURE,2,"Works - Construction, Repair & Maintenance",39,R & M OF BUILDINGS,2000,28/02/2020,670417,395.25 ,Revenue,P R D ELECTRICAL LTD,9846111
Fareham Borough Council,http://statistics.data.gov.uk/id/local-authority/24UE,HOUSING REVENUE ACCOUNT,BV06,RESPONSIVE & VOID MAINTENANCE,5901,DEPT OF DEPUTY CHIEF EXECUTIVE,PREMISES RELATED EXPENDITURE,2,"Works - Construction, Repair & Maintenance",39,GENERAL REPAIRS,2018,28/02/2020,670417,4241.31 ,Revenue,P R D ELECTRICAL LTD,9846111
Fareham Borough Council,http://statistics.data.gov.uk/id/local-authority/24UE,OTHER REVENUE ACCOUNTS,RV,CONTRACT SERVICES D.S.O.,RV14,DEPT OF DEPUTY CHIEF EXECUTIVE,EMPLOYEES RELATED EXPENDITURE,1,"Works - Construction, Repair & Maintenance",39,STANDBY ALLOWANCES,1087,28/02/2020,670417,535.00 ,Revenue,P R D ELECTRICAL LTD,9846111
Fareham Borough Council,http://statistics.data.gov.uk/id/local-authority/24UE,OTHER REVENUE ACCOUNTS,RV,NON WORK GROUP HOLDING ACCOUNT,RV18,DEPT of STRATEGIC PLANNING and ENVIRONMENT,PREMISES RELATED EXPENDITURE,2,"Works - Construction, Repair & Maintenance",39,R & M OF BUILDINGS,2000,28/02/2020,670417,71.56 ,Revenue,P R D ELECTRICAL LTD,9846111
Fareham Borough Council,http://statistics.data.gov.uk/id/local-authority/24UE,OTHER REVENUE ACCOUNTS,RV,NON WORK GROUP HOLDING ACCOUNT,RV18,DEPT of FINANCE and RESOURCES,PREMISES RELATED EXPENDITURE,2,"Works - Construction, Repair & Maintenance",39,R & M OF BUILDINGS,2000,28/02/2020,670417,22.22 ,Revenue,P R D ELECTRICAL LTD,9846111
Fareham Borough Council,http://statistics.data.gov.uk/id/local-authority/24UE,CAPITAL PROGRAMME - HOUSING SERVICES,CP,RENOVATION OF L.A. DWELLINGS,CP10,CAPITAL - FAREHAM HOUSING CAPITAL,PREMISES RELATED EXPENDITURE,2,"Works - Construction, Repair & Maintenance",39,GENERAL REPAIRS,2018,28/02/2020,670419,6212.43 ,Capital,FUTUREMOST LTD,2207885
Fareham Borough Council,http://statistics.data.gov.uk/id/local-authority/24UE,HOUSING REVENUE ACCOUNT,BV06,RESPONSIVE & VOID MAINTENANCE,5901,DEPT OF DEPUTY CHIEF EXECUTIVE,PREMISES RELATED EXPENDITURE,2,"Works - Construction, Repair & Maintenance",39,GENERAL REPAIRS,2018,28/02/2020,670419,770.00 ,Revenue,FUTUREMOST LTD,2207885
Fareham Borough Council,http://statistics.data.gov.uk/id/local-authority/24UE,HOUSING REVENUE ACCOUNT,BV06,RESPONSIVE & VOID MAINTENANCE,5901,DEPT OF DEPUTY CHIEF EXECUTIVE,PREMISES RELATED EXPENDITURE,2,"Works - Construction, Repair & Maintenance",39,GENERAL REPAIRS,2018,28/02/2020,670420,472.00 ,Revenue,BCG ELECTRICAL SERVICES LIMITED,5097428
Fareham Borough Council,http://statistics.data.gov.uk/id/local-authority/24UE,OTHER REVENUE ACCOUNTS,RV,CONTRACT SERVICES D.S.O.,RV14,DEPT OF DEPUTY CHIEF EXECUTIVE,EMPLOYEES RELATED EXPENDITURE,1,"Works - Construction, Repair & Maintenance",39,STANDBY ALLOWANCES,1087,28/02/2020,670420,300.00 ,Revenue,BCG ELECTRICAL SERVICES LIMITED,5097428
Fareham Borough Council,http://statistics.data.gov.uk/id/local-authority/24UE,HOUSING REVENUE ACCOUNT,BV06,RESPONSIVE & VOID MAINTENANCE,5901,DEPT OF DEPUTY CHIEF EXECUTIVE,PREMISES RELATED EXPENDITURE,2,Building Construction Materials,10,GENERAL REPAIRS,2018,28/02/2020,670425,2578.30 ,Revenue,DENNISON SERVICES LIMITED,07068187
Fareham Borough Council,http://statistics.data.gov.uk/id/local-authority/24UE,CAPITAL PROGRAMME - HOUSING SERVICES,CP,RENOVATION OF L.A. DWELLINGS,CP10,CAPITAL - FAREHAM HOUSING CAPITAL,PREMISES RELATED EXPENDITURE,2,Building Construction Materials,10,R & M OF BUILDINGS,2000,28/02/2020,670435,7207.32 ,Capital,SOUTH COAST WINDOW SOLUTIONS LTD,9553687
Fareham Borough Council,http://statistics.data.gov.uk/id/local-authority/24UE,HOUSING REVENUE ACCOUNT,BV06,RESPONSIVE & VOID MAINTENANCE,5901,DEPT OF DEPUTY CHIEF EXECUTIVE,PREMISES RELATED EXPENDITURE,2,Environmental Services,18,GENERAL REPAIRS,2018,28/02/2020,670436,787.50 ,Revenue,R H INSULATION SERVICES LIMITED,02062526
Fareham Borough Council,http://statistics.data.gov.uk/id/local-authority/24UE,CAPITAL PROGRAMME - HOUSING SERVICES,CP,RENOVATION OF L.A. DWELLINGS,CP10,CAPITAL - FAREHAM HOUSING CAPITAL,PREMISES RELATED EXPENDITURE,2,Building Construction Materials,10,GENERAL REPAIRS,2018,28/02/2020,670442,820.00 ,Capital,IDEAL WINDOW SOLUTIONS LIMITED,3623785
Fareham Borough Council,http://statistics.data.gov.uk/id/local-authority/24UE,CAPITAL PROGRAMME - HOUSING SERVICES,CP,RENOVATION OF L.A. DWELLINGS,CP10,CAPITAL - FAREHAM HOUSING CAPITAL,PREMISES RELATED EXPENDITURE,2,Building Construction Materials,10,GENERAL REPAIRS,2018,28/02/2020,670443,600.00 ,Capital,IDEAL WINDOW SOLUTIONS LIMITED,3623785
Fareham Borough Council,http://statistics.data.gov.uk/id/local-authority/24UE,HOUSING REVENUE ACCOUNT,BV06,RESPONSIVE & VOID MAINTENANCE,5901,DEPT OF DEPUTY CHIEF EXECUTIVE,PREMISES RELATED EXPENDITURE,2,Building Construction Materials,10,GENERAL REPAIRS,2018,28/02/2020,670444,590.00 ,Revenue,HARFORD SPECIALISED SERVICES LTD,02338660
Fareham Borough Council,http://statistics.data.gov.uk/id/local-authority/24UE,HOUSING REVENUE ACCOUNT,BV06,RESPONSIVE & VOID MAINTENANCE,5901,DEPT OF DEPUTY CHIEF EXECUTIVE,PREMISES RELATED EXPENDITURE,2,Building Construction Materials,10,GENERAL REPAIRS,2018,28/02/2020,670446,580.00 ,Revenue,DENNISON SERVICES LIMITED,07068187
Fareham Borough Council,http://statistics.data.gov.uk/id/local-authority/24UE,HOUSING REVENUE ACCOUNT,BV06,RESPONSIVE & VOID MAINTENANCE,5901,DEPT OF DEPUTY CHIEF EXECUTIVE,PREMISES RELATED EXPENDITURE,2,Environmental Services,18,GENERAL REPAIRS,2018,28/02/2020,670450,805.00 ,Revenue,R H INSULATION SERVICES LIMITED,02062526
Fareham Borough Council,http://statistics.data.gov.uk/id/local-authority/24UE,HOUSING REVENUE ACCOUNT,BV06,RESPONSIVE & VOID MAINTENANCE,5901,DEPT OF DEPUTY CHIEF EXECUTIVE,PREMISES RELATED EXPENDITURE,2,Environmental Services,18,GENERAL REPAIRS,2018,28/02/2020,670451,510.00 ,Revenue,R H INSULATION SERVICES LIMITED,02062526
Fareham Borough Council,http://statistics.data.gov.uk/id/local-authority/24UE,HOUSING REVENUE ACCOUNT,BV06,RESPONSIVE & VOID MAINTENANCE,5901,DEPT OF DEPUTY CHIEF EXECUTIVE,PREMISES RELATED EXPENDITURE,2,Environmental Services,18,GENERAL REPAIRS,2018,28/02/2020,670454,525.00 ,Revenue,R H INSULATION SERVICES LIMITED,02062526
Fareham Borough Council,http://statistics.data.gov.uk/id/local-authority/24UE,HOUSING REVENUE ACCOUNT,BV06,RESPONSIVE & VOID MAINTENANCE,5901,DEPT OF DEPUTY CHIEF EXECUTIVE,PREMISES RELATED EXPENDITURE,2,"Works - Construction, Repair & Maintenance",39,GENERAL REPAIRS,2018,28/02/2020,670455,4140.00 ,Revenue,GABLE PROJECTS LIMITED,5718263
Fareham Borough Council,http://statistics.data.gov.uk/id/local-authority/24UE,HOUSING REVENUE ACCOUNT,BV06,RESPONSIVE & VOID MAINTENANCE,5901,DEPT OF DEPUTY CHIEF EXECUTIVE,PREMISES RELATED EXPENDITURE,2,"Works - Construction, Repair & Maintenance",39,GENERAL REPAIRS,2018,28/02/2020,670456,1120.00 ,Revenue,GABLE PROJECTS LIMITED,5718263
Fareham Borough Council,http://statistics.data.gov.uk/id/local-authority/24UE,HOUSING REVENUE ACCOUNT,BV06,RESPONSIVE & VOID MAINTENANCE,5901,DEPT OF DEPUTY CHIEF EXECUTIVE,PREMISES RELATED EXPENDITURE,2,"Works - Construction, Repair & Maintenance",39,GENERAL REPAIRS,2018,28/02/2020,670457,652.00 ,Revenue,GABLE PROJECTS LIMITED,5718263
Fareham Borough Council,http://statistics.data.gov.uk/id/local-authority/24UE,HOUSING REVENUE ACCOUNT,BV06,RESPONSIVE & VOID MAINTENANCE,5901,DEPT OF DEPUTY CHIEF EXECUTIVE,PREMISES RELATED EXPENDITURE,2,"Works - Construction, Repair & Maintenance",39,GENERAL REPAIRS,2018,28/02/2020,670458,1012.00 ,Revenue,GABLE PROJECTS LIMITED,5718263
Fareham Borough Council,http://statistics.data.gov.uk/id/local-authority/24UE,HOUSING REVENUE ACCOUNT,BV06,RESPONSIVE & VOID MAINTENANCE,5901,DEPT OF DEPUTY CHIEF EXECUTIVE,PREMISES RELATED EXPENDITURE,2,"Works - Construction, Repair & Maintenance",39,GENERAL REPAIRS,2018,28/02/2020,670459,550.00 ,Revenue,GABLE PROJECTS LIMITED,5718263
Fareham Borough Council,http://statistics.data.gov.uk/id/local-authority/24UE,HOUSING REVENUE ACCOUNT,BV06,RESPONSIVE & VOID MAINTENANCE,5901,DEPT OF DEPUTY CHIEF EXECUTIVE,PREMISES RELATED EXPENDITURE,2,"Works - Construction, Repair & Maintenance",39,GENERAL REPAIRS,2018,28/02/2020,670460,2070.58 ,Revenue,GABLE PROJECTS LIMITED,5718263
Fareham Borough Council,http://statistics.data.gov.uk/id/local-authority/24UE,HOUSING REVENUE ACCOUNT,BV06,RESPONSIVE & VOID MAINTENANCE,5901,DEPT OF DEPUTY CHIEF EXECUTIVE,PREMISES RELATED EXPENDITURE,2,"Works - Construction, Repair & Maintenance",39,GENERAL REPAIRS,2018,28/02/2020,670461,988.45 ,Revenue,GABLE PROJECTS LIMITED,5718263
Fareham Borough Council,http://statistics.data.gov.uk/id/local-authority/24UE,HOUSING REVENUE ACCOUNT,BV06,RESPONSIVE & VOID MAINTENANCE,5901,DEPT OF DEPUTY CHIEF EXECUTIVE,PREMISES RELATED EXPENDITURE,2,"Works - Construction, Repair & Maintenance",39,GENERAL REPAIRS,2018,28/02/2020,670462,1360.00 ,Revenue,GABLE PROJECTS LIMITED,5718263
Fareham Borough Council,http://statistics.data.gov.uk/id/local-authority/24UE,HOUSING REVENUE ACCOUNT,BV06,RESPONSIVE & VOID MAINTENANCE,5901,DEPT OF DEPUTY CHIEF EXECUTIVE,PREMISES RELATED EXPENDITURE,2,"Works - Construction, Repair & Maintenance",39,GENERAL REPAIRS,2018,28/02/2020,670463,2160.00 ,Revenue,GABLE PROJECTS LIMITED,5718263
Fareham Borough Council,http://statistics.data.gov.uk/id/local-authority/24UE,HOUSING REVENUE ACCOUNT,BV06,RESPONSIVE & VOID MAINTENANCE,5901,DEPT OF DEPUTY CHIEF EXECUTIVE,PREMISES RELATED EXPENDITURE,2,"Works - Construction, Repair & Maintenance",39,GENERAL REPAIRS,2018,28/02/2020,670464,580.00 ,Revenue,GABLE PROJECTS LIMITED,5718263
Fareham Borough Council,http://statistics.data.gov.uk/id/local-authority/24UE,CENTRAL SERVICES,BV07,CENTRAL SERVICES TO THE PUBLIC,BV07B,DEPT OF DEPUTY CHIEF EXECUTIVE,SUPPLIES & SERVICES,4,Local/Central Government,98,LEGAL FEES,4400,28/02/2020,670490,1404.00 ,Revenue,HAMPSHIRE COUNTY COUNCIL,
Fareham Borough Council,http://statistics.data.gov.uk/id/local-authority/24UE,PLANNING SERVICES,BV13,DEVELOPMENT CONTROL,BV13B,DEPT of STRATEGIC PLANNING and ENVIRONMENT,SUPPLIES & SERVICES,4,Consultancy,15,CONSULTANTS FEES,4401,28/02/2020,670491,1250.00 ,Revenue,STEPHEN JUPP MRTPI - CHARTERED TOWN PLANNER,
Fareham Borough Council,http://statistics.data.gov.uk/id/local-authority/24UE,PLANNING SERVICES,BV13,DEVELOPMENT CONTROL,BV13B,DEPT of STRATEGIC PLANNING and ENVIRONMENT,SUPPLIES & SERVICES,4,Consultancy,15,CONSULTANTS FEES,4401,28/02/2020,670491,1750.00 ,Revenue,STEPHEN JUPP MRTPI - CHARTERED TOWN PLANNER,
Fareham Borough Council,http://statistics.data.gov.uk/id/local-authority/24UE,PLANNING SERVICES,BV13,DEVELOPMENT CONTROL,BV13B,DEPT of STRATEGIC PLANNING and ENVIRONMENT,SUPPLIES & SERVICES,4,Consultancy,15,CONSULTANTS FEES,4401,28/02/2020,670491,57.00 ,Revenue,STEPHEN JUPP MRTPI - CHARTERED TOWN PLANNER,
Fareham Borough Council,http://statistics.data.gov.uk/id/local-authority/24UE,HIGHWAYS ROADS AND TRANSPORT,BV12,PARKING SERVICES,BV12D,DEPT OF LEISURE & COMMUNITY,SUPPLIES & SERVICES,4,Facilities & Management Services,19,FURNITURE & EQUIPT. PURCHASES,4000,28/02/2020,670493,2240.00 ,Revenue,CHROMA VISION LTD,04215917
Fareham Borough Council,http://statistics.data.gov.uk/id/local-authority/24UE,PLANNING SERVICES,BV13,DEVELOPMENT CONTROL,BV13B,DEPT of STRATEGIC PLANNING and ENVIRONMENT,SUPPLIES & SERVICES,4,Consultancy,15,CONSULTANTS FEES,4401,28/02/2020,670495,1250.00 ,Revenue,STEPHEN JUPP MRTPI - CHARTERED TOWN PLANNER,
Fareham Borough Council,http://statistics.data.gov.uk/id/local-authority/24UE,PLANNING SERVICES,BV13,DEVELOPMENT CONTROL,BV13B,DEPT of STRATEGIC PLANNING and ENVIRONMENT,SUPPLIES & SERVICES,4,Consultancy,15,CONSULTANTS FEES,4401,28/02/2020,670495,108.00 ,Revenue,STEPHEN JUPP MRTPI - CHARTERED TOWN PLANNER,
Fareham Borough Council,http://statistics.data.gov.uk/id/local-authority/24UE,PLANNING SERVICES,BV13,DEVELOPMENT CONTROL,BV13B,DEPT of STRATEGIC PLANNING and ENVIRONMENT,SUPPLIES & SERVICES,4,Consultancy,15,CONSULTANTS FEES,4401,28/02/2020,670495,3000.00 ,Revenue,STEPHEN JUPP MRTPI - CHARTERED TOWN PLANNER,
Fareham Borough Council,http://statistics.data.gov.uk/id/local-authority/24UE,PLANNING SERVICES,BV13,DEVELOPMENT CONTROL,BV13B,DEPT of STRATEGIC PLANNING and ENVIRONMENT,SUPPLIES & SERVICES,4,Consultancy,15,CONSULTANTS FEES,4401,28/02/2020,670495,3750.00 ,Revenue,STEPHEN JUPP MRTPI - CHARTERED TOWN PLANNER,
Fareham Borough Council,http://statistics.data.gov.uk/id/local-authority/24UE,CULTURAL AND RELATED SERVICES,BV09,RECREATION AND SPORT,BV09B,STREETSCENE,PREMISES RELATED EXPENDITURE,2,Utilities,37,GAS,2130,28/02/2020,670499,80.93 ,Revenue,CORONA ENERGY RETAIL 1 LIMITED,02798334
Fareham Borough Council,http://statistics.data.gov.uk/id/local-authority/24UE,CULTURAL AND RELATED SERVICES,BV09,CULTURE AND HERITAGE,BV09A,DEPT OF LEISURE & COMMUNITY,PREMISES RELATED EXPENDITURE,2,Utilities,37,GAS,2130,28/02/2020,670499,2707.17 ,Revenue,CORONA ENERGY RETAIL 1 LIMITED,02798334
Fareham Borough Council,http://statistics.data.gov.uk/id/local-authority/24UE,HOUSING REVENUE ACCOUNT,BV06,COMMUNAL HEATING SERVICES,5025,DEPT OF DEPUTY CHIEF EXECUTIVE,PREMISES RELATED EXPENDITURE,2,Utilities,37,GAS,2130,28/02/2020,670499,1450.63 ,Revenue,CORONA ENERGY RETAIL 1 LIMITED,02798334
Fareham Borough Council,http://statistics.data.gov.uk/id/local-authority/24UE,HOUSING REVENUE ACCOUNT,BV06,COMMUNAL HEATING SERVICES,5025,DEPT OF DEPUTY CHIEF EXECUTIVE,PREMISES RELATED EXPENDITURE,2,Utilities,37,GAS,2130,28/02/2020,670499,2347.10 ,Revenue,CORONA ENERGY RETAIL 1 LIMITED,02798334
Fareham Borough Council,http://statistics.data.gov.uk/id/local-authority/24UE,OTHER REVENUE ACCOUNTS,RV,NON WORK GROUP HOLDING ACCOUNT,RV18,DEPT of STRATEGIC PLANNING and ENVIRONMENT,PREMISES RELATED EXPENDITURE,2,Utilities,37,GAS,2130,28/02/2020,670499,2607.44 ,Revenue,CORONA ENERGY RETAIL 1 LIMITED,02798334
Fareham Borough Council,http://statistics.data.gov.uk/id/local-authority/24UE,OTHER REVENUE ACCOUNTS,RV,NON WORK GROUP HOLDING ACCOUNT,RV18,DEPT of STRATEGIC PLANNING and ENVIRONMENT,PREMISES RELATED EXPENDITURE,2,Utilities,37,GAS,2130,28/02/2020,670499,904.05 ,Revenue,CORONA ENERGY RETAIL 1 LIMITED,02798334